{"text_format":"1","workbook":"xlsx","n_sheets":28,"sheets":["Forside","Diverse Puss","Fiberpuss - Intern","Fiberpuss","Materialliste Fiberpuss","ISO 30","ISO 25","Basic","Div","Fasadeblokk","Lettvegg","Oppsummering","VentiGuard - Intern","VentiGuard","Sheet1","Sheet2","Sheet3","Materialliste VentiGuard","Materialliste VentiGuard E","Lecablokker","Leca Venti Ettløps Pipe","Leca Venti Toløps Pipe","Materialliste Toløps","Leca Maxi Pipe","Materialliste Ettløps","Materialliste Maxi","Data","Data (2)"],"not_rendered":{"charts":0,"images":12,"macros":1,"external_links":4,"defined_names":36,"comments":4,"pivot_tables":0},"unopened":[],"bounds":{"document_bytes":16777216,"sheet_cells":100000,"rows_first":2000,"rows_last":500,"rows_between":2000,"halvings":0,"cell_chars":16384,"cell_head_chars":4096},"cells_cut":0,"cells_raw":0,"read":"whole","date_system":"1900"}

{"sheet":"Forside","index":0,"n_rows":16,"n_cols":7,"rows_kept":16,"cut":false,"hidden":false,"merged":[[9,10,11,13],[13,10,15,13],[17,10,19,13],[21,10,23,13],[4,6,4,8]]}
[]
[]
[]
[null,null,null,null,null,null,"Prosjektnavn:"]
[]
[null,null,null,null,null,null,"Prosjektnr:"]
[]
[null,null,"Weber Produktkalkulasjoner:",null,"Leca Produktkalkulasjoner:",null,"Dato:"]
[]
[null,null,"VentiGuard",null,"Leca Venti Ettløps Pipe"]
[]
[null,null,"Fiberpuss",null,"Leca Venti Toløps Pipe"]
[]
[null,null,"Diverse Puss",null,"Leca Maxi Pipe"]
[]
[null,null,null,null,"Lecablokker"]

{"sheet":"Diverse Puss","index":1,"n_rows":28,"n_cols":31,"rows_kept":28,"cut":false,"hidden":true,"merged":[[23,7,23,8],[15,3,15,10],[20,3,20,10],[16,5,16,6],[10,4,10,5],[11,4,11,5]]}
[]
[]
[]
[]
[null,null,null,null,"Forside",null,null,null,null,null,null,null,null,null,"*minimums bestillingskvanta"]
[]
[null,null,null,"Diverse puss","Inndata"]
[null,null,null,null,null,null,null,null,null,null,null,null,null,null,"Vare","NOBB","sekkestørelse kg","Enhet","Forbruk i kg pr m2","Sjikttykkelse","kalk. Mengde i kg","antall sekker"]
[null,null,null,null,null,null,null,null,null,null,null,null,null,null,"KC 50/50",55244223,25,"á 25 kg sekk",18,"10mm",{"$f":"ROUNDUP(E10*S9,0)","v":0},{"$f":"ROUNDUP(U9/Q9,0)","v":0}]
[null,null,null,"Netto Veggareal",0,"m²","(inntasting)",null,null,null,null,null,null,null,"KC 35/65",55244238,25,"á 25 kg sekk",18,"10mm",{"$f":"ROUNDUP(E10*S10,0)","v":0},0]
[null,null,null,"Type puss","KC 50/50",null,"(flervalg)",null,null,null,null,null,null,null,"132 Grovpuss B",56639516,20,"á 20 kg sekk",20,"10mm",{"$f":"ROUNDUP(E10*S11,0)","v":0},0]
[null,null,null,"Sluttpuss/maling","Sluttpuss - Silco render",null,"(flervalg)",null,null,null,null,null,null,null,"134 Grovpuss C",56639520,20,"á 20 kg sekk",20,"10mm",{"$f":"ROUNDUP(E10*S12,0)","v":0},0,null,null,null,15]
[null,null,null,null,null,null,null,null,null,null,null,null,null,null,"136 Tynnpuss",56518696,20,"á 20 kg sekk",8.34,"5mm",{"$f":"ROUNDUP(E10*S13,0)","v":0},0,null,null,null,30]
[null,null,null,null,null,null,null,null,null,null,null,null,null,null,"138 Tynnpuss",56518700,20,"á 20 kg sekk",6,"3mm",{"$f":"ROUNDUP(E10*S14,0)","v":0},0,null,null,null,45]
[null,null,null,"Materialliste",null,null,null,null,null,null,null,null,null,null,"Weber Sparkel",46307535,12,"á 12 L spann",5,"5mm",{"$f":"ROUNDUP(E10*S15,0)","v":0},0,null,null,null,60]
[null,null,null,null,null,null,null,null,null,null,null,null,null,null,"Gypsum Naturgips",23596406,25,"á 25 kg sekk",9,"10mm",{"$f":"ROUNDUP(E10*S16,0)","v":0},0]
[null,null,null,"Vare","NOBB","Kalk. Mengde",null,"Antall","Enhet","kg pr. m²","i tykkelse"]
[null,null,null,{"$f":"E11","v":"KC 50/50"},{"$f":"VLOOKUP(E11,O9:P18,2,FALSE)","v":55244223},null,{"$f":"VLOOKUP(E11,O9:U18,7,FALSE)","v":0},{"$f":"VLOOKUP(E11,O9:V18,8,FALSE)","v":0},{"$f":"VLOOKUP(E11,O9:R18,4,FALSE)","v":"á 25 kg sekk"},{"$f":"VLOOKUP(E11,O9:S18,5,FALSE)","v":18},{"$f":"VLOOKUP(E11,O9:T18,6,FALSE)","v":"10mm"}]
[null,null,null,{"$f":"VLOOKUP(E12,O25:Q28,3,FALSE)","v":"Silco render std farge 20 kg"},{"$f":"VLOOKUP(E12,O25:P28,2,FALSE)","v":30171516},null,{"$f":"VLOOKUP(E12,O25:U28,7,FALSE)","v":0},{"$f":"VLOOKUP(E12,O25:V28,8,FALSE)","v":0},{"$f":"VLOOKUP(E12,O25:S28,5,FALSE)","v":"á 20 kg spann"},{"$f":"VLOOKUP(E12,O25:T28,6,FALSE)","v":2.9},{"$f":"VLOOKUP(E12,O25:W28,9,FALSE)","v":"1,5mm"}]
[null,null,null,{"$f":"IF(VLOOKUP(E12,O25:Y28,11,FALSE)=\"\",\"\",VLOOKUP(E12,O25:Y28,11,FALSE))","v":"Silco paint std farge 15 kg"},{"$f":"IF(VLOOKUP(E12,O25:X28,10,FALSE)=\"\",\"\",VLOOKUP(E12,O25:X28,10,FALSE))","v":30171474},null,{"$f":"VLOOKUP(E12,O25:AC28,15,FALSE)","v":0},{"$f":"VLOOKUP(E12,O25:AD28,16,FALSE)","v":0},{"$f":"VLOOKUP(E12,O25:AA28,13,FALSE)","v":"á 15 kg spann"},{"$f":"VLOOKUP(E12,O25:AC28,14,FALSE)","v":0.3},{"$f":"VLOOKUP(E12,O25:AE28,17,FALSE)","v":"1 strøk"}]
[]
[]
[]
[null,null,null,null,null,null,null,null,null,null,null,null,null,null,null,"NOBBnr","Produkt 1","Enhet","Forpakning","Forbruk","Kalk. Antall","Antall enhet","tykkelse","NOBBnr","Produkt 2","Enhet","Forpakning","Forbruk","Kalk. Antall","Antall enhet","tykkelse"]
[null,null,null,null,null,null,null,null,null,null,null,null,null,null,"Maling - Silikatmaling",23852551,"Weber.ton 303 Silikatmaling - 15 kg","spann","á 15 kg spann",0.6,{"$f":"T25*E10","v":0},{"$f":"ROUNDUP(U25/15,0)","v":0},"2 strøk",23852502,"Weber.ton 301 Silikatgrunning - 10 kg","kanne","á 10 kg kanne",0.1,{"$f":"AB25*E10","v":0},{"$f":"ROUNDUP(AC25/10,0)","v":0},"1 strøk"]
[null,null,null,null,null,null,null,null,null,null,null,null,null,null,"Maling - Silco paint",30171474,"Silco paint std farge 15 kg","spann","á 15 kg spann",0.6,{"$f":"T26*E10","v":0},{"$f":"ROUNDUP(U26/15,0)","v":0},"2 strøk"]
[null,null,null,null,null,null,null,null,null,null,null,null,null,null,"Sluttpuss - Silicate render",28167625,"Silicate render std farge 20 kg","spann","á 20 kg spann",2.9,{"$f":"T27*E10","v":0},{"$f":"ROUNDUP(U27/20,0)","v":0},"1,5mm",23852551,"Weber.ton 303 Silikatmaling - 15 kg","spann","á 15 kg spann",0.3,{"$f":"AB27*E10","v":0},{"$f":"ROUNDUP(AC27/15,0)","v":0},"1 strøk"]
[null,null,null,null,null,null,null,null,null,null,null,null,null,null,"Sluttpuss - Silco render",30171516,"Silco render std farge 20 kg","spann","á 20 kg spann",2.9,{"$f":"T28*E10","v":0},{"$f":"ROUNDUP(U28/20,0)","v":0},"1,5mm",30171474,"Silco paint std farge 15 kg","spann","á 15 kg spann",0.3,{"$f":"AB28*E10","v":0},{"$f":"ROUNDUP(AC28/15,0)","v":0},"1 strøk"]

{"sheet":"Fiberpuss - Intern","index":2,"n_rows":44,"n_cols":20,"rows_kept":44,"cut":false,"hidden":true,"merged":[[1,0,17,0],[2,11,9,11],[12,11,32,11],[15,5,16,5],[21,0,43,0],[42,5,42,6],[43,5,43,6]]}
[]
["Veggareal uten vinduer/dører",null,"W","H","A"]
[null,"A1",null,null,{"$f":"C3*D3","v":0},null,null,null,null,null,null,"Omkrets på huset","W1",null,null,null,null,null,"Factor",0]
[null,"A2",null,null,{"$f":"C4*D4","v":0},null,null,null,null,null,null,null,"W2"]
[null,"A3",null,null,0,null,null,null,null,null,null,null,"W3",null,null,null,null,"W1",0,{"$f":"S5*$T$3","v":0}]
[null,"A4",null,null,0,null,null,null,null,null,null,null,"W4",null,null,null,null,"W2",null,{"$f":"S6*$T$3","v":0}]
[null,"A5",null,null,0,null,null,null,null,null,null,null,"W5",null,null,null,null,"W3",null,0]
[null,"A6",null,null,0,null,null,null,null,null,null,null,"W6",null,null,null,null,"W4",null,0]
[null,"A7",null,null,0,null,null,null,null,null,null,null,"W7",null,null,null,null,"W5",null,0]
[null,"A8",null,null,0,null,null,null,null,null,null,null,"W8",null,null,null,null,"W6",null,0]
[null,"A9",null,null,0,null,null,null,null,null,null,null,null,{"$f":"SUM(N3:N10)","v":0},null,null,null,"W7",null,0]
[null,"A10",null,null,0,null,null,null,null,null,null,null,null,null,null,null,null,"W8",null,0]
[null,"A11",null,null,0,null,null,null,null,null,null,"Antall meter hjørne","Hjø 1",null,null,null,null,"W9",null,0]
[null,"A12",null,null,0,null,null,null,null,null,null,null,"Hjø 2",null,null,null,null,"W10",null,0]
[null,"A13",null,null,0,null,null,null,null,null,null,null,"Hjø 3",null,null,null,null,"W11",null,0]
[null,"A14",null,null,0,"Areal \n(vind + dør)",null,null,null,null,null,null,"Hjø 4",null,null,null,null,"W12",null,0]
[null,"A15",null,null,0,null,null,null,null,null,null,null,"Hjø 5",null,null,null,null,"W13",null,0]
[null,null,null,null,{"$f":"SUM(E3:E17)","v":0},{"$f":"I41","v":0},{"$f":"E18-F18","v":0},null,null,null,null,null,"Hjø 6",null,null,null,null,"W14",null,0]
[null,null,null,null,null,null,null,null,null,null,null,null,"Hjø 7",null,null,null,null,null,null,{"$f":"SUM(T5:T18)","v":0}]
[null,null,null,null,null,null,null,null,null,null,null,null,"Hjø 8"]
[null,null,null,null,null,null,null,null,null,null,null,null,"Hjø 9"]
["Antall meter Vinduer/dører (B + 2xH)",null,"Antall","W","H","Total W","Total H",null,"A",null,null,null,"Hjø 10"]
[null,"V1",null,null,null,{"$f":"D23*C23","v":0},{"$f":"C23*E23*2","v":0},null,{"$f":"D23*E23*C23","v":0},null,null,null,"Hjø 11"]
[null,"V2",null,null,null,{"$f":"D24*C24","v":0},{"$f":"C24*E24*2","v":0},null,{"$f":"D24*E24*C24","v":0},null,null,null,"Hjø 12"]
[null,"V3",null,null,null,0,0,null,0,null,null,null,"Hjø 13"]
[null,"V4",null,null,null,0,0,null,0,null,null,null,"Hjø 14"]
[null,"V5",null,null,null,0,0,null,0,null,null,null,"Hjø 15"]
[null,"V6",null,null,null,0,0,null,0,null,null,null,"Hjø 16"]
[null,"V7",null,null,null,0,0,null,0,null,null,null,"Hjø 17"]
[null,"V8",null,null,null,0,0,null,0,null,null,null,"Hjø 18"]
[null,"V9",null,null,null,0,0,null,0,null,null,null,"Hjø 19"]
[null,"V10",null,null,null,0,0,null,0,null,null,null,"Hjø 20"]
[null,"V11",null,null,null,0,0,null,0,null,null,null,null,{"$f":"SUM(N13:N32)","v":0}]
[null,"V12",null,null,null,0,0,null,0]
[null,"V13",null,null,null,0,0,null,0]
[null,"V14",null,null,null,0,0,null,0]
[null,"V15",null,null,null,0,0,null,0]
[null,"V16",null,null,null,0,0,null,0]
[null,"V17",null,null,null,0,0,null,0]
[null,"V18",null,null,null,0,0,null,0]
[null,null,null,null,null,{"$f":"SUM(F23:F40)","v":0},{"$f":"SUM(G23:G40)","v":0},null,{"$f":"SUM(I23:I40)","v":0}]
[]
[null,null,null,null,null,"B + 2xH"]
[null,null,null,null,null,{"$f":"SUM(F41:G41)","v":0}]

{"sheet":"Fiberpuss","index":3,"n_rows":22,"n_cols":29,"rows_kept":22,"cut":false,"hidden":true,"merged":[[15,6,15,8],[17,4,18,5]]}
[]
[]
[]
[null,null,null,null,null,"Forside"]
[]
[null,null,"Weber Fiberpussystem"]
[]
[]
[null,null,null,"Netto veggareal",null,null,null,"(inntasting)",0,"m2"]
[null,null,null,"Antall meter vinduer/dører (B + 2xH)",null,null,null,"(inntasting)",0,"m"]
[null,null,null,"Omkrets på huset",null,null,null,"(inntasting)",0,"m"]
[null,null,null,"Antall meter hjørne",null,null,null,"(inntasting)",0,"m",null,null,2,3,4,5,6,7,8,9,10,null,12,13,14,15,16,17,18]
[null,null,null,"Netto veggareal sokkelpuss",null,null,null,"(inntasting)",0,"m²"]
[null,null,null,null,null,null,null,null,null,null,null,null,"NOBBnr","Produkt 1","Enhet","Forpakning","Forbruk","Kalk. Antall","Antall enhet","Pris 2017","Pris",null,"NOBBnr","Produkt 2","Enhet","Forpakning","Forbruk","Kalk. Antall","Antall enhet"]
[null,null,null,null,null,null,null,null,null,null,null,"Maling - Silikatmaling",23852551,"weber.ton 303 Silikatmaling - 15 kg","spann","à 15 kg",0.6,{"$f":"Q15*$I$9","v":0},{"$f":"ROUNDUP(R15/15,0)","v":0},1393,{"$f":"T15*S15","v":0},null,23852502,"weber.ton 301 Silikatgrunning - 10 kg","kanne","à 10 kg",0.1,{"$f":"AA15*$I$9","v":0},{"$f":"ROUNDUP(AB15/10,0)","v":0}]
[null,null,null,"Velg sluttbehandling",null,"(flervalg)","Sluttpuss - Silco render",null,null,null,null,"Maling - Silco paint",30171474,"Silco paint std farge 15 kg","spann","à 15 kg",0.6,{"$f":"Q16*$I$9","v":0},{"$f":"ROUNDUP(R16/15,0)","v":0},1435,{"$f":"T16*S16","v":0}]
[null,null,null,null,null,null,null,null,null,null,null,"Sluttpuss - Silicate render",28167625,"Silicate render std farge 20 kg","spann","à 20 kg",2.9,{"$f":"Q17*$I$9","v":0},{"$f":"ROUNDUP(R17/20,0)","v":0},959,{"$f":"T17*S17","v":0},null,23852551,"weber.ton 303 Silikatmaling - 15 kg","spann","à 15 kg",0.3,{"$f":"AA17*$I$9","v":0},{"$f":"ROUNDUP(AB17/15,0)","v":0}]
[null,null,null,null,"Materialliste Fiberpuss",null,null,null,null,null,null,"Sluttpuss - Silco render",30171516,"Silco render std farge 20 kg","spann","à 20 kg",2.9,{"$f":"Q18*$I$9","v":0},{"$f":"ROUNDUP(R18/20,0)","v":0},1006,{"$f":"T18*S18","v":0},null,30171474,"Silco paint std farge 15 kg","spann","à 15 kg",0.3,{"$f":"AA18*$I$9","v":0},{"$f":"ROUNDUP(AB18/15,0)","v":0}]
[]
[]
[]
[null,null,"Sist oppdatert 04.08.2017"]

{"sheet":"Materialliste Fiberpuss","index":4,"n_rows":17,"n_cols":10,"rows_kept":17,"cut":false,"hidden":true,"merged":[[19,6,19,7],[4,8,4,9],[3,5,3,9],[8,7,8,8],[9,2,9,4],[4,5,4,6]]}
[]
[]
[]
[]
[null,null,null,null,null,"Fiberpuss",null,null,"Forside"]
[]
[null,null,"Weber Fiberpussystem - materialliste"]
[]
[null,null,"Nobb-nr","Vare-nr","Produkt","Kalk. antall",null,"Ant. Enhet",null,"Enhet"]
[null,null,"Fasadesystem: Weber Fiberpussystem"]
[null,null,48390436,5200668459,"weber.base 261 Fiberpuss - 25 kg",{"$f":"Fiberpuss!I9*14","v":0},null,{"$f":"ROUNDUP(F11/25,0)","v":0},"à 25 kg","sekk"]
[null,null,23826282,5200629714,"weber.therm 397 Armeringsnett",{"$f":"(Fiberpuss!I9+Fiberpuss!I13)*1.15","v":0},null,{"$f":"ROUNDUP((F12/50),0)","v":0},"à 50 m²","rull"]
[null,null,55367374,5200629077,"Weber 400 N Startlist rett vegg",{"$f":"Fiberpuss!I11","v":0},null,{"$f":"ROUNDUP((F13/2.5),0)","v":0},"à 2,5 m","stk"]
[null,null,57187253,5200629034,"weber.therm 391 Hjørnelist",{"$f":"Fiberpuss!I10+Fiberpuss!I12","v":0},null,{"$f":"ROUNDUP((F14/2.5),0)","v":0},"à 2,5 m","stk"]
[null,null,{"$f":"VLOOKUP(Fiberpuss!G16,Fiberpuss!L15:M18,2,FALSE)","v":30171516},null,{"$f":"VLOOKUP(Fiberpuss!G16,Fiberpuss!L15:N18,3,FALSE)","v":"Silco render std farge 20 kg"},{"$f":"VLOOKUP(Fiberpuss!G16,Fiberpuss!L15:R18,7,FALSE)","v":0},null,{"$f":"VLOOKUP(Fiberpuss!G16,Fiberpuss!L15:S18,8,FALSE)","v":0},{"$f":"VLOOKUP(Fiberpuss!G16,Fiberpuss!L15:P18,5,FALSE)","v":"à 20 kg"},{"$f":"VLOOKUP(Fiberpuss!G16,Fiberpuss!L15:O18,4,FALSE)","v":"spann"}]
[null,null,{"$f":"IF(VLOOKUP(Fiberpuss!G16,Fiberpuss!L15:W18,12,FALSE)=\"\",\"\",VLOOKUP(Fiberpuss!G16,Fiberpuss!L15:W18,12,FALSE))","v":30171474},null,{"$f":"IF(VLOOKUP(Fiberpuss!G16,Fiberpuss!L15:X18,13,FALSE)=\"\",\"\",VLOOKUP(Fiberpuss!G16,Fiberpuss!L15:X18,13,FALSE))","v":"Silco paint std farge 15 kg"},{"$f":"VLOOKUP(Fiberpuss!G16,Fiberpuss!L15:AB18,17,FALSE)","v":0},null,{"$f":"VLOOKUP(Fiberpuss!G16,Fiberpuss!L15:AC18,18,FALSE)","v":0},{"$f":"VLOOKUP(Fiberpuss!G16,Fiberpuss!L15:Z18,15,FALSE)","v":"à 15 kg"},{"$f":"VLOOKUP(Fiberpuss!G16,Fiberpuss!L15:Y18,14,FALSE)","v":"spann"}]
[null,null,57186341,null,"weber.therm 260 Sokkelpuss - 25 kg",{"$f":"Fiberpuss!I13*14","v":0},null,{"$f":"ROUNDUP(F17/25,0)","v":0},"à 25 kg","sekk"]

{"sheet":"ISO 30","index":5,"n_rows":91,"n_cols":31,"rows_kept":91,"cut":false,"hidden":true,"merged":[[30,2,51,2],[29,11,29,13],[42,11,42,13],[5,3,5,4],[14,13,14,14],[15,13,15,14],[16,13,16,14],[17,13,17,14],[4,20,4,21],[14,16,15,16],[14,17,15,17],[14,18,15,18],[14,19,15,19],[14,20,15,20],[14,21,15,21],[4,18,4,19],[2,5,2,6],[53,2,74,2],[55,11,55,13],[4,16,4,17],[8,13,8,15],[18,13,18,14],[19,13,19,14],[20,13,20,14],[21,13,21,14],[22,13,22,14],[23,13,23,14],[24,13,24,14],[25,13,25,14],[26,13,26,14],[27,13,27,14],[28,13,28,14]]}
[]
[]
[]
[]
[null,null,null,"ISOBLOKK 30",null,null,null,null,null,null,null,null,null,null,null,null,"Vegg 1",null,"Vegg 2",null,"Vegg 3"]
[null,null,null,"INNDATA"]
[null,null,null,"Veggtype",null,"(flervalg)","Grunnmur",null,null,null,5200626735,null,null,null,null,null,{"$f":"IF(G11=\"Ja\",ROUNDUP(M34*2,0),0)","v":0},"pc",{"$f":"IF(G35=\"Ja\",ROUNDUP(M47*2,0),0)","v":0},"pc",{"$f":"IF(G58=\"Ja\",ROUNDUP(M60*2,0),0)","v":0},"pc",null,null,"Lavblokk - V1","Lavblokk - V2","Lavblokk - V3",null,"Hjørnelist v1","Hjørnelist v2","Hjørnelist v3"]
[null,null,null,"Vegglengde",null,"(inntasting)",0,"m",null,null,5200815469,null,null,null,null,null,{"$f":"ROUNDUP(IF(G7=\"Yttervegg\",(M41*10)-Q9-(Q10/2)-(Q11/2)-(Q12*3.6),(M41*9.6)-Q9-(Q10/2)-(Q11/2)-(Q12*3.6)),0)","v":0},"pc",{"$f":"ROUNDUP(IF(G31=\"Yttervegg\",(M54*10)-S9-(S10/2)-(S11/2)-(S12*3.6),(M54*9.6)-S9-(S10/2)-(S11/2)-(S12*3.6)),0)","v":0},"pc",{"$f":"ROUNDUP(IF(G54=\"Yttervegg\",(M67*10)-U9-(U10/2)-(U11/2)-(U12*3.6),(M67*9.6)-U9-(U10/2)-(U11/2)-(U12*3.6)),0)","v":0},"pc",null,null,{"$f":"VLOOKUP(G9,AC29:AE91,3,FALSE)","v":"Nei"},{"$f":"VLOOKUP(G33,AC29:AE91,3,FALSE)","v":"Nei"},{"$f":"VLOOKUP(G56,AC29:AE91,3,FALSE)","v":"Nei"},null,{"$f":"(E18+(F18*2))*G18","v":0},{"$f":"(E41+(F41*2))*G41","v":0},{"$f":"(E64+(F64*2))*G64","v":0}]
[null,null,null,"Vegghøyde",null,"(flervalg)",0,"m",null,null,5200815470,null,null,null,null,null,{"$f":"ROUNDUP(M36*M33,0)-(IF(G12=\"Ja\",M36,0))","v":0},"pc",{"$f":"ROUNDUP(M49*M46,0)-(IF(G36=\"Ja\",M49,0))","v":0},"pc",{"$f":"ROUNDUP(M62*M59,0)-(IF(G59=\"Ja\",M62,0))","v":0},"pc",null,null,null,null,null,null,0,0,0]
[null,null,null,"Antall hjørner",null,"(inntasting)",0,"stk",null,null,5200815471,null,null,"Forside",null,"Lecablokker",{"$f":"IF(Y8=\"Ja\",M31*2,0)","v":0},"pc",{"$f":"IF(Z8=\"Ja\",M44*2,0)","v":0},"pc",{"$f":"IF(AA8=\"Ja\",M57*2,0)","v":0},"pc",null,null,"Veggtype","U-blokk","Såleblokk",null,0,0,0]
[null,null,null,"Såleblokk",null,"(flervalg)","Ja",null,null,null,5200819317,null,null,null,null,null,{"$f":"IF(G12=\"Ja\",ROUNDUP(M35*4,0),0)+ROUNDUP(M38*4,0)","v":0},"pc",{"$f":"IF(G36=\"Ja\",ROUNDUP(M48*4,0),0)+ROUNDUP(M51*4,0)","v":0},"pc",{"$f":"IF(G59=\"Ja\",ROUNDUP(M61*4,0),0)+ROUNDUP(M64*4,0)","v":0},"pc",null,null,"Grunnmur","Ja","Ja",null,0,0,0]
[null,null,null,"U-blokk",null,"(flervalg)","Ja",null,null,null,5200674991,null,null,null,null,null,{"$f":"M37","v":0},"pc",{"$f":"M50","v":0},"pc",{"$f":"M63","v":0},"pc",null,null,"Yttervegg","Nei","Nei",null,0,0,0]
[null,null,null,"Puss (slemming) under bakken",null,"(inntasting)",0,"m2",null,null,5200626806,null,null,null,null,null,{"$f":"IF(G7=\"Grunnmur\",ROUNDUP(M41*5.2,0),0)","v":0},"m",{"$f":"IF(G31=\"Grunnmur\",ROUNDUP(M54*5.2,0),0)","v":0},"m",{"$f":"IF(G54=\"Grunnmur\",ROUNDUP(M67*5.2,0),0)","v":0},"m",null,null,null,null,null,null,0,0,0]
[null,null,null,"Antall skift:",null,null,{"$f":"M33","v":0},"skift",null,null,5200626782,"Materialliste:",null,null,null,null,{"$f":"IF(G7=\"Grunnmur\",ROUNDUP(M41*2.8,0),0)","v":0},"m",{"$f":"IF(G31=\"Grunnmur\",ROUNDUP(M54*2.8,0),0)","v":0},"m",{"$f":"IF(G54=\"Grunnmur\",ROUNDUP(M67*2.8,0),0)","v":0},"m",null,null,"Fugearmering","Pakker",null,null,0,0,0]
[null,null,null,"Netto veggareal:",null,null,{"$f":"M41","v":0},"m2",null,null,5200642507,"Produkt","Nobb","Antall",null,"enhet",{"$f":"IF(G7=\"Yttervegg\",ROUNDUP(M41*5.3,0),0)","v":0},"m",{"$f":"IF(G31=\"Yttervegg\",ROUNDUP(M54*5.3,0),0)","v":0},"m",{"$f":"IF(G54=\"Yttervegg\",ROUNDUP(M67*5.3,0),0)","v":0},"m",null,null,{"$f":"SUM(Q15,S15,U15)","v":0},{"$f":"ROUNDUP(Y15/400,1)","v":0},null,null,0,0,0]
[null,null,null,null,null,null,null,null,null,null,5200633054,"Leca Såleblokk 33 cm",10523777,{"$f":"SUM(Q7,S7,U7)","v":0},null,"stk",null,null,null,null,null,null,null,null,null,null,null,null,0,0,0]
[null,null,null,null,"Bredde","Høyde","Antall",null,null,null,5200626795,"Leca Isoblokk 30 cm",51972953,0,null,"stk",{"$f":"ROUNDUP((M34*1.1),0)","v":0},"m",{"$f":"ROUNDUP((M47*1.1),0)","v":0},"m",{"$f":"ROUNDUP((M60*1.1),0)","v":0},"m",null,null,"Laftestrimmel","Sikksakk","U-blokkarm",null,0,0,0]
[null,null,null,"V1",null,null,0,{"$f":"IF(AND(ISNUMBER(E18),E18>0,F18>0,G18>0),IF(E18<=1.5,$Y$84,IF(AND(E18>1.5,E18<=2.5),$Y$85,\"Krever tiltak (mengdeberegnes ikke)\")),\"\")","v":""},null,null,5200631518,"Leca Isoblokk 30 cm Multicut",51972964,0,null,"stk",{"$f":"IF(G7=\"Yttervegg\",ROUNDUP(M41*11.3,0),ROUNDUP(M41*23,0))","v":0},"kg",{"$f":"IF(G31=\"Yttervegg\",ROUNDUP(M54*11.3,0),ROUNDUP(M54*23,0))","v":0},"kg",{"$f":"IF(G54=\"Yttervegg\",ROUNDUP(M67*11.3,0),ROUNDUP(M67*23,0))","v":0},"kg",null,null,{"$f":"SUM(Q13,S13,U13)","v":0},{"$f":"SUM(Q14,S14,U14)","v":0},{"$f":"SUM(Q17,S17,U17)","v":0},null,0,0,0]
[null,null,null,"V2",null,null,0,"",null,null,5200630295,"Leca Isoblokk 30 cm Lavblokk 9 cm",51972972,0,null,"stk",{"$f":"ROUNDUP(((M34*15)+((M35+M38)*22)),0)","v":0},"kg",{"$f":"ROUNDUP(((M47*15)+((M48+M51)*22)),0)","v":0},"kg",{"$f":"ROUNDUP(((M60*15)+((M61+M64)*22)),0)","v":0},"kg",null,null,null,null,null,null,0,0,0]
[null,null,null,"V3",null,null,0,"",null,null,null,"Leca Isoblokk U-blokk 30 cm",60040381,0,null,"stk",null,null,null,null,null,null,null,null,"M5","B20",null,null,{"$f":"SUM(AC8:AC19)","v":0},{"$f":"SUM(AD8:AD19)","v":0},{"$f":"SUM(AE8:AE19)","v":0}]
[null,null,null,"V4",null,null,0,"",null,null,null,"Leca Isobjelke komplett, BHL = 30x20x180 cm   ",60047858,0,null,"stk",null,null,null,null,null,null,null,null,{"$f":"SUM(Q18,S18,U18)","v":0},{"$f":"SUM(Q19,S19,U19)","v":0}]
[null,null,null,"V5",null,null,0,"",null,null,null,"Laftestrimmel 90 mm for Leca Isoblokk ",23387491,{"$f":"ROUNDUP(Y18/18,0)","v":0},null,"rull",null,null,null,null,null,null,null,null,null,null,null,null,"Fiberpuss","Arm.nett","Hjørnelist "]
[null,null,null,"V6",null,null,0,"",null,null,null,"Leca Sikksakkarmering 22,5 cm",41691792,{"$f":"ROUNDUP(Z18/30.5,0)","v":0},null,"pakke",null,null,null,null,null,null,null,null,"Vegg 1","Vegg 2","Vegg 3",null,{"$f":"ROUNDUP(((M41+M54+M67)-G13)*14,0)","v":0},{"$f":"ROUNDUP(((M41+M54+M67)-G13)*1.15,0)","v":0},{"$f":"ROUNDUP(AC20+AD20+AE20+(G10*G9)+(G34*G33)+(G57*G56),0)","v":0}]
[null,null,null,"V7",null,null,0,"",null,null,null,"Leca Fugearmering 18 mm storpakke",47095300,{"$f":"INT(Z15)","v":0},null,"pakke",null,null,null,null,null,null,null,null,{"$f":"E18*F18*G18","v":0},{"$f":"E41*F41*G41","v":0},{"$f":"E64*F64*G64","v":0}]
[null,null,null,"V8",null,null,0,"",null,null,null,"Leca Fugearmering 18 mm småpakke",46343273,{"$f":"(Z15-INT(Z15))*10","v":0},null,"pakke",null,null,null,null,null,null,null,null,0,0,0,null,"Startlist","Silikon.m","Silikon.p"]
[null,null,null,"V9",null,null,0,"",null,null,null,"Leca U-blokkarmering småpakke",10583961,{"$f":"ROUNDUP(AA18/20,0)","v":0},null,"pakke",null,null,null,null,null,null,null,null,0,0,0,null,{"$f":"G8","v":0},{"$f":"ROUNDUP(((M41+M54+M67)-G13)*0.3,0)","v":0},{"$f":"ROUNDUP(((M41+M54+M67)-G13)*2.9,0)","v":0}]
[null,null,null,"V10",null,null,0,"",null,null,null,"Weber Murmørtel M5 plastsekk",55244204,{"$f":"ROUNDUP(Y21/25,0)","v":0},null,"sekk",null,null,null,null,null,null,null,null,0,0,0]
[null,null,null,"V11",null,null,0,"",null,null,null,"Weber B20 plastsekk",55244174,{"$f":"ROUNDUP(Z21/25,0)","v":0},null,"sekk",null,null,null,null,null,null,null,null,0,0,0,null,"Høyde","Antall skift","Lavblokk"]
[null,null,null,"V12",null,null,0,"",null,null,null,"Weber Grå Slemming 20 kg",50410636,{"$f":"ROUNDUP((G13*6)/20,0)","v":0},null,"sekk",null,null,null,null,null,null,null,null,0,0,0,null,0,0,"Nei"]
[null,null,null,null,null,null,null,null,null,null,null,"Vegg 1",null,null,null,null,null,null,null,null,null,null,null,null,0,0,0,null,0.63,3,"Nei"]
[null,null,"Vegg 2","Veggtype",null,null,"Yttervegg",null,null,null,null,"Vegglengde",{"$f":"G8","v":0},"m",null,null,null,null,null,null,null,null,null,null,0,0,0,null,0.73,3.5,"Ja"]
[null,null,null,"Vegglengde",null,null,0,"m",null,null,null,"Vegghøyde",{"$f":"G9","v":0},"m",null,null,null,null,null,null,null,null,null,null,0,0,0,null,0.84,4,"Nei"]
[null,null,null,"Vegghøyde",null,null,0,"m",null,null,null,"Antall skift",{"$f":"IF(G7=\"grunnmur\",VLOOKUP(G9,AC29:AD55,2,FALSE),VLOOKUP(G9,AC56:AD91,2,FALSE))","v":0},"skift",null,null,null,null,null,null,null,null,null,null,0,0,0,null,0.94,4.5,"Ja"]
[null,null,null,"Antall hjørner",null,null,0,"stk",null,null,null,"Antall løpemeter såleblokk",{"$f":"IF(G11=\"Ja\",G8,0)","v":0},"m",null,null,null,null,null,null,null,null,null,null,0,0,0,null,1.05,5,"Nei"]
[null,null,null,"Såleblokk",null,null,"Nei",null,null,null,null,"Antall løpemeter U-blokk murkrone",{"$f":"IF(G12=\"Ja\",G8,0)","v":0},"m",null,null,null,null,null,null,null,null,null,null,0,0,0,null,1.1499999999999999,5.5,"Ja"]
[null,null,null,"U-blokk",null,null,"Nei",null,null,null,null,"Antall stk hjørne",{"$f":"G10","v":0},"stk",null,null,null,null,null,null,null,null,null,null,{"$f":"SUM(Y24:Y35)","v":0},{"$f":"SUM(Z24:Z35)","v":0},{"$f":"SUM(AA24:AA35)","v":0},null,1.26,6,"Nei"]
[null,null,null,"Antall skift:",null,null,{"$f":"M46","v":0},"skift",null,null,null,"Antall lysåpninger inntil 1,5 m",{"$f":"SUMIF(H18:H29,\"Isobjelke komplett 180 cm\",G18:G29)","v":0},"stk",null,null,null,null,null,null,null,null,null,null,null,null,null,null,1.36,6.5,"Ja"]
[null,null,null,"Netto veggareal:",null,null,{"$f":"M54","v":0},"m2",null,null,null,"Antall løpemeter U-blokk over åpninger",{"$f":"AA51","v":0},"m",null,null,null,null,null,null,null,null,null,null,"Vegg 1","U-blokkbjelke","Lengde",null,1.47,7,"Nei"]
[null,null,null,null,null,null,null,null,null,null,null,"Totalt åpningsareal",{"$f":"Y36","v":0},"m2",null,null,null,null,null,null,null,null,null,null,"V1",{"$f":"IF(H18=\"U-Blokk overdekning\",\"Ja\",\"Nei\")","v":"Nei"},{"$f":"IF(Z39=\"Ja\",(E18+0.5)*G18,0)","v":0},null,1.57,7.5,"Ja"]
[null,null,null,null,"Bredde","Høyde","Antall",null,null,null,null,"Brutto veggareal",{"$f":"M32*M31","v":0},"m2",null,null,null,null,null,null,null,null,null,null,"V2","Nei",0,null,1.68,8,"Nei"]
[null,null,null,"V1",null,null,0,{"$f":"IF(AND(ISNUMBER(E41),E41>0,F41>0,G41>0),IF(E41<=1.5,$Y$84,IF(AND(E41>1.5,E41<=2.5),$Y$85,\"Krever tiltak (mengdeberegnes ikke)\")),\"\")","v":""},null,null,null,"Netto veggareal",{"$f":"M40-M39","v":0},"m2",null,null,null,null,null,null,null,null,null,null,"V3","Nei",0,null,1.78,8.5,"Ja"]
[null,null,null,"V2",null,null,0,"",null,null,null,null,null,null,null,null,null,null,null,null,null,null,null,null,"V4","Nei",0,null,1.89,9,"Nei"]
[null,null,null,"V3",null,null,0,"",null,null,null,"Vegg 2",null,null,null,null,null,null,null,null,null,null,null,null,"V5","Nei",0,null,1.99,9.5,"Ja"]
[null,null,null,"V4",null,null,0,"",null,null,null,"Vegglengde",{"$f":"G32","v":0},"m",null,null,null,null,null,null,null,null,null,null,"V6","Nei",0,null,2.1,10,"Nei"]
[null,null,null,"V5",null,null,0,"",null,null,null,"Vegghøyde",{"$f":"G33","v":0},"m",null,null,null,null,null,null,null,null,null,null,"V7","Nei",0,null,2.2000000000000002,10.5,"Ja"]
[null,null,null,"V6",null,null,0,"",null,null,null,"Antall skift",{"$f":"IF(G31=\"grunnmur\",VLOOKUP(G33,AC29:AD55,2,FALSE),VLOOKUP(G33,AC56:AD91,2,FALSE))","v":0},"skift",null,null,null,null,null,null,null,null,null,null,"V8","Nei",0,null,2.31,11,"Nei"]
[null,null,null,"V7",null,null,0,"",null,null,null,"Antall løpemeter såleblokk",{"$f":"IF(G35=\"Ja\",G32,0)","v":0},"m",null,null,null,null,null,null,null,null,null,null,"V9","Nei",0,null,2.41,11.5,"Ja"]
[null,null,null,"V8",null,null,0,"",null,null,null,"Antall løpemeter U-blokk",{"$f":"IF(G36=\"Ja\",G32,0)","v":0},"m",null,null,null,null,null,null,null,null,null,null,"V10","Nei",0,null,2.52,12,"Nei"]
[null,null,null,"V9",null,null,0,"",null,null,null,"Antall stk hjørne",{"$f":"G34","v":0},"stk",null,null,null,null,null,null,null,null,null,null,"V11","Nei",0,null,2.62,12.5,"Ja"]
[null,null,null,"V10",null,null,0,"",null,null,null,"Antall lysåpninger inntil 1,5 m",{"$f":"SUMIF(H41:H52,\"Isobjelke komplett 180 cm\",G41:G52)","v":0},"stk",null,null,null,null,null,null,null,null,null,null,"V12","Nei",0,null,2.73,13,"Nei"]
[null,null,null,"V11",null,null,0,"",null,null,null,"Antall løpemeter U-blokk over åpninger",{"$f":"AA66","v":0},"m",null,null,null,null,null,null,null,null,null,null,null,null,{"$f":"SUM(AA39:AA50)","v":0},null,2.83,13.5,"Ja"]
[null,null,null,"V12",null,null,0,"",null,null,null,"Totalt åpningsareal",{"$f":"Z36","v":0},"m2",null,null,null,null,null,null,null,null,null,null,null,null,null,null,2.94,14,"Nei"]
[null,null,null,null,null,null,null,null,null,null,null,"Brutto veggareal",{"$f":"M45*M44","v":0},"m2",null,null,null,null,null,null,null,null,null,null,"Vegg 2","U-blokkbjelke","Lengde",null,3.04,14.5,"Ja"]
[null,null,"Vegg 3","Veggtype",null,null,"Yttervegg",null,null,null,null,"Netto veggareal",{"$f":"M53-M52","v":0},"m2",null,null,null,null,null,null,null,null,null,null,"V1",{"$f":"IF(H41=\"U-Blokk overdekning\",\"Ja\",\"Nei\")","v":"Nei"},{"$f":"IF(Z54=\"Ja\",(E41+0.5)*G41,0)","v":0},null,3.15,15,"Nei"]
[null,null,null,"Vegglengde",null,null,0,"m",null,null,null,null,null,null,null,null,null,null,null,null,null,null,null,null,"V2","Nei",0,null,3.25,15.5,"Ja"]
[null,null,null,"Vegghøyde",null,null,0,"m",null,null,null,"Vegg 3",null,null,null,null,null,null,null,null,null,null,null,null,"V3","Nei",0,null,0,0,"Nei"]
[null,null,null,"Antall hjørner",null,null,0,"stk",null,null,null,"Vegglengde",{"$f":"G55","v":0},"m",null,null,null,null,null,null,null,null,null,null,"V4","Nei",0,null,0.2,1,"Nei"]
[null,null,null,"Såleblokk",null,null,"Nei",null,null,null,null,"Vegghøyde",{"$f":"G56","v":0},"m",null,null,null,null,null,null,null,null,null,null,"V5","Nei",0,null,0.3,1.5,"Ja"]
[null,null,null,"U-blokk",null,null,"Nei",null,null,null,null,"Antall skift",{"$f":"IF(G54=\"grunnmur\",VLOOKUP(G56,AC29:AD55,2,FALSE),VLOOKUP(G56,AC56:AD91,2,FALSE))","v":0},"skift",null,null,null,null,null,null,null,null,null,null,"V6","Nei",0,null,0.4,2,"Nei"]
[null,null,null,"Antall skift:",null,null,{"$f":"M59","v":0},"skift",null,null,null,"Antall løpemeter såleblokk",{"$f":"IF(G58=\"Ja\",G55,0)","v":0},"m",null,null,null,null,null,null,null,null,null,null,"V7","Nei",0,null,0.5,2.5,"Ja"]
[null,null,null,"Netto veggareal:",null,null,{"$f":"M67","v":0},"m2",null,null,null,"Antall løpemeter U-blokk",{"$f":"IF(G59=\"Ja\",G55,0)","v":0},"m",null,null,null,null,null,null,null,null,null,null,"V8","Nei",0,null,0.6,3,"Nei"]
[null,null,null,null,null,null,null,null,null,null,null,"Antall stk hjørne",{"$f":"G57","v":0},"stk",null,null,null,null,null,null,null,null,null,null,"V9","Nei",0,null,0.7,3.5,"Ja"]
[null,null,null,null,"Bredde","Høyde","Antall",null,null,null,null,"Antall lysåpninger inntil 1,5 m",{"$f":"SUMIF(H64:H75,\"Isobjelke komplett 180 cm\",G64:G75)","v":0},"stk",null,null,null,null,null,null,null,null,null,null,"V10","Nei",0,null,0.8,4,"Nei"]
[null,null,null,"V1",null,null,0,{"$f":"IF(AND(ISNUMBER(E64),E64>0,F64>0,G64>0),IF(E64<=1.5,$Y$84,IF(AND(E64>1.5,E64<=2.5),$Y$85,\"Krever tiltak (mengdeberegnes ikke)\")),\"\")","v":""},null,null,null,"Antall løpemeter U-blokk over åpninger",{"$f":"AA81","v":0},"m",null,null,null,null,null,null,null,null,null,null,"V11","Nei",0,null,0.9,4.5,"Ja"]
[null,null,null,"V2",null,null,0,"",null,null,null,"Totalt åpningsareal",{"$f":"AA36","v":0},"m2",null,null,null,null,null,null,null,null,null,null,"V12","Nei",0,null,1,5,"Nei"]
[null,null,null,"V3",null,null,0,"",null,null,null,"Brutto veggareal",{"$f":"M58*M57","v":0},"m2",null,null,null,null,null,null,null,null,null,null,null,null,{"$f":"SUM(AA54:AA65)","v":0},null,1.1000000000000001,5.5,"Ja"]
[null,null,null,"V4",null,null,0,"",null,null,null,"Netto veggareal",{"$f":"M66-M65","v":0},"m2",null,null,null,null,null,null,null,null,null,null,null,null,null,null,1.2,6,"Nei"]
[null,null,null,"V5",null,null,0,"",null,null,null,null,null,null,null,null,null,null,null,null,null,null,null,null,"Vegg 3","U-blokkbjelke","Lengde",null,1.3,6.5,"Ja"]
[null,null,null,"V6",null,null,0,"",null,null,null,null,null,null,null,null,null,null,null,null,null,null,null,null,"V1",{"$f":"IF(H64=\"U-Blokk overdekning\",\"Ja\",\"Nei\")","v":"Nei"},{"$f":"IF(Z69=\"Ja\",(E64+0.5)*G64,0)","v":0},null,1.4,7,"Nei"]
[null,null,null,"V7",null,null,0,"",null,null,null,null,null,null,null,null,null,null,null,null,null,null,null,null,"V2","Nei",0,null,1.5,7.5,"Ja"]
[null,null,null,"V8",null,null,0,"",null,null,null,null,null,null,null,null,null,null,null,null,null,null,null,null,"V3","Nei",0,null,1.6,8,"Nei"]
[null,null,null,"V9",null,null,0,"",null,null,null,null,null,null,null,null,null,null,null,null,null,null,null,null,"V4","Nei",0,null,1.7,8.5,"Ja"]
[null,null,null,"V10",null,null,0,"",null,null,null,null,null,null,null,null,null,null,null,null,null,null,null,null,"V5","Nei",0,null,1.8,9,"Nei"]
[null,null,null,"V11",null,null,0,"",null,null,null,null,null,null,null,null,null,null,null,null,null,null,null,null,"V6","Nei",0,null,1.9,9.5,"Ja"]
[null,null,null,"V12",null,null,0,"",null,null,null,null,null,null,null,null,null,null,null,null,null,null,null,null,"V7","Nei",0,null,2,10,"Nei"]
[null,null,null,null,null,null,null,null,null,null,null,null,null,null,null,null,null,null,null,null,null,null,null,null,"V8","Nei",0,null,2.1,10.5,"Ja"]
[null,null,null,null,null,null,null,null,null,null,null,null,null,null,null,null,null,null,null,null,null,null,null,null,"V9","Nei",0,null,2.2000000000000002,11,"Nei"]
[null,null,null,"Merk: Det anbefales å bruke mørtelkasser ved legging av leca. Ta kontakt med kundeservice for mer informasjon.",null,null,null,null,null,null,null,null,null,null,null,null,null,null,null,null,null,null,null,null,"V10","Nei",0,null,2.2999999999999998,11.5,"Ja"]
[null,null,null,null,null,null,null,null,null,null,null,null,null,null,null,null,null,null,null,null,null,null,null,null,"V11","Nei",0,null,2.4,12,"Nei"]
[null,null,null,null,null,null,null,null,null,null,null,null,null,null,null,null,null,null,null,null,null,null,null,null,"V12","Nei",0,null,2.5,12.5,"Ja"]
[null,null,null,null,null,null,null,null,null,null,null,null,null,null,null,null,null,null,null,null,null,null,null,null,null,null,{"$f":"SUM(AA69:AA80)","v":0},null,2.6,13,"Nei"]
[null,null,null,null,null,null,null,null,null,null,null,null,null,null,null,null,null,null,null,null,null,null,null,null,null,null,null,null,2.7,13.5,"Ja"]
[null,null,null,null,null,null,null,null,null,null,null,null,null,null,null,null,null,null,null,null,null,null,null,null,"Liste \"bjelke1\"",null,null,null,2.8,14,"Nei"]
[null,null,null,null,null,null,null,null,null,null,null,null,null,null,null,null,null,null,null,null,null,null,null,null,"Isobjelke komplett 180 cm",null,null,null,2.9,14.5,"Ja"]
[null,null,null,null,null,null,null,null,null,null,null,null,null,null,null,null,null,null,null,null,null,null,null,null,"U-Blokk overdekning",null,null,null,3,15,"Nei"]
[null,null,null,null,null,null,null,null,null,null,null,null,null,null,null,null,null,null,null,null,null,null,null,null,"Annet (mengdeberegnes ikke)",null,null,null,3.1,15.5,"Ja"]
[null,null,null,null,null,null,null,null,null,null,null,null,null,null,null,null,null,null,null,null,null,null,null,null,"Liste \"bjelke2\"",null,null,null,3.2,16,"Nei"]
[null,null,null,null,null,null,null,null,null,null,null,null,null,null,null,null,null,null,null,null,null,null,null,null,"Isobjelke komplett 300 cm",null,null,null,3.3,16.5,"Ja"]
[null,null,null,null,null,null,null,null,null,null,null,null,null,null,null,null,null,null,null,null,null,null,null,null,"U-Blokk overdekning",null,null,null,3.4,17,"Nei"]
[null,null,null,null,null,null,null,null,null,null,null,null,null,null,null,null,null,null,null,null,null,null,null,null,"Annet (mengdeberegnes ikke)",null,null,null,3.5,17.5,"Ja"]
[null,null,null,null,null,null,null,null,null,null,null,null,null,null,null,null,null,null,null,null,null,null,null,null,null,null,null,null,3.6,18,"Nei"]

{"sheet":"ISO 25","index":6,"n_rows":78,"n_cols":29,"rows_kept":78,"cut":false,"hidden":true,"merged":[[30,2,51,2],[53,2,74,2],[5,14,5,15],[3,5,3,6],[32,10,32,12],[6,12,6,13],[4,3,4,4],[5,3,5,4],[5,18,5,19],[12,14,13,14],[12,15,13,15],[12,16,13,16],[12,17,13,17],[12,18,13,18],[12,19,13,19],[5,16,5,17]]}
[]
[]
[]
[]
[null,null,null,"ISOBLOKK 25"]
[null,null,null,"Inndata",null,null,null,null,null,null,null,null,null,null,"Vegg 1",null,"Vegg 2",null,"Vegg 3"]
[null,null,null,"Vegglengde",null,"(inntasting)",0,"m",null,5200626735,null,null,null,null,{"$f":"IF(G11=\"Ja\",ROUNDUP(L37*2,0),0)","v":0},"pc",{"$f":"IF(G35=\"Ja\",ROUNDUP(L50*2,0),0)","v":0},"pc",{"$f":"IF(G58=\"Ja\",ROUNDUP(L63*2,0),0)","v":0},"pc",null,null,"Tilpas - V1","Tilpas - V2","Tilpas - V3",null,"Hjørnelist v1","Hjørnelist v2","Hjørnelist v3"]
[null,null,null,"Vegghøyde",null,"(flervalg)",0,"m",null,5200694449,null,null,null,null,{"$f":"ROUNDUP((L44*7.7)-O9-(O10/2)-(O11/2),0)","v":0},"pc",{"$f":"ROUNDUP((L57*7.7)-Q9-(Q10/2)-(Q11/2),0)","v":0},"pc",{"$f":"ROUNDUP((L70*7.7)-S9-(S10/2)-(S11/2),0)","v":0},"pc",null,null,{"$f":"VLOOKUP(G8,W23:Y59,3,FALSE)","v":"Nei"},{"$f":"VLOOKUP(G32,W23:Y59,3,FALSE)","v":"Nei"},{"$f":"VLOOKUP(G55,W24:Y59,3,FALSE)","v":"Nei"},null,{"$f":"(E18+(F18*2))*G18","v":0},{"$f":"(E41+(F41*2))*G41","v":0},{"$f":"(E64+(F64*2))*G64","v":0}]
[null,null,null,"Antall hjørner",null,"(inntasting)",0,"stk",null,5200694709,null,null,null,null,{"$f":"ROUNDUP((L39*L36)+(L40*L35*3)+(L41*2.4),0)-IF(G12=\"Ja\",L39,0)","v":0},"pc",{"$f":"ROUNDUP((L52*L49)+(L53*L48*3)+(L54*2.4),0)-IF(G36=\"Ja\",L52,0)","v":0},"pc",{"$f":"ROUNDUP((L65*L62)+(L66*L61*3)+(L67*2.4),0)-IF(G59=\"Ja\",L65,0)","v":0},"pc",null,null,null,null,null,null,0,0,0]
[null,null,null,"Antall åpne ender",null,"(inntasting)",0,"stk",null,5200694711,null,null,null,null,{"$f":"IF(W8=\"Ja\",L34*2,0)","v":0},"pc",{"$f":"IF(X8=\"Ja\",L47*2,0)","v":0},"pc",{"$f":"IF(Y8=\"Ja\",L60*2,0)","v":0},"pc",null,null,"U-blokk","Såleblokk",null,null,0,0,0]
[null,null,null,"Såleblokk",null,"(flervalg)","Ja",null,null,5200687074,null,null,null,null,{"$f":"IF(G12=\"Ja\",ROUNDUP(L38*4,0),0)","v":0},"pc",{"$f":"IF(G36=\"Ja\",ROUNDUP(L51*4,0),0)","v":0},"pc",{"$f":"IF(G59=\"Ja\",ROUNDUP(L64*4,0),0)","v":0},"pc",null,null,"Ja","Ja",null,null,0,0,0]
[null,null,null,"U-blokk",null,"(flervalg)","Ja",null,null,5200626806,null,"Forside",null,"Lecablokker",{"$f":"ROUNDUP(L44*4.2,0)","v":0},"m",{"$f":"ROUNDUP(L57*4.2,0)","v":0},"m",{"$f":"ROUNDUP(L70*5.2,0)","v":0},"m",null,null,"Nei","Nei",null,null,0,0,0]
[null,null,null,"Puss (slemming) under bakken",null,"(inntasting)",0,"m2",null,5200642507,null,null,null,null,{"$f":"ROUNDUP(L44*4.2,0)","v":0},"m",{"$f":"ROUNDUP(L57*4.2,0)","v":0},"m",{"$f":"ROUNDUP(L70*4.2,0)","v":0},"m",null,null,null,null,null,null,0,0,0]
[null,null,null,"Antall skift:",null,null,{"$f":"L36","v":0},"skift",null,5200633054,null,null,null,null,null,null,null,null,null,null,null,null,"Fugearmering","Pakker",null,null,0,0,0]
[null,null,null,"Netto veggareal:",null,null,{"$f":"L44","v":0},"m2",null,5200626795,null,null,null,null,{"$f":"ROUNDUP(((L37+L38)*1.1),0)","v":0},"m",{"$f":"ROUNDUP(((L50+L51)*1.1),0)","v":0},"m",{"$f":"ROUNDUP(((L63+L64)*1.1),0)","v":0},"m",null,null,{"$f":"SUM(O13,Q13,S13)","v":0},{"$f":"ROUNDUP(W15/400,1)","v":0},null,null,0,0,0]
[null,null,null,null,null,null,null,null,null,5200631518,"Materialliste:",null,null,null,{"$f":"ROUNDUP(L44*14,0)","v":0},"kg",{"$f":"ROUNDUP(L57*14,0)","v":0},"kg",{"$f":"ROUNDUP(L70*14,0)","v":0},"kg",null,null,null,null,null,null,0,0,0]
[null,null,null,null,"Bredde","Høyde","Antall",null,null,5200630295,"Produkt","Nobb","Antall","enhet",{"$f":"ROUNDUP((L37*15)+(L38*25),0)","v":0},"kg",{"$f":"ROUNDUP((L50*15)+(L51*25),0)","v":0},"kg",{"$f":"ROUNDUP((L63*15)+(L64*25),0)","v":0},"kg",null,null,"Laftestrimmel","U-blokkarm",null,null,0,0,0]
[null,null,null,"V1",null,null,0,null,null,null,"Leca Såleblokk 33 cm",10523777,{"$f":"SUM(O7,Q7,S7)","v":0},"stk",null,null,null,null,null,null,null,null,{"$f":"SUM(O12,Q12,S12)","v":0},{"$f":"SUM(O15,Q15,S15)","v":0},null,null,0,0,0]
[null,null,null,"V2",null,null,0,null,null,null,"Leca Isoblokk 25 cm standardblokk LSX",50523673,{"$f":"SUM(O8,Q8,S8)","v":0},"stk",null,null,null,null,null,null,null,null,null,null,null,null,0,0,0]
[null,null,null,"V3",null,null,0,null,null,null,"Leca Isoblokk 25 cm hjørneblokk LSX",50523616,{"$f":"SUM(O9,Q9,S9)","v":0},"stk",null,null,null,null,null,null,null,null,"M5","B20",null,null,{"$f":"SUM(AA8:AA19)","v":0},{"$f":"SUM(AB8:AB19)","v":0},{"$f":"SUM(AC8:AC19)","v":0}]
[null,null,null,"V4",null,null,0,null,null,null,"Leca Isoblokk 25 cm tilpasningsblokk LSX",50523684,{"$f":"SUM(O10,Q10,S10)","v":0},"stk",null,null,null,null,null,null,null,null,{"$f":"SUM(O16,Q16,S16)","v":0},{"$f":"SUM(O17,Q17,S17)","v":0}]
[null,null,null,"V5",null,null,0,null,null,null,"Leca Iso U-blokk 25 cm LSX",10523645,{"$f":"SUM(O11,Q11,S11)","v":0},"stk",null,null,null,null,null,null,null,null,null,null,null,null,"Fiberpuss","Arm.nett","Hjørnelist "]
[null,null,null,"V6",null,null,0,null,null,null,"Laftestrimmel 90 mm for Leca Isoblokk ",23387491,{"$f":"ROUNDUP(W18/18,0)","v":0},"rull",null,null,null,null,null,null,null,null,"Høyde","Antall skift","Lavblokk",null,{"$f":"ROUNDUP(((L44+L57+L70)-G13)*14,0)","v":0},{"$f":"ROUNDUP(((L44+L57+L70)-G13)*1.15,0)","v":0},{"$f":"ROUNDUP(AA20+AB20+AC20+(G9*G8)+(G33*G32)+(G56*G55),0)","v":0}]
[null,null,null,"V7",null,null,0,null,null,null,"Leca Fugearmering 18 mm storpakke",47095300,{"$f":"INT(X15)","v":0},"pakke",null,null,null,null,null,null,null,null,0,0,"Nei"]
[null,null,null,"V8",null,null,0,null,null,null,"Leca Fugearmering 18 mm småpakke",46343273,{"$f":"(X15-INT(X15))*10","v":0},"pakke",null,null,null,null,null,null,null,null,0.26,1,"Nei",null,"Startlist","Silikon.m","Silikon.p"]
[null,null,null,"V9",null,null,0,null,null,null,"Leca U-blokkarmering småpakke",10583961,{"$f":"ROUNDUP(X18/20,0)","v":0},"pakke",null,null,null,null,null,null,null,null,0.39,1.5,"Ja",null,{"$f":"G7","v":0},{"$f":"ROUNDUP(((L44+L57+L70)-G13)*0.3,0)","v":0},{"$f":"ROUNDUP(((L44+L57+L70)-G13)*2.9,0)","v":0}]
[null,null,null,"V10",null,null,0,null,null,null,"Weber Murmørtel M5 plastsekk",55244204,{"$f":"ROUNDUP(W21/25,0)","v":0},"sekk",null,null,null,null,null,null,null,null,0.52,2,"Nei"]
[null,null,null,"V11",null,null,0,null,null,null,"Weber B20 plastsekk",55244174,{"$f":"ROUNDUP(X21/25,0)","v":0},"sekk",null,null,null,null,null,null,null,null,0.65,2.5,"Ja",null,"Slemming","KC 50/50"]
[null,null,null,"V12",null,null,0,null,null,null,"Weber Grå Slemming 20 kg",50410636,{"$f":"ROUNDUP(AA29/20,0)","v":0},"sekk",null,null,null,null,null,null,null,null,0.78,3,"Nei",null,{"$f":"ROUNDUP(G13*6,0)","v":0},{"$f":"ROUNDUP((G15+G38+G61)*17,0)","v":0}]
[null,null,null,null,null,null,null,null,null,null,null,null,null,null,null,null,null,null,null,null,null,null,0.91,3.5,"Ja"]
[null,null,"Vegg 2","Vegglengde",null,null,0,"m",null,null,null,null,null,null,null,null,null,null,null,null,null,null,1.04,4,"Nei"]
[null,null,null,"Vegghøyde",null,null,0,"m",null,null,null,null,null,null,null,null,null,null,null,null,null,null,1.17,4.5,"Ja",null,"Vegg 1","Vegg 2","Vegg 3"]
[null,null,null,"Antall hjørner",null,null,0,"stk",null,null,"Vegg 1",null,null,null,null,null,null,null,null,null,null,null,1.3,5,"Nei",null,{"$f":"F18*2*G18","v":0},{"$f":"F41*2*G41","v":0},{"$f":"F64*2*G64","v":0}]
[null,null,null,"Antall åpne ender",null,null,0,"stk",null,null,"Vegglengde",{"$f":"G7","v":0},"m",null,null,null,null,null,null,null,null,null,1.43,5.5,"Ja",null,0,0,0]
[null,null,null,"Såleblokk",null,null,"Nei",null,null,null,"Vegghøyde",{"$f":"G8","v":0},"m",null,null,null,null,null,null,null,null,null,1.56,6,"Nei",null,0,0,0]
[null,null,null,"U-blokk",null,null,"Ja",null,null,null,"Antall skift",{"$f":"VLOOKUP(G8,W24:X59,2,FALSE)","v":0},"skift",null,null,null,null,null,null,null,null,null,1.69,6.5,"Ja",null,0,0,0]
[null,null,null,"Antall skift:",null,null,{"$f":"L49","v":0},"skift",null,null,"Antall løpemeter såleblokk",{"$f":"IF(G11=\"Ja\",G7,0)","v":0},"m",null,null,null,null,null,null,null,null,null,1.82,7,"Nei",null,0,0,0]
[null,null,null,"Netto veggareal:",null,null,{"$f":"L57","v":0},"m2",null,null,"Antall løpemeter U-blokk murkrone",{"$f":"IF(G12=\"Ja\",G7,0)","v":0},"m",null,null,null,null,null,null,null,null,null,1.95,7.5,"Ja",null,0,0,0]
[null,null,null,null,null,null,null,null,null,null,"Antall stk hjørne",{"$f":"G9","v":0},"stk",null,null,null,null,null,null,null,null,null,2.08,8,"Nei",null,0,0,0]
[null,null,null,null,"Bredde","Høyde","Antall",null,null,null,"Antall stk åpne ender",{"$f":"G10","v":0},"stk",null,null,null,null,null,null,null,null,null,2.21,8.5,"Ja",null,0,0,0]
[null,null,null,"V1",null,null,0,null,null,null,"Antall løpemeter vertikale smyg",{"$f":"AA45","v":0},"m",null,null,null,null,null,null,null,null,null,2.34,9,"Nei",null,0,0,0]
[null,null,null,"V2",null,null,0,null,null,null,"Totalt åpningsareal",{"$f":"AA59","v":0},"m2",null,null,null,null,null,null,null,null,null,2.4700000000000002,9.5,"Ja",null,0,0,0]
[null,null,null,"V3",null,null,0,null,null,null,"Brutto veggareal",{"$f":"L35*L34","v":0},"m2",null,null,null,null,null,null,null,null,null,2.6,10,"Nei",null,0,0,0]
[null,null,null,"V4",null,null,0,null,null,null,"Netto veggareal",{"$f":"L43-L42","v":0},"m2",null,null,null,null,null,null,null,null,null,2.73,10.5,"Ja",null,0,0,0]
[null,null,null,"V5",null,null,0,null,null,null,null,null,null,null,null,null,null,null,null,null,null,null,2.86,11,"Nei",null,{"$f":"SUM(AA33:AA44)","v":0},{"$f":"SUM(AB33:AB44)","v":0},{"$f":"SUM(AC33:AC44)","v":0}]
[null,null,null,"V6",null,null,0,null,null,null,"Vegg 2",null,null,null,null,null,null,null,null,null,null,null,2.99,11.5,"Ja"]
[null,null,null,"V7",null,null,0,null,null,null,"Vegglengde",{"$f":"G31","v":0},"m",null,null,null,null,null,null,null,null,null,3.12,12,"Nei",null,{"$f":"E18*F18*G18","v":0},{"$f":"E41*F41*G41","v":0},{"$f":"E64*F64*G64","v":0}]
[null,null,null,"V8",null,null,0,null,null,null,"Vegghøyde",{"$f":"G32","v":0},"m",null,null,null,null,null,null,null,null,null,3.25,12.5,"Ja",null,0,0,0]
[null,null,null,"V9",null,null,0,null,null,null,"Antall skift",{"$f":"VLOOKUP(G32,W24:X59,2,FALSE)","v":0},"skift",null,null,null,null,null,null,null,null,null,3.38,13,"Nei",null,0,0,0]
[null,null,null,"V10",null,null,0,null,null,null,"Antall løpemeter såleblokk",{"$f":"IF(G35=\"Ja\",G31,0)","v":0},"m",null,null,null,null,null,null,null,null,null,3.51,13.5,"Ja",null,0,0,0]
[null,null,null,"V11",null,null,0,null,null,null,"Antall løpemeter U-blokk",{"$f":"IF(G36=\"Ja\",G31,0)","v":0},"m",null,null,null,null,null,null,null,null,null,3.64,14,"Nei",null,0,0,0]
[null,null,null,"V12",null,null,0,null,null,null,"Antall stk hjørne",{"$f":"G33","v":0},"stk",null,null,null,null,null,null,null,null,null,3.77,14.5,"Ja",null,0,0,0]
[null,null,null,null,null,null,null,null,null,null,"Antall stk åpne ender",{"$f":"G34","v":0},"stk",null,null,null,null,null,null,null,null,null,3.9,15,"Nei",null,0,0,0]
[null,null,"Vegg 3","Vegglengde",null,null,0,"m",null,null,"Antall løpemeter vertikale smyg",{"$f":"AB45","v":0},"m",null,null,null,null,null,null,null,null,null,4.03,15.5,"Ja",null,0,0,0]
[null,null,null,"Vegghøyde",null,null,0,"m",null,null,"Totalt åpningsareal",{"$f":"AB59","v":0},"m2",null,null,null,null,null,null,null,null,null,4.16,16,"Nei",null,0,0,0]
[null,null,null,"Antall hjørner",null,null,0,"stk",null,null,"Brutto veggareal",{"$f":"L48*L47","v":0},"m2",null,null,null,null,null,null,null,null,null,4.29,16.5,"Ja",null,0,0,0]
[null,null,null,"Antall åpne ender",null,null,0,"stk",null,null,"Netto veggareal",{"$f":"L56-L55","v":0},"m2",null,null,null,null,null,null,null,null,null,4.42,17,"Nei",null,0,0,0]
[null,null,null,"Såleblokk",null,null,"Nei",null,null,null,null,null,null,null,null,null,null,null,null,null,null,null,4.55,17.5,"Ja",null,0,0,0]
[null,null,null,"U-blokk",null,null,"Ja",null,null,null,"Vegg 3",null,null,null,null,null,null,null,null,null,null,null,4.68,18,"Nei",null,{"$f":"SUM(AA47:AA58)","v":0},{"$f":"SUM(AB47:AB58)","v":0},{"$f":"SUM(AC47:AC58)","v":0}]
[null,null,null,"Antall skift:",null,null,{"$f":"L62","v":0},"skift",null,null,"Vegglengde",{"$f":"G54","v":0},"m"]
[null,null,null,"Netto veggareal:",null,null,{"$f":"L70","v":0},"m2",null,null,"Vegghøyde",{"$f":"G55","v":0},"m"]
[null,null,null,null,null,null,null,null,null,null,"Antall skift",{"$f":"VLOOKUP(G55,W24:X59,2,FALSE)","v":0},"skift"]
[null,null,null,null,"Bredde","Høyde","Antall",null,null,null,"Antall løpemeter såleblokk",{"$f":"IF(G58=\"Ja\",G54,0)","v":0},"m"]
[null,null,null,"V1",null,null,0,null,null,null,"Antall løpemeter U-blokk",{"$f":"IF(G59=\"Ja\",G54,0)","v":0},"m"]
[null,null,null,"V2",null,null,0,null,null,null,"Antall stk hjørne",{"$f":"G56","v":0},"stk"]
[null,null,null,"V3",null,null,0,null,null,null,"Antall stk åpne ender",{"$f":"G57","v":0},"stk"]
[null,null,null,"V4",null,null,0,null,null,null,"Antall løpemeter vertikale smyg",{"$f":"AC45","v":0},"m"]
[null,null,null,"V5",null,null,0,null,null,null,"Totalt åpningsareal",{"$f":"AC59","v":0},"m2"]
[null,null,null,"V6",null,null,0,null,null,null,"Brutto veggareal",{"$f":"L61*L60","v":0},"m2"]
[null,null,null,"V7",null,null,0,null,null,null,"Netto veggareal",{"$f":"L69-L68","v":0},"m2"]
[null,null,null,"V8",null,null,0]
[null,null,null,"V9",null,null,0]
[null,null,null,"V10",null,null,0]
[null,null,null,"V11",null,null,0]
[null,null,null,"V12",null,null,0]
[]
[]
[null,null,null,"Merk: Det anbefales å bruke mørtelkasser ved legging av leca. Ta kontakt med kundeservice for mer informasjon."]

{"sheet":"Basic","index":7,"n_rows":82,"n_cols":29,"rows_kept":82,"cut":false,"hidden":true,"merged":[[62,10,62,12],[56,2,78,2],[32,2,54,2],[63,26,63,28],[6,14,6,15],[6,16,6,17],[6,18,6,19],[17,14,18,14],[17,15,18,15],[17,16,18,16],[17,17,18,17],[17,18,18,18],[17,19,18,19],[6,3,6,4],[31,26,31,28],[47,26,47,28],[15,26,15,28],[32,10,32,12],[47,10,47,12],[7,11,7,12],[5,2,5,4]]}
[]
[]
[]
[]
[]
[null,null,"Basicblokk"]
[null,null,null,"Inndata",null,null,null,null,null,null,null,null,null,null,"Vegg 1",null,"Vegg 2",null,"Vegg 3",null,null,null,null,null,null,null,"Fiberpuss","Arm.nett","Hjørnelist "]
[null,null,null,"Bredde",null,"(flervalg)","25 cm",null,null,5200626735,null,null,null,null,{"$f":"IF(G12=\"Ja\",ROUNDUP(L38*2,0),0)","v":0},"pc",{"$f":"IF(G37=\"Ja\",ROUNDUP(L53*2,0),0)","v":0},"pc",{"$f":"IF(G61=\"Ja\",ROUNDUP(L68*2,0),0)","v":0},"pc",null,null,"U-blokk","Såleblokk","25 cm",null,{"$f":"ROUNDUP(((L46+L61+L76)-G15)*14,0)","v":0},{"$f":"ROUNDUP(((L46+L61+L76)-G15)*1.15,0)","v":0},{"$f":"ROUNDUP(AA30+AB30+AC30+(G11*G10)+(G36*G35)+(G60*G59),0)","v":0}]
[null,null,null,"Vegglengde",null,"(inntasting)",0,"m",null,5200680003,null,"Forside",null,"Lecablokker",{"$f":"IF(L34=\"25\",ROUNDUP((L46*8)-O10-(O11/2),0),0)","v":0},"pc",{"$f":"IF(L49=\"25\",ROUNDUP((L61*8)-Q10-(Q11/2),0),0)","v":0},"pc",{"$f":"IF(L64=\"25\",ROUNDUP((L76*8)-S10-(S11/2),0),0)","v":0},"pc",null,null,"Ja","Ja","20 cm"]
[null,null,null,"Vegghøyde",null,"(flervalg)",0,"m",null,5200680010,null,null,null,null,{"$f":"IF(L34=\"25\",ROUNDUP(((L41*L36)+L43)*4,0)-IF(G13=\"Ja\",L41,0),0)","v":0},"pc",{"$f":"IF(L49=\"25\",ROUNDUP(((L56*L51)+L58)*4,0)-IF(G38=\"Ja\",L56,0),0)","v":0},"pc",{"$f":"IF(L64=\"25\",ROUNDUP(((L71*L66)+L73)*4,0)-IF(G62=\"Ja\",L71,0),0)","v":0},"pc",null,null,"Nei","Nei","15 cm",null,"Startlist","Silikon.m","Silikon.p"]
[null,null,null,"Antall hjørner",null,"(inntasting)",0,"stk",null,5200680007,null,null,null,null,{"$f":"IF(L34=\"25\",ROUNDUP((L39+L40)*4,0),0)","v":0},"pc",{"$f":"IF(L49=\"25\",ROUNDUP((L54+L55)*4,0),0)","v":0},"pc",{"$f":"IF(L64=\"25\",ROUNDUP((L69+L70)*4,0),0)","v":0},"pc",null,null,null,null,null,null,{"$f":"G9","v":0},{"$f":"ROUNDUP(((L46+L61+L76)-G15)*0.3,0)","v":0},{"$f":"ROUNDUP(((L46+L61+L76)-G15)*2.9,0)","v":0}]
[null,null,null,"Såleblokk",null,"(flervalg)","Nei",null,null,5200680005,null,null,null,null,{"$f":"IF(L34=\"20\",ROUNDUP((L46*8)-O13-(O14/2),0),0)","v":0},"pc",{"$f":"IF(L49=\"20\",ROUNDUP((L61*8)-Q13-(Q14/2),0),0)","v":0},"pc",{"$f":"IF(L64=\"20\",ROUNDUP((L76*8)-S10-(S11/2),0),0)","v":0},"pc",null,null,"Fugearmering","Pakker","U-blokkarm"]
[null,null,null,"U-blokk",null,"(flervalg)","Nei",null,null,5200680011,null,null,null,null,{"$f":"IF(L34=\"20\",ROUNDUP(((L41*L36)+L43)*4,0)-IF(G13=\"Ja\",L41,0),0)","v":0},"pc",{"$f":"IF(L49=\"20\",ROUNDUP(((L56*L51)+L58)*4,0)-IF(G38=\"Ja\",L56,0),0)","v":0},"pc",{"$f":"IF(L64=\"20\",ROUNDUP(((L71*L66)+L73)*4,0)-IF(G62=\"Ja\",L71,0),0)","v":0},"pc",null,null,{"$f":"SUM(O18,Q18,S18)","v":0},{"$f":"ROUNDUP(W13/400,1)","v":0},{"$f":"SUM(O20,Q20,S20)","v":0},null,"Slemming","KC 50/50"]
[null,null,null,"Hjørneblokker i vertikale smyg",null,"(flervalg)","Ja",null,null,5200680008,"Materialliste:",null,null,null,{"$f":"IF(L34=\"20\",ROUNDUP((L39+L40)*4,0),0)","v":0},"pc",{"$f":"IF(L49=\"20\",ROUNDUP((L54+L55)*4,0),0)","v":0},"pc",{"$f":"IF(L64=\"20\",ROUNDUP((L69+L70)*4,0),0)","v":0},"pc",null,null,null,null,null,null,{"$f":"ROUNDUP(G15*6,0)","v":0},{"$f":"ROUNDUP((G17+G41+G65)*17,0)","v":0}]
[null,null,null,"Puss (slemming) under bakken",null,"(inntasting)",0,"m2",null,5200680006,"Produkt","Nobb","Antall","enhet",{"$f":"IF(L34=\"15\",ROUNDUP((L46*8)-O16-(O17/2),0),0)","v":0},"pc",{"$f":"IF(L49=\"15\",ROUNDUP((L61*8)-Q16-(Q17/2),0),0)","v":0},"pc",{"$f":"IF(L64=\"15\",ROUNDUP((L76*8)-S16-(S17/2),0),0)","v":0},"pc",null,null,"B20","M5"]
[null,null,null,"Antall skift:",null,null,{"$f":"L37","v":0},"skift",null,5200680012,"Leca Såleblokk 33 cm",10523777,{"$f":"SUM(O8,Q8,S8)","v":0},"stk",{"$f":"IF(L34=\"15\",ROUNDUP(((L41*L36)+L43)*4,0)-IF(G13=\"Ja\",L41,0),0)","v":0},"pc",{"$f":"IF(L49=\"15\",ROUNDUP(((L56*L51)+L58)*4,0)-IF(G38=\"Ja\",L56,0),0)","v":0},"pc",{"$f":"IF(L64=\"15\",ROUNDUP(((L71*L66)+L73)*4,0)-IF(G62=\"Ja\",L71,0),0)","v":0},"pc",null,null,{"$f":"SUM(O22,Q22,S22)","v":0},{"$f":"SUM(O21,Q21,S21)","v":0},null,null,"Hjørnelist"]
[null,null,null,"Netto veggareal:",null,null,{"$f":"L46","v":0},"m2",null,5200680009,"Leca Basicblokk 25 cm LSX",49082717,0,"stk",{"$f":"IF(L34=\"15\",ROUNDUP((L39+L40)*4,0),0)","v":0},"pc",{"$f":"IF(L49=\"15\",ROUNDUP((L54+L55)*4,0),0)","v":0},"pc",{"$f":"IF(L64=\"15\",ROUNDUP((L69+L70)*4,0),0)","v":0},"pc",null,null,null,null,null,null,"Vegg 1","Vegg 2","Vegg 3"]
[null,null,null,null,null,null,null,null,null,5200642507,"Leca Basic Hjørneblokk 25 cm LSX",49082774,0,"stk",{"$f":"ROUNDUP(L46*4.2,0)","v":0},"m",{"$f":"ROUNDUP(L61*4.2,0)","v":0},"m",{"$f":"ROUNDUP(L76*4.2,0)","v":0},"m",null,null,"Vegg 1","Vegg 2","Vegg 3","B20",{"$f":"(E20+(F20*2))*G20","v":0},{"$f":"(E44+(F44*2))*G44","v":0},{"$f":"(E68+(F68*2))*G68","v":0}]
[null,null,null,null,"Bredde","Høyde","Antall",null,null,5200633054,"Leca Basic U-blokk 25 cm LSX",49082740,0,"stk",null,null,null,null,null,null,null,null,{"$f":"IF(L34=\"25\",ROUNDUP((L38*15)+((L39+L40)*42),0),0)","v":0},{"$f":"IF(L49=\"25\",ROUNDUP((L53*15)+((L54+L55)*42),0),0)","v":0},{"$f":"IF(L64=\"25\",ROUNDUP((L68*15)+((L69+L70)*42),0),0)","v":0},25,0,0,0]
[null,null,null,"V1",null,null,0,null,null,5200626795,"Leca Basicblokk 20 cm LSX",49082721,0,"stk",{"$f":"ROUNDUP(((L38+L39+L40)*1.1),0)","v":0},"m",{"$f":"ROUNDUP(((L53+L54+L55)*1.1),0)","v":0},"m",{"$f":"ROUNDUP(((L68+L69+L70)*1.1),0)","v":0},"m",null,null,{"$f":"IF(L34=\"20\",ROUNDUP((L38*15)+((L39+L40)*21),0),0)","v":0},{"$f":"IF(L49=\"20\",ROUNDUP((L53*15)+((L54+L55)*21),0),0)","v":0},{"$f":"IF(L64=\"20\",ROUNDUP((L68*15)+((L69+L70)*21),0),0)","v":0},20,0,0,0]
[null,null,null,"V2",null,null,0,null,null,5200631518,"Leca Basic Hjørneblokk 20 cm LSX",49082785,0,"stk",{"$f":"ROUNDUP(L46*13,0)","v":0},"kg",{"$f":"ROUNDUP(L61*13,0)","v":0},"kg",{"$f":"ROUNDUP(L76*13,0)","v":0},"kg",null,null,{"$f":"IF(L34=\"15\",ROUNDUP((L38*15)+((L39+L40)*17),0),0)","v":0},{"$f":"IF(L49=\"15\",ROUNDUP((L53*15)+((L54+L55)*17),0),0)","v":0},{"$f":"IF(L64=\"15\",ROUNDUP((L68*15)+((L69+L70)*17),0),0)","v":0},15,0,0,0]
[null,null,null,"V3",null,null,0,null,null,5200630295,"Leca Basic U-blokk 20 cm LSX",49082755,0,"stk",{"$f":"SUM(W19:W21)","v":0},"kg",{"$f":"SUM(X19:X21)","v":0},"kg",{"$f":"SUM(Y19:Y21)","v":0},"kg",null,null,null,null,null,null,0,0,0]
[null,null,null,"V4",null,null,0,null,null,null,"Leca Basicblokk 15 cm LSX",49082736,0,"stk",null,null,null,null,null,null,null,null,null,null,null,null,0,0,0]
[null,null,null,"V5",null,null,0,null,null,null,"Leca Basic Hjørneblokk 15 cm LSX",49082793,0,"stk",null,null,null,null,null,null,null,null,"Høyde","Antall skift",null,null,0,0,0]
[null,null,null,"V6",null,null,0,null,null,null,"Leca Basic U-blokk 15 cm LSX",49082766,0,"stk",null,null,null,null,null,null,null,null,0,0,null,null,0,0,0]
[null,null,null,"V7",null,null,0,null,null,null,"Leca Fugearmering 18 mm storpakke",47095300,{"$f":"INT(X13)","v":0},"pakke",null,null,null,null,null,null,null,null,0.25,1,null,null,0,0,0]
[null,null,null,"V8",null,null,0,null,null,null,"Leca Fugearmering 18 mm småpakke",46343273,{"$f":"(X13-INT(X13))*10","v":0},"pakke",null,null,null,null,null,null,null,null,0.5,2,null,null,0,0,0]
[null,null,null,"V9",null,null,0,null,null,null,"Leca U-blokkarmering småpakke",10583961,{"$f":"ROUNDUP(Y13/20,0)","v":0},"pakke",null,null,null,null,null,null,null,null,0.75,3,null,null,0,0,0]
[null,null,null,"V10",null,null,0,null,null,null,"Weber Murmørtel M5 plastsekk",55244204,{"$f":"ROUNDUP(X16/25,0)","v":0},"sekk",null,null,null,null,null,null,null,null,1,4,null,null,0,0,0]
[null,null,null,"V11",null,null,0,null,null,null,"Weber B20 plastsekk",55244174,{"$f":"ROUNDUP(W16/25,0)","v":0},"sekk",null,null,null,null,null,null,null,null,1.25,5,null,null,{"$f":"SUM(AA18:AA29)","v":0},{"$f":"SUM(AB18:AB29)","v":0},{"$f":"SUM(AC18:AC29)","v":0}]
[null,null,null,"V12",null,null,0,null,null,null,"Weber Grå Slemming 20 kg",50410636,{"$f":"ROUNDUP(AA14/20,0)","v":0},"bag",null,null,null,null,null,null,null,null,1.5,6]
[null,null,null,null,null,null,null,null,null,null,null,null,null,null,null,null,null,null,null,null,null,null,1.75,7,null,null,"Vertikale smyg"]
[null,null,"Vegg 2","Bredde",null,null,"20 cm",null,null,null,"Vegg 1",null,null,null,null,null,null,null,null,null,null,null,2,8,null,null,"Vegg 1","Vegg 2","Vegg 3"]
[null,null,null,"Vegglengde",null,null,0,"m",null,null,"Basicblokk",{"$f":"LEFT(G8,2)","v":"25"},"cm",null,null,null,null,null,null,null,null,null,2.25,9,null,null,{"$f":"F20*2*G20","v":0},{"$f":"F44*2*G44","v":0},{"$f":"F68*2*G68","v":0}]
[null,null,null,"Vegghøyde",null,null,0,"m",null,null,"Vegglengde",{"$f":"G9","v":0},"m",null,null,null,null,null,null,null,null,null,2.5,10,null,null,0,0,0]
[null,null,null,"Antall hjørner",null,null,0,"stk",null,null,"Vegghøyde",{"$f":"G10","v":0},"m",null,null,null,null,null,null,null,null,null,2.75,11,null,null,0,0,0]
[null,null,null,"Såleblokk",null,null,"Nei",null,null,null,"Antall skift",{"$f":"VLOOKUP(G10,W25:X60,2,FALSE)","v":0},"skift",null,null,null,null,null,null,null,null,null,3,12,null,null,0,0,0]
[null,null,null,"U-blokk",null,null,"Ja",null,null,null,"Antall løpemeter såleblokk",{"$f":"IF(G12=\"Ja\",G9,0)","v":0},"m",null,null,null,null,null,null,null,null,null,3.25,13,null,null,0,0,0]
[null,null,null,"Hjørneblokker i vertikale smyg",null,null,"Ja",null,null,null,"Antall løpemeter U-blokk murkrone",{"$f":"IF(G13=\"Ja\",G9,0)","v":0},"m",null,null,null,null,null,null,null,null,null,3.5,14,null,null,0,0,0]
[null,null,null,"Antall skift:",null,null,{"$f":"L52","v":0},"skift",null,null,"Antall løpemeter U-blokk overdekning",{"$f":"AA78","v":0},"m",null,null,null,null,null,null,null,null,null,3.75,15,null,null,0,0,0]
[null,null,null,"Netto veggareal:",null,null,{"$f":"L61","v":0},"m2",null,null,"Antall stk hjørne",{"$f":"G11","v":0},"stk",null,null,null,null,null,null,null,null,null,4,16,null,null,0,0,0]
[null,null,null,null,null,null,null,null,null,null,"Hjørneblokk i vertikale smyg",{"$f":"G14","v":"Ja"},null,null,null,null,null,null,null,null,null,null,4.25,17,null,null,0,0,0]
[null,null,null,null,"Bredde","Høyde","Antall",null,null,null,"Antall løpemeter vertikale smyg:",{"$f":"IF(L42=\"Ja\",AA46,0)","v":0},"m",null,null,null,null,null,null,null,null,null,4.5,18,null,null,0,0,0]
[null,null,null,"V1",null,null,0,null,null,null,"Totalt åpningsareal",{"$f":"AA62","v":0},"m2",null,null,null,null,null,null,null,null,null,4.75,19,null,null,0,0,0]
[null,null,null,"V2",null,null,0,null,null,null,"Brutto veggareal",{"$f":"L36*L35","v":0},"m2",null,null,null,null,null,null,null,null,null,5,20,null,null,0,0,0]
[null,null,null,"V3",null,null,0,null,null,null,"Netto veggareal",{"$f":"L45-L44","v":0},"m2",null,null,null,null,null,null,null,null,null,5.25,21,null,null,{"$f":"SUM(AA34:AA45)","v":0},{"$f":"SUM(AB34:AB45)","v":0},{"$f":"SUM(AC34:AC45)","v":0}]
[null,null,null,"V4",null,null,0,null,null,null,null,null,null,null,null,null,null,null,null,null,null,null,5.5,22]
[null,null,null,"V5",null,null,0,null,null,null,"Vegg 2",null,null,null,null,null,null,null,null,null,null,null,5.75,23,null,null,"Totalt åpningsareal"]
[null,null,null,"V6",null,null,0,null,null,null,"Basicblokk",{"$f":"LEFT(G33,2)","v":"20"},"cm",null,null,null,null,null,null,null,null,null,6,24,null,null,"Vegg 1","Vegg 2","Vegg 3"]
[null,null,null,"V7",null,null,0,null,null,null,"Vegglengde",{"$f":"G34","v":0},"m",null,null,null,null,null,null,null,null,null,6.25,25,null,null,{"$f":"E20*F20*G20","v":0},{"$f":"E44*F44*G44","v":0},{"$f":"E68*F68*G68","v":0}]
[null,null,null,"V8",null,null,0,null,null,null,"Vegghøyde",{"$f":"G35","v":0},"m",null,null,null,null,null,null,null,null,null,6.5,26,null,null,0,0,0]
[null,null,null,"V9",null,null,0,null,null,null,"Antall skift",{"$f":"VLOOKUP(G35,W25:X60,2,FALSE)","v":0},"skift",null,null,null,null,null,null,null,null,null,6.75,27,null,null,0,0,0]
[null,null,null,"V10",null,null,0,null,null,null,"Antall løpemeter såleblokk",{"$f":"IF(G37=\"Ja\",G34,0)","v":0},"m",null,null,null,null,null,null,null,null,null,7,28,null,null,0,0,0]
[null,null,null,"V11",null,null,0,null,null,null,"Antall løpemeter U-blokk murkrone",{"$f":"IF(G38=\"Ja\",G34,0)","v":0},"m",null,null,null,null,null,null,null,null,null,7.25,29,null,null,0,0,0]
[null,null,null,"V12",null,null,0,null,null,null,"Antall løpemeter U-blokk overdekning",{"$f":"AB78","v":0},"m",null,null,null,null,null,null,null,null,null,7.5,30,null,null,0,0,0]
[null,null,null,null,null,null,null,null,null,null,"Antall stk hjørne",{"$f":"G36","v":0},"stk",null,null,null,null,null,null,null,null,null,7.75,31,null,null,0,0,0]
[null,null,"Vegg 3","Bredde",null,null,"15 cm",null,null,null,"Hjørneblokk i vertikale smyg",{"$f":"G39","v":"Ja"},null,null,null,null,null,null,null,null,null,null,8,32,null,null,0,0,0]
[null,null,null,"Vegglengde",null,null,0,"m",null,null,"Antall løpemeter vertikale smyg:",{"$f":"IF(L57=\"Ja\",AB46,0)","v":0},"m",null,null,null,null,null,null,null,null,null,8.25,33,null,null,0,0,0]
[null,null,null,"Vegghøyde",null,null,0,"m",null,null,"Totalt åpningsareal",{"$f":"AB62","v":0},"m2",null,null,null,null,null,null,null,null,null,8.5,34,null,null,0,0,0]
[null,null,null,"Antall hjørner",null,null,0,"stk",null,null,"Brutto veggareal",{"$f":"L51*L50","v":0},"m2",null,null,null,null,null,null,null,null,null,8.75,35,null,null,0,0,0]
[null,null,null,"Såleblokk",null,null,"Nei",null,null,null,"Netto veggareal",{"$f":"L60-L59","v":0},"m2",null,null,null,null,null,null,null,null,null,null,null,null,null,0,0,0]
[null,null,null,"U-blokk",null,null,"Ja",null,null,null,null,null,null,null,null,null,null,null,null,null,null,null,null,null,null,null,{"$f":"SUM(AA50:AA61)","v":0},{"$f":"SUM(AB50:AB61)","v":0},{"$f":"SUM(AC50:AC61)","v":0}]
[null,null,null,"Hjørneblokker i vertikale smyg",null,null,"Ja",null,null,null,"Vegg 3"]
[null,null,null,"Antall skift:",null,null,{"$f":"L67","v":0},"skift",null,null,"Basicblokk",{"$f":"LEFT(G57,2)","v":"15"},"cm",null,null,null,null,null,null,null,null,null,null,null,null,null,"U-blokk bjelke"]
[null,null,null,"Netto veggareal:",null,null,{"$f":"L76","v":0},"m2",null,null,"Vegglengde",{"$f":"G58","v":0},"m",null,null,null,null,null,null,null,null,null,null,null,null,null,"Vegg 1","Vegg 2","Vegg 3"]
[null,null,null,null,null,null,null,null,null,null,"Vegghøyde",{"$f":"G59","v":0},"m",null,null,null,null,null,null,null,null,null,null,null,null,null,{"$f":"(E20+0.5)*G20","v":0},{"$f":"(E44+0.5)*G44","v":0},{"$f":"(E68+0.5)*G68","v":0}]
[null,null,null,null,"Bredde","Høyde","Antall",null,null,null,"Antall skift",{"$f":"VLOOKUP(G59,W25:X60,2,FALSE)","v":0},"skift",null,null,null,null,null,null,null,null,null,null,null,null,null,0,0,0]
[null,null,null,"V1",null,null,0,null,null,null,"Antall løpemeter såleblokk",{"$f":"IF(G61=\"Ja\",G58,0)","v":0},"m",null,null,null,null,null,null,null,null,null,null,null,null,null,0,0,0]
[null,null,null,"V2",null,null,0,null,null,null,"Antall løpemeter U-blokk murkrone",{"$f":"IF(G62=\"Ja\",G58,0)","v":0},"m",null,null,null,null,null,null,null,null,null,null,null,null,null,0,0,0]
[null,null,null,"V3",null,null,0,null,null,null,"Antall løpemeter U-blokk overdekning",{"$f":"AC78","v":0},"m",null,null,null,null,null,null,null,null,null,null,null,null,null,0,0,0]
[null,null,null,"V4",null,null,0,null,null,null,"Antall stk hjørne",{"$f":"G60","v":0},"stk",null,null,null,null,null,null,null,null,null,null,null,null,null,0,0,0]
[null,null,null,"V5",null,null,0,null,null,null,"Hjørneblokk i vertikale smyg",{"$f":"G63","v":"Ja"},null,null,null,null,null,null,null,null,null,null,null,null,null,null,0,0,0]
[null,null,null,"V6",null,null,0,null,null,null,"Antall løpemeter vertikale smyg:",{"$f":"IF(L72=\"Ja\",AC46,0)","v":0},"m",null,null,null,null,null,null,null,null,null,null,null,null,null,0,0,0]
[null,null,null,"V7",null,null,0,null,null,null,"Totalt åpningsareal",{"$f":"AC62","v":0},"m2",null,null,null,null,null,null,null,null,null,null,null,null,null,0,0,0]
[null,null,null,"V8",null,null,0,null,null,null,"Brutto veggareal",{"$f":"L66*L65","v":0},"m2",null,null,null,null,null,null,null,null,null,null,null,null,null,0,0,0]
[null,null,null,"V9",null,null,0,null,null,null,"Netto veggareal",{"$f":"L75-L74","v":0},"m2",null,null,null,null,null,null,null,null,null,null,null,null,null,0,0,0]
[null,null,null,"V10",null,null,0,null,null,null,null,null,null,null,null,null,null,null,null,null,null,null,null,null,null,null,0,0,0]
[null,null,null,"V11",null,null,0,null,null,null,null,null,null,null,null,null,null,null,null,null,null,null,null,null,null,null,{"$f":"SUM(AA66:AA77)","v":0},{"$f":"SUM(AB66:AB77)","v":0},{"$f":"SUM(AC66:AC77)","v":0}]
[null,null,null,"V12",null,null,0]
[]
[]
[null,null,null,"Merk: Det anbefales å bruke mørtelkasser ved legging av leca. Ta kontakt med kundeservice for mer informasjon."]

{"sheet":"Div","index":8,"n_rows":77,"n_cols":29,"rows_kept":77,"cut":false,"hidden":true,"merged":[[46,9,46,11],[62,26,62,28],[36,2,57,2],[14,20,15,20],[30,26,30,28],[33,9,33,11],[46,26,46,28],[14,26,14,28],[14,15,15,15],[14,16,15,16],[14,17,15,17],[14,18,15,18],[14,19,15,19],[3,5,3,6],[5,15,5,16],[5,17,5,18],[5,19,5,20],[9,12,9,13]]}
[]
[]
[]
[]
[null,null,null,"Universalblokk"]
[null,null,null,null,null,null,null,null,null,null,null,null,null,null,null,"Lydblokk",null,"Universal 1",null,"Universal 2",null,null,null,null,null,null,"Fiberpuss","Arm.nett","Hjørnelist "]
[null,null,null,"Inndata",null,null,null,null,null,null,null,null,null,null,null,"-","-",{"$f":"IF(G12=\"Ja\",ROUNDUP(K39*2,0),0)","v":0},"pc",{"$f":"IF(G41=\"Ja\",ROUNDUP(K52*2,0),0)","v":0},"pc",null,"U-blokk","Såleblokk",null,null,{"$f":"ROUNDUP(((K32+K45+K58)-G14)*14,0)","v":0},{"$f":"ROUNDUP(((K32+K45+K58)-#REF!)*1.15,0)","v":{"$error":"#REF!"}},{"$f":"ROUNDUP(AB29+AC29+(G11*G10)+(G40*G39),0)","v":0}]
[null,null,null,"Bredde",null,"(flervalg)","20 cm",null,null,null,null,null,null,null,null,0,"pc","-","-","-","-",null,"Ja","Ja","20 cm"]
[null,null,null,"Vegglengde",null,"(inntasting)",0,"m",null,null,null,null,null,null,null,"-","-",{"$f":"IF(K35=\"25\",ROUNDUP((K45*7.7)-(R10/2),0),0)","v":0},"pc",{"$f":"IF(K48=\"25\",ROUNDUP((K58*7.7)-(T10/2),0),0)","v":0},"pc",null,"Nei","Nei","15 cm",null,"Startlist","Silikon.m","Silikon.p"]
[null,null,null,"Vegghøyde",null,"(flervalg)",0,"m",null,null,"Forside",null,"Lecablokker",null,null,"-","-",{"$f":"IF(K35=\"25\",ROUNDUP((K40+K41)*4,0),0)","v":0},"pc",{"$f":"IF(K48=\"25\",ROUNDUP((K53+K54)*4,0),0)","v":0},"pc",null,null,null,null,null,{"$f":"#REF!","v":{"$error":"#REF!"}},{"$f":"ROUNDUP(((K32+K45+K58)-#REF!)*0.3,0)","v":{"$error":"#REF!"}},{"$f":"ROUNDUP(((K32+K45+K58)-#REF!)*2.9,0)","v":{"$error":"#REF!"}}]
[null,null,null,"Antall hjørner",null,"(inntasting)",0,"stk",null,null,null,null,null,null,null,"-","-",{"$f":"IF(K35=\"20\",ROUNDUP((K45*7.7)-(R12/2),0),0)","v":0},"pc",{"$f":"IF(K48=\"20\",ROUNDUP((K58*7.7)-(T12/2),0),0)","v":0},"pc",null,"Fugearmering","Pakker","U-blokkarm"]
[null,null,null,"Såleblokk",null,"(flervalg)","Ja",null,null,null,null,null,null,null,null,"-","-",{"$f":"IF(K35=\"20\",ROUNDUP((K40+K41)*4,0),0)","v":0},"pc",{"$f":"IF(K48=\"20\",ROUNDUP((K53+K54)*4,0),0)","v":0},"pc",null,{"$f":"SUM(P15,R15,T15)","v":0},{"$f":"ROUNDUP(W12/400,1)","v":0},{"$f":"SUM(R17,T17)","v":0},null,"Slemming","KC 50/50"]
[null,null,null,"U-blokk",null,"(flervalg)","Ja",null,null,null,null,null,null,null,null,"-","-",{"$f":"IF(K35=\"15\",ROUNDUP((K45*7.7)-(R14/2),0),0)","v":0},"pc",{"$f":"IF(K48=\"15\",ROUNDUP((K58*7.7)-(T14/2),0),0)","v":0},"pc",null,null,null,null,null,{"$f":"ROUNDUP(G14*6,0)","v":0},{"$f":"ROUNDUP((#REF!+G16+G44)*17,0)","v":{"$error":"#REF!"}}]
[null,null,null,"Puss (slemming) under bakken",null,"(inntasting)",0,"m2",null,null,null,null,null,null,null,"-","-",{"$f":"IF(K35=\"15\",ROUNDUP((K40+K41)*4,0),0)","v":0},"pc",{"$f":"IF(K48=\"15\",ROUNDUP((K53+K54)*4,0),0)","v":0},"pc",null,"B20","M5","25 cm"]
[null,null,null,"Antall skift:",null,null,{"$f":"K38","v":0},"skift",null,null,null,null,null,null,null,0,"m",{"$f":"ROUNDUP(K45*4.2,0)","v":0},"m",{"$f":"ROUNDUP(K58*4.2,0)","v":0},"m",null,{"$f":"SUM(R19,T19)","v":0},{"$f":"SUM(P18,R18,T18)","v":0},"17,5 cm",null,"Hjørnelist"]
[null,null,null,"Netto veggareal:",null,null,{"$f":"K45","v":0},"m2",null,"Materialliste:",null,null,null,null,null,null,null,null,null,null,null,null,null,null,null,null,null,"Vegg 2","Vegg 3"]
[null,null,null,null,null,null,null,null,null,"Produkt","Nobb","Antall","Enhet",null,null,"-","-",{"$f":"ROUNDUP(((K39+K40+K41)*1.1),0)","v":0},"m",{"$f":"ROUNDUP(((K52+K53+K54)*1.1),0)","v":0},"m",null,"B20","Universal 1","Universal 2",null,null,{"$f":"(E19+(F19*2))*G19","v":0},{"$f":"(E47+(F47*2))*G47","v":0}]
[null,null,null,null,"Bredde","Høyde","Antall",null,null,"Leca Såleblokk 33 cm",10523777,{"$f":"SUM(P7,R7,T7)","v":0},"stk",null,null,0,"kg",{"$f":"ROUNDUP(K45*13,0)","v":0},"kg",{"$f":"ROUNDUP(K58*13,0)","v":0},"kg",null,25,{"$f":"IF(K35=\"25\",ROUNDUP((K39*15)+((K40+K41)*42),0),0)","v":0},{"$f":"IF(K48=\"25\",ROUNDUP((K52*15)+((K53+K54)*42),0),0)","v":0},null,null,0,0]
[null,null,null,"V1",null,null,0,null,null,"Leca Universalblokk 20 cm",10523520,{"$f":"SUM(P11,R11,T11)","v":0},"stk",null,null,"-","-",{"$f":"SUM(X18:X20)","v":0},"kg",{"$f":"SUM(Y18:Y20)","v":0},"kg",null,20,{"$f":"IF(K35=\"20\",ROUNDUP((K39*15)+((K40+K41)*21),0),0)","v":0},{"$f":"IF(K48=\"20\",ROUNDUP((K52*15)+((K53+K54)*21),0),0)","v":0},null,null,0,0]
[null,null,null,"V2",null,null,0,null,null,"Leca Basic U-blokk 20 cm LSX",49082755,{"$f":"SUM(P12,R12,T12)","v":0},"stk",null,null,null,null,null,null,null,null,null,15,{"$f":"IF(K35=\"15\",ROUNDUP((K39*15)+((K40+K41)*17),0),0)","v":0},{"$f":"IF(K48=\"15\",ROUNDUP((K52*15)+((K53+K54)*17),0),0)","v":0},null,null,0,0]
[null,null,null,"V3",null,null,0,null,null,"Leca Universalblokk 15 cm",47367456,{"$f":"SUM(P13,R13,T13)","v":0},"stk",null,null,null,null,null,null,null,null,null,null,null,null,null,null,0,0]
[null,null,null,"V4",null,null,0,null,null,"Leca Basic U-blokk 15 cm LSX",49082766,{"$f":"SUM(P14,R14,T14)","v":0},"stk",null,null,null,null,null,null,null,null,null,null,null,null,null,null,0,0]
[null,null,null,"V5",null,null,0,null,null,"Leca Fugearmering 18 mm storpakke",47095300,{"$f":"INT(X12)","v":0},"pakke",null,null,null,null,null,null,null,null,null,"Høyde","Antall skift",null,null,null,0,0]
[null,null,null,"V6",null,null,0,null,null,"Leca Fugearmering 18 mm småpakke",46343273,{"$f":"(X12-INT(X12))*10","v":0},"pakke",null,null,null,null,null,null,null,null,null,0,0,null,null,null,0,0]
[null,null,null,"V7",null,null,0,null,null,"Leca U-blokkarmering småpakke",10583961,{"$f":"ROUNDUP(Y12/20,0)","v":0},"pakke",null,null,null,null,null,null,null,null,null,0.26,1,null,null,null,0,0]
[null,null,null,"V8",null,null,0,null,null,"Weber Murmørtel M5 plastsekk",55244204,{"$f":"ROUNDUP(X15/25,0)","v":0},"sekk",null,null,null,null,null,null,null,null,null,0.52,2,null,null,null,0,0]
[null,null,null,"V9",null,null,0,null,null,"Weber B20 plastsekk",55244174,{"$f":"ROUNDUP(W15/25,0)","v":0},"sekk",null,null,null,null,null,null,null,null,null,0.78,3,null,null,null,0,0]
[null,null,null,"V10",null,null,0,null,null,"Weber Grå Slemming 20 kg",50410636,{"$f":"ROUNDUP(AA13/20,0)","v":0},"sekk",null,null,null,null,null,null,null,null,null,1.04,4,null,null,null,0,0]
[null,null,null,"V11",null,null,0,null,null,null,null,null,null,null,null,null,null,null,null,null,null,null,1.3,5,null,null,null,{"$f":"SUM(AB17:AB28)","v":0},{"$f":"SUM(AC17:AC28)","v":0}]
[null,null,null,"V12",null,null,0,null,null,null,null,null,null,null,null,null,null,null,null,null,null,null,1.56,6]
[null,null,null,null,null,null,null,null,null,null,null,null,null,null,null,null,null,null,null,null,null,null,1.82,7,null,null,"Vertikale smyg"]
[null,null,null,null,null,null,null,null,null,null,null,null,null,null,null,null,null,null,null,null,null,null,2.08,8,null,null,null,"Vegg 2","Vegg 3"]
[null,null,null,"Merk: Det anbefales å bruke mørtelkasser ved legging av leca. Ta kontakt med kundeservice for mer informasjon.",null,null,null,null,null,null,null,null,null,null,null,null,null,null,null,null,null,null,2.34,9,null,null,null,{"$f":"F19*2*G19","v":0},{"$f":"F47*2*G47","v":0}]
[null,null,null,null,null,null,null,null,null,null,null,null,null,null,null,null,null,null,null,null,null,null,2.6,10,null,null,null,0,0]
[null,null,null,null,null,null,null,null,null,"Universalblokk",{"$f":"LEFT(G8,2)","v":"20"},"cm",null,null,null,null,null,null,null,null,null,null,2.86,11,null,null,null,0,0]
[null,null,null,null,null,null,null,null,null,"Vegglengde",{"$f":"G9","v":0},"m",null,null,null,null,null,null,null,null,null,null,3.12,12,null,null,null,0,0]
[null,null,"Universal 2","Bredde",null,null,"20 cm",null,null,"Vegghøyde",{"$f":"G10","v":0},"m",null,null,null,null,null,null,null,null,null,null,3.38,13,null,null,null,0,0]
[null,null,null,"Vegglengde",null,null,0,"m",null,"Antall skift",{"$f":"VLOOKUP(G10,W24:X59,2,FALSE)","v":0},"skift",null,null,null,null,null,null,null,null,null,null,3.64,14,null,null,null,0,0]
[null,null,null,"Vegghøyde",null,null,0,"m",null,"Antall løpemeter såleblokk",{"$f":"IF(G12=\"Ja\",G9,0)","v":0},"m",null,null,null,null,null,null,null,null,null,null,3.9,15,null,null,null,0,0]
[null,null,null,"Antall hjørner",null,null,0,"stk",null,"Antall løpemeter U-blokk murkrone",{"$f":"IF(G13=\"Ja\",G9,0)","v":0},"m",null,null,null,null,null,null,null,null,null,null,4.16,16,null,null,null,0,0]
[null,null,null,"Såleblokk",null,null,"Nei",null,null,"Antall løpemeter U-blokk overdekning",{"$f":"AB77","v":0},"m",null,null,null,null,null,null,null,null,null,null,4.42,17,null,null,null,0,0]
[null,null,null,"U-blokk",null,null,"Nei",null,null,"Antall stk hjørne",{"$f":"G11","v":0},"stk",null,null,null,null,null,null,null,null,null,null,4.68,18,null,null,null,0,0]
[null,null,null,"Antall skift:",null,null,{"$f":"K51","v":0},"skift",null,"Totalt åpningsareal",{"$f":"AB61","v":0},"m2",null,null,null,null,null,null,null,null,null,null,4.9400000000000004,19,null,null,null,0,0]
[null,null,null,"Netto veggareal:",null,null,{"$f":"K58","v":0},"m2",null,"Brutto veggareal",{"$f":"K37*K36","v":0},"m2",null,null,null,null,null,null,null,null,null,null,5.2,20,null,null,null,0,0]
[null,null,null,null,null,null,null,null,null,"Netto veggareal",{"$f":"K44-K43","v":0},"m2",null,null,null,null,null,null,null,null,null,null,5.46,21,null,null,null,{"$f":"SUM(AB33:AB44)","v":0},{"$f":"SUM(AC33:AC44)","v":0}]
[null,null,null,null,"Bredde","Høyde","Antall",null,null,null,null,null,null,null,null,null,null,null,null,null,null,null,5.72,22]
[null,null,null,"V1",null,null,0,null,null,"Universal 2",null,null,null,null,null,null,null,null,null,null,null,null,5.98,23,null,null,"Totalt åpningsareal"]
[null,null,null,"V2",null,null,0,null,null,"Universalblokk",{"$f":"LEFT(G37,2)","v":"20"},"cm",null,null,null,null,null,null,null,null,null,null,6.24,24,null,null,null,"Vegg 2","Vegg 3"]
[null,null,null,"V3",null,null,0,null,null,"Vegglengde",{"$f":"G38","v":0},"m",null,null,null,null,null,null,null,null,null,null,6.5,25,null,null,null,{"$f":"E19*F19*G19","v":0},{"$f":"E47*F47*G47","v":0}]
[null,null,null,"V4",null,null,0,null,null,"Vegghøyde",{"$f":"G39","v":0},"m",null,null,null,null,null,null,null,null,null,null,6.76,26,null,null,null,0,0]
[null,null,null,"V5",null,null,0,null,null,"Antall skift",{"$f":"VLOOKUP(G39,W24:X59,2,FALSE)","v":0},"skift",null,null,null,null,null,null,null,null,null,null,7.02,27,null,null,null,0,0]
[null,null,null,"V6",null,null,0,null,null,"Antall løpemeter såleblokk",{"$f":"IF(G41=\"Ja\",G38,0)","v":0},"m",null,null,null,null,null,null,null,null,null,null,7.28,28,null,null,null,0,0]
[null,null,null,"V7",null,null,0,null,null,"Antall løpemeter U-blokk murkrone",{"$f":"IF(G42=\"Ja\",G38,0)","v":0},"m",null,null,null,null,null,null,null,null,null,null,7.54,29,null,null,null,0,0]
[null,null,null,"V8",null,null,0,null,null,"Antall løpemeter U-blokk overdekning",{"$f":"AC77","v":0},"m",null,null,null,null,null,null,null,null,null,null,7.8,30,null,null,null,0,0]
[null,null,null,"V9",null,null,0,null,null,"Antall stk hjørne",{"$f":"G40","v":0},"stk",null,null,null,null,null,null,null,null,null,null,8.06,31,null,null,null,0,0]
[null,null,null,"V10",null,null,0,null,null,"Totalt åpningsareal",{"$f":"AC61","v":0},"m2",null,null,null,null,null,null,null,null,null,null,8.32,32,null,null,null,0,0]
[null,null,null,"V11",null,null,0,null,null,"Brutto veggareal",{"$f":"K50*K49","v":0},"m2",null,null,null,null,null,null,null,null,null,null,8.58,33,null,null,null,0,0]
[null,null,null,"V12",null,null,0,null,null,"Netto veggareal",{"$f":"K57-K56","v":0},"m2",null,null,null,null,null,null,null,null,null,null,8.84,34,null,null,null,0,0]
[null,null,null,null,null,null,null,null,null,null,null,null,null,null,null,null,null,null,null,null,null,null,9.1,35,null,null,null,0,0]
[null,null,null,null,null,null,null,null,null,null,null,null,null,null,null,null,null,null,null,null,null,null,null,null,null,null,null,0,0]
[null,null,null,null,null,null,null,null,null,null,null,null,null,null,null,null,null,null,null,null,null,null,null,null,null,null,null,{"$f":"SUM(AB49:AB60)","v":0},{"$f":"SUM(AC49:AC60)","v":0}]
[]
[null,null,null,null,null,null,null,null,null,null,null,null,null,null,null,null,null,null,null,null,null,null,null,null,null,null,"U-blokk bjelke"]
[null,null,null,null,null,null,null,null,null,null,null,null,null,null,null,null,null,null,null,null,null,null,null,null,null,null,null,"Vegg 2","Vegg 3"]
[null,null,null,null,null,null,null,null,null,null,null,null,null,null,null,null,null,null,null,null,null,null,null,null,null,null,null,{"$f":"(E19+0.5)*G19","v":0},{"$f":"(E47+0.5)*G47","v":0}]
[null,null,null,null,null,null,null,null,null,null,null,null,null,null,null,null,null,null,null,null,null,null,null,null,null,null,null,0,0]
[null,null,null,null,null,null,null,null,null,null,null,null,null,null,null,null,null,null,null,null,null,null,null,null,null,null,null,0,0]
[null,null,null,null,null,null,null,null,null,null,null,null,null,null,null,null,null,null,null,null,null,null,null,null,null,null,null,0,0]
[null,null,null,null,null,null,null,null,null,null,null,null,null,null,null,null,null,null,null,null,null,null,null,null,null,null,null,0,0]
[null,null,null,null,null,null,null,null,null,null,null,null,null,null,null,null,null,null,null,null,null,null,null,null,null,null,null,0,0]
[null,null,null,null,null,null,null,null,null,null,null,null,null,null,null,null,null,null,null,null,null,null,null,null,null,null,null,0,0]
[null,null,null,null,null,null,null,null,null,null,null,null,null,null,null,null,null,null,null,null,null,null,null,null,null,null,null,0,0]
[null,null,null,null,null,null,null,null,null,null,null,null,null,null,null,null,null,null,null,null,null,null,null,null,null,null,null,0,0]
[null,null,null,null,null,null,null,null,null,null,null,null,null,null,null,null,null,null,null,null,null,null,null,null,null,null,null,0,0]
[null,null,null,null,null,null,null,null,null,null,null,null,null,null,null,null,null,null,null,null,null,null,null,null,null,null,null,0,0]
[null,null,null,null,null,null,null,null,null,null,null,null,null,null,null,null,null,null,null,null,null,null,null,null,null,null,null,0,0]
[null,null,null,null,null,null,null,null,null,null,null,null,null,null,null,null,null,null,null,null,null,null,null,null,null,null,null,{"$f":"SUM(AB65:AB76)","v":0},{"$f":"SUM(AC65:AC76)","v":0}]

{"sheet":"Fasadeblokk","index":9,"n_rows":36,"n_cols":30,"rows_kept":36,"cut":false,"hidden":true,"merged":[[23,2,24,7],[5,31,5,32],[3,6,3,7],[8,31,8,32],[5,5,5,6]]}
[]
[]
[]
[null,null,null,null,"Forside",null,"Lecablokker"]
[null,null,null,"Fasadeblokk"]
[null,null,null,null,null,"Inndata"]
[null,null,null,"Netto veggareal (uten vinduer/dører)","(inntasting)",0,"m2"]
[null,null,null,"Antall meter hjørne","(inntasting)",0,"m"]
[null,null,null,"Fasadebjelke  (12,5 x 25 x 300 cm)","(inntasting)",0,"stk"]
[null,null,null,"Omkrets på huset","(inntasting)",0,"m"]
[null,null,null,"Velg bakveggtype","(flervalg)","Betong",null,null,null,null,null,2,3,4,5,6,7,8,9,10,null,12,13,14,15,16,17,18,19,20]
[null,null,null,null,null,null,null,null,null,null,"Liste","NOBBnr","Produkt 1","Enhet","Pakning","Forbruk/m²","Kalk. Antall","Antall enhet","Pris 2016","Totalpris",null,"NOBBnr","Produkt 2","Enhet","Pakning","Forbruk/m²","Kalk. Antall","Antall enhet","Pris 2016","Totalpris"]
[null,null,null,"Materialliste:",null,null,null,null,null,null,"Silikatmaling",23852551,"Weber.ton 303 Silikatmaling - 15 kg","spann","à 15 kg",0.6,{"$f":"P13*$F$7","v":0},{"$f":"ROUNDUP(Q13/15,0)","v":0},null,{"$f":"S13*R13","v":0},null,23852502,"Weber.ton 301 Silikatgrunning - 10 kg","kanne","à 10 kg",0.1,{"$f":"Z13*$F$7","v":0},{"$f":"ROUNDUP(AA13/10,0)","v":0},null,{"$f":"AC13*AB13","v":0}]
[null,null,null,"Produkt","NOBB","Antall","enhet",null,null,null,"Silco paint",5200859003,"Silco paint std farge 20 kg","spann","à 20 kg",0.6,{"$f":"P14*$F$7","v":0},{"$f":"ROUNDUP(Q14/20,0)","v":0},null,{"$f":"S14*R14","v":0}]
[null,null,null,"Leca Fasadeblokk 12,5 cm",60051406,{"$f":"J23","v":0},"stk",null,null,null,"Silicate render",5200858965,"Silicate render std farge 20 kg","spann","à 20 kg",2.9,{"$f":"P15*$F$7","v":0},{"$f":"ROUNDUP(Q15/20,0)","v":0},null,{"$f":"S15*R15","v":0},null,23852551,"Weber.ton 303 Silikatmaling - 15 kg","spann","à 15 kg",0.3,{"$f":"Z15*$F$7","v":0},{"$f":"ROUNDUP(AA15/15,0)","v":0},null,{"$f":"AC15*AB15","v":0}]
[null,null,null,"Leca Fasadeblokk hjørne 12,5 cm",10899730,{"$f":"J24","v":0},"stk",null,null,null,"Silco render",5200858999,"Silco render std farge 20 kg","spann","à 20 kg",2.9,{"$f":"P16*$F$7","v":0},{"$f":"ROUNDUP(Q16/20,0)","v":0},null,{"$f":"S16*R16","v":0},null,5200859003,"Silco paint std farge 20 kg","spann","à 20 kg",0.3,{"$f":"Z16*$F$7","v":0},{"$f":"ROUNDUP(AA16/20,0)","v":0},null,{"$f":"AC16*AB16","v":0}]
[null,null,null,"Leca Fasadebjelke - BHL = 12,5 x 25 x 300 cm",60051415,{"$f":"J25","v":0},"stk"]
[null,null,null,"Forankring småpakke til Leca Fasadeblokk",27744366,{"$f":"J26","v":0},"pakke",null,null,null,null,"Hjørnelist",null,null,"Forbruk/m²","Kalk. Antall"]
[null,null,null,"Leca Fugearmering 18 mm storpakke",47095300,{"$f":"INT(J28)","v":0},"pakke",null,null,null,null,{"$f":"(#REF!+(#REF!*2))*#REF!","v":{"$error":"#REF!"}},null,"Betong",45,{"$f":"ROUNDUP($F$7/O19,0)","v":0}]
[null,null,null,"Leca Fugearmering 18 mm småpakke",46343273,{"$f":"(J28-INT(J28))*10","v":0},"pakke",null,null,null,null,{"$f":"(#REF!+(#REF!*2))*#REF!","v":{"$error":"#REF!"}},null,"Tre/Leca",30,{"$f":"ROUNDUP($F$7/O20,0)","v":0}]
[null,null,null,"Weber Murmørtel M5 plastsekk",55244204,{"$f":"ROUNDUP(J29/25,0)","v":0},"sekk",null,null,null,null,{"$f":"(#REF!+(#REF!*2))*#REF!","v":{"$error":"#REF!"}}]
[null,null,null,null,null,null,null,null,null,"Kalk",null,{"$f":"(#REF!+(#REF!*2))*#REF!","v":{"$error":"#REF!"}}]
[null,null,null,null,null,null,null,null,null,{"$f":"(ROUNDUP(F7*7.7,0))-(J25*6)-J24","v":0},null,{"$f":"(#REF!+(#REF!*2))*#REF!","v":{"$error":"#REF!"}}]
[null,null,"Merk: Det anbefales å bruke mørtelkasser ved legging av leca. Ta kontakt med kundeservice for mer informasjon.",null,null,null,null,null,null,{"$f":"ROUNDUP(F8*4,0)","v":0},null,{"$f":"(#REF!+(#REF!*2))*#REF!","v":{"$error":"#REF!"}}]
[null,null,null,null,null,null,null,null,null,{"$f":"ROUNDUP(F9,0)","v":0},null,{"$f":"SUM(L19:L24)","v":{"$error":"#REF!"}}]
[null,null,null,null,null,null,null,null,null,{"$f":"VLOOKUP(F11,N19:P20,3,FALSE)","v":0}]
[null,null,null,null,null,null,null,null,null,{"$f":"ROUNDUP(F7*2.1,0)","v":0},"Fugearm"]
[null,null,null,null,null,null,null,null,null,{"$f":"ROUNDUP(J27/400,1)","v":0},"Pakker"]
[null,null,null,null,null,null,null,null,null,{"$f":"ROUNDUP(Fasadeblokk!F7*6,0)","v":0}]
[]
[null,null,null,null,null,null,null,null,null,{"$f":"F7*14","v":0}]
[null,null,null,null,null,null,null,null,null,{"$f":"F7*1.15","v":0}]
[null,null,null,null,null,null,null,null,null,{"$f":"F8+L25","v":{"$error":"#REF!"}}]
[null,null,null,null,null,null,null,null,null,{"$f":"F10","v":0}]
[null,null,null,null,null,null,null,null,null,{"$f":"VLOOKUP(E12,Fasadeblokk!K13:AA16,17,FALSE)","v":{"$error":"#N/A"}}]
[null,null,null,null,null,null,null,null,null,{"$f":"VLOOKUP(E12,K13:Q16,7,FALSE)","v":{"$error":"#N/A"}}]

{"sheet":"Lettvegg","index":10,"n_rows":34,"n_cols":15,"rows_kept":34,"cut":false,"hidden":true,"merged":[[5,6,5,7],[33,2,34,8],[24,3,27,3],[28,3,29,3],[20,3,23,3],[8,4,8,5]]}
[]
[]
[]
[]
[]
[null,null,null,null,"Forside",null,"Lecablokker"]
[]
[]
[null,null,null,"Blokktype","Lettvegg 118",null,null,"(flervalg)",null,null,null,null,null,null,"Lettvegg 118"]
[null,null,null,"Vegglengde",null,0,"m","(inntasting)",null,null,null,null,null,null,"Lettvegg 88"]
[null,null,null,"Vegghøyde",null,0,"m","(inntasting)"]
[null,null,null,"Antall hjørner/åpen ender",null,0,"stk","(inntasting)"]
[null,null,null,"Åpningsareal",null,0,"m²","(inntasting)"]
[]
[null,null,null,"Bruttoareal",null,{"$f":"F10*F11","v":0},"m²"]
[null,null,null,"Nettoareal",null,{"$f":"F15-F13","v":0},"m²"]
[null,null,null,"Nettoareal (2 sider)",null,{"$f":"F16*2","v":0},"m²"]
[]
[]
[null,null,null,"Materialliste","Produkt","Nobb","Antall","enhet"]
[null,null,null,"Leca",{"$f":"IF(E9=\"Lettvegg 118\",\"Lettveggsblokk 118\",\"Lettveggsblokk 88\")","v":"Lettveggsblokk 118"},{"$f":"IF(E9=\"Lettvegg 118\",\"46316805\",\"46316786\")","v":"46316805"},{"$f":"ROUNDUP(F16*6.7,0)-G22","v":0},"stk"]
[null,null,null,null,{"$f":"IF(E9=\"Lettvegg 118\",\"Hjørneblokk 118\",\"Hjørneblokk 88\")","v":"Hjørneblokk 118"},{"$f":"IF(E9=\"Lettvegg 118\",\"46316813\",\"46316794\")","v":"46316813"},{"$f":"ROUNDUP((F12*F11*3.3),0)","v":0},"stk"]
[null,null,null,null,"Toppforankering",46343292,{"$f":"ROUNDUP(F10/10,0)","v":0},"eske"]
[null,null,null,null,"Skinne",46343303,{"$f":"ROUNDUP(F10/2.5,0)","v":0},"stk"]
[null,null,null,"Alt 1","Stonefix",47513813,{"$f":"ROUNDUP(F16*0.15,0)","v":0},"patron"]
[null,null,null,null,"Skumpistol",47592046,{"$f":"ROUNDUP(F16/300,0)","v":0},"stk"]
[null,null,null,null,"Twintip",47592035,{"$f":"ROUNDUP(F16/500,0)","v":0},"pose"]
[null,null,null,null,"Weber Clean Fix",47513824,1,"patron"]
[null,null,null,"Alt 2","Blokklim",55939921,{"$f":"ROUNDUP(F16/25,0)","v":0},"sekk"]
[null,null,null,null,{"$f":"IF(E9=\"Lettvegg 118\",\"Limkasse 118\",\"Limkasse 88\")","v":"Limkasse 118"},{"$f":"IF(E9=\"Lettvegg 118\",\"46138146\",\"46138135\")","v":"46138146"},1,"stk"]
[null,null,null,"OFB","Sparkel RS (2 sider)",47751775,{"$f":"ROUNDUP((F17*2)/12,0)","v":0},"spann"]
[]
[]
[null,null,"Merk: Det anbefales å bruke mørtelkasser ved legging av leca. Ta kontakt med kundeservice for mer informasjon."]

{"sheet":"Oppsummering","index":11,"n_rows":53,"n_cols":17,"rows_kept":53,"cut":false,"hidden":true,"merged":[[1,1,1,2],[2,1,2,2],[3,1,3,2],[4,1,4,2],[12,14,13,14],[12,7,13,7],[12,8,13,8],[12,9,13,9],[12,10,13,10],[12,11,13,11],[12,12,13,12],[12,13,13,13]]}
[]
[null,"Gå til:"]
[null,"Forside"]
[null,"Lecablokker"]
[]
[null,"Leca Såleblokk 39 cm",41740262,{"$f":"#REF!","v":{"$error":"#REF!"}},"pc",null,null,"Iso 35","Iso 30","Iso 25","Basic","Diverse","Ringmur","Fas.blokk","Antall",null,"Enhet"]
[null,"Leca Isoblokk 35 cm",51972915,{"$f":"#REF!","v":{"$error":"#REF!"}},"pc",null,"Såleblokk 33","/",{"$f":"'ISO 30'!N16","v":0},{"$f":"'ISO 25'!M18","v":0},{"$f":"Basic!M16","v":0},{"$f":"Div!L18","v":0},{"$f":"[4]Ringmur!D7","v":0},"/",{"$f":"SUM(H7:N7)","v":0},null,{"$f":"O7","v":0}]
[null,"Leca Isoblokk 35 cm Multicut",51972926,{"$f":"#REF!","v":{"$error":"#REF!"}},"pc",null,"Isoblokk 25","/","/",{"$f":"'ISO 25'!M19","v":0},"/","/",{"$f":"[4]Ringmur!D8","v":0},"/",0,null,{"$f":"O8","v":0}]
[null,"Leca Isoblokk 35 cm Lavblokk 9 cm",51972934,{"$f":"#REF!","v":{"$error":"#REF!"}},"pc",null,"Hjørneblokk 25","/","/",{"$f":"'ISO 25'!M20","v":0},"/","/",{"$f":"[4]Ringmur!D10","v":0},"/",0,null,{"$f":"O9","v":0}]
[null,"Leca Iso U-blokk 35 cm",52662540,{"$f":"#REF!","v":{"$error":"#REF!"}},"pc",null,"Tilpasningsblokk 25","/","/",{"$f":"'ISO 25'!M21","v":0},"/","/",{"$f":"[4]Ringmur!D9","v":0},"/",0,null,{"$f":"O10","v":0}]
[null,"Leca Isobjelke komplett, BHL = 35x20x180 cm   ",48700097,{"$f":"#REF!+'ISO 30'!N21","v":{"$error":"#REF!"}},"pc",null,"Laftestrimmel 90","/",{"$f":"'ISO 30'!Y18","v":0},{"$f":"'ISO 25'!W18","v":0},"/","/",{"$f":"[4]Ringmur!G14","v":0},"/",0,null,{"$f":"ROUNDUP(O11/18,0)","v":0}]
[null,"Leca Isobjelke komplett, BHL = 35x40x300 cm  ",48700101,{"$f":"#REF!","v":{"$error":"#REF!"}},"pc",null,"Sikksakkarmering ",{"$f":"#REF!","v":{"$error":"#REF!"}},{"$f":"'ISO 30'!Z18","v":0},"/","/","/","/","/",{"$error":"#REF!"},null,{"$f":"ROUNDUP(O12/30.5,0)","v":{"$error":"#REF!"}}]
[null,"Leca Såleblokk 33 cm",10523777,{"$f":"Q7","v":0},"pc",null,"Fugearmering stor",{"$f":"#REF!","v":{"$error":"#REF!"}},{"$f":"'ISO 30'!Y15","v":0},{"$f":"'ISO 25'!W15","v":0},{"$f":"Basic!W13","v":0},{"$f":"Div!W12","v":0},{"$f":"[4]Ringmur!I9","v":0},{"$f":"Fasadeblokk!J27","v":0},{"$f":"SUM(H13:N14)","v":{"$error":"#REF!"}},"Pakker",{"$f":"INT(P14)","v":{"$error":"#REF!"}}]
[null,"Leca Isoblokk 30 cm",51972953,{"$f":"'ISO 30'!N17","v":0},"pc",null,"Fugearmering små",null,null,null,null,null,null,null,null,{"$f":"ROUNDUP(O13/400,1)","v":{"$error":"#REF!"}},{"$f":"(P14-INT(P14))*10","v":{"$error":"#REF!"}}]
[null,"Leca Isoblokk 30 cm Multicut",51972964,{"$f":"'ISO 30'!N18","v":0},"pc",null,"U-blokkarmering",{"$f":"#REF!","v":{"$error":"#REF!"}},{"$f":"'ISO 30'!AA18","v":0},{"$f":"'ISO 25'!X18","v":0},{"$f":"Basic!Y13","v":0},{"$f":"Div!Y12","v":0},{"$f":"[4]Ringmur!G17","v":0},"/",{"$f":"SUM(H15:N15)","v":{"$error":"#REF!"}},null,{"$f":"ROUNDUP(O15/20,0)","v":{"$error":"#REF!"}}]
[null,"Leca Isoblokk 30 cm Lavblokk 9 cm",51972972,{"$f":"'ISO 30'!N19","v":0},"pc",null,"M5",{"$f":"#REF!","v":{"$error":"#REF!"}},{"$f":"'ISO 30'!Y21","v":0},{"$f":"'ISO 25'!W21","v":0},{"$f":"Basic!X16","v":0},{"$f":"Div!X15","v":0},{"$f":"[4]Ringmur!G18","v":0},{"$f":"Fasadeblokk!J29","v":0},{"$error":"#REF!"},null,{"$f":"ROUNDUP(O16/25,0)","v":{"$error":"#REF!"}}]
[null,"Leca Isoblokk U-blokk 30 cm",52662555,{"$f":"'ISO 30'!N20","v":0},"pc",null,"B20",{"$f":"#REF!","v":{"$error":"#REF!"}},{"$f":"'ISO 30'!Z21","v":0},{"$f":"'ISO 25'!X21","v":0},{"$f":"Basic!W16","v":0},{"$f":"Div!W15","v":0},{"$f":"[4]Ringmur!G19","v":0},"/",{"$error":"#REF!"},null,{"$f":"ROUNDUP(O17/25,0)","v":{"$error":"#REF!"}}]
[null,"Leca Isoblokk 25 cm standardblokk LSX",50523673,{"$f":"Q8","v":0},"pc",null,"KC 50/50",null,null,null,null,null,null,null,0,null,{"$f":"ROUNDUP(O18/25,0)","v":0}]
[null,"Leca Isoblokk 25 cm hjørneblokk LSX",50523616,{"$f":"Q9","v":0},"pc",null,"Grå slemming",null,null,null,null,null,null,null,0,null,{"$f":"ROUNDUP(O19/20,0)","v":0}]
[null,"Leca Isoblokk 25 cm tilpasningsblokk LSX",50523684,{"$f":"Q10","v":0},"pc",null,"Fiberpuss",null,null,null,null,null,null,null,0,null,{"$f":"ROUNDUP(O20/25,0)","v":0}]
[null,"Leca Iso U-blokk 25 cm LSX",10523645,{"$f":"'ISO 25'!M22","v":0},"pc",null,"Armeringsnett",null,null,null,null,null,null,null,0,null,{"$f":"ROUNDUP(O21/50,0)","v":0}]
[null,"Leca Ringmursblokk 25 cm LSX",51045256,{"$f":"[4]Ringmur!D11","v":0},"pc",null,"Hjørnelist",null,null,null,null,null,null,null,0,null,{"$f":"ROUNDUP(O22/2.5,0)","v":0}]
[null,"Leca Ringmursblokk 25 cm LSX utvendig hjørne",51045135,{"$f":"[4]Ringmur!D12","v":0},"pc",null,"Startlist",null,null,null,null,null,null,null,0,null,{"$f":"ROUNDUP(O23/2.5,0)","v":0}]
[null,"Leca Ringmursblokk 25 cm LSX innvendig hjørne",51045275,{"$f":"[4]Ringmur!D13","v":0},"pc",null,"Silikonharpiksmaling",null,null,null,null,null,null,null,0,null,{"$f":"ROUNDUP(O24/15,0)","v":0}]
[null,"Leca Universalblokk 25 cm",10523538,{"$f":"Div!#REF!","v":{"$error":"#REF!"}},"pc",null,"Silikonharpikspuss ",null,null,null,null,null,null,null,0,null,{"$f":"ROUNDUP(O25/20,0)","v":0}]
[null,"Leca Basic U-blokk 25 cm LSX",49082740,{"$f":"Div!#REF!","v":{"$error":"#REF!"}},"pc"]
[null,"Leca Universalblokk 20 cm",10523520,{"$f":"Div!L19","v":0},"pc"]
[null,"Leca Basic U-blokk 20 cm LSX",49082755,{"$f":"Div!L20","v":0},"pc"]
[null,"Leca Universalblokk 15 cm",47367456,{"$f":"Div!L21","v":0},"pc"]
[null,"Leca Basic U-blokk 15 cm LSX",49082766,{"$f":"Div!L22","v":0},"pc"]
[null,{"$f":"Div!#REF!","v":{"$error":"#REF!"}},10523793,{"$f":"Div!#REF!","v":{"$error":"#REF!"}},"pc"]
[null,"Leca Fasadeblokk 12,5 cm",10899722,{"$f":"Fasadeblokk!F15","v":0},"pc"]
[null,"Leca Fasadeblokk hjørne 12,5 cm",10899730,{"$f":"Fasadeblokk!F16","v":0},"pc"]
[null,"Leca Fasadebjelke - BHL = 12,5 x 25 x 300 cm",26442194,{"$f":"Fasadeblokk!F17","v":0},"pc"]
[null,"Forankring småpakke til Leca Fasadeblokk",27744366,{"$f":"Fasadeblokk!F18","v":0},"pac"]
[null,"Leca Basicblokk 25 cm LSX",49082717,{"$f":"Basic!M17","v":0},"pc"]
[null,"Leca Basic Hjørneblokk 25 cm LSX",49082774,{"$f":"Basic!M18","v":0},"pc"]
[null,"Leca Basic U-blokk 25 cm LSX",49082740,{"$f":"Basic!M19","v":0},"pc"]
[null,"Leca Basicblokk 20 cm LSX",49082721,{"$f":"Basic!M20","v":0},"pc"]
[null,"Leca Basic Hjørneblokk 20 cm LSX",49082785,{"$f":"Basic!M21","v":0},"pc"]
[null,"Leca Basic U-blokk 20 cm LSX",49082755,{"$f":"Basic!M22","v":0},"pc"]
[null,"Leca Basicblokk 15 cm LSX",49082736,{"$f":"Basic!M23","v":0},"pc"]
[null,"Leca Basic Hjørneblokk 15 cm LSX",49082793,{"$f":"Basic!M24","v":0},"pc"]
[null,"Leca Basic U-blokk 15 cm LSX",49082766,{"$f":"Basic!M25","v":0},"pc"]
[]
[null,"Laftestrimmel 140 mm for Leca Isoblokk 35 cm",42941360,{"$f":"#REF!","v":{"$error":"#REF!"}},"ro"]
[null,"Laftestrimmel 90 mm for Leca Isoblokk ",23387491,{"$f":"Q11","v":0},"ro"]
[null,"Leca Sikksakk-armering 22,5 cm",41691792,{"$error":"#REF!"},"pac"]
[null,"Leca Fugearmering 18 mm storpakke",47095300,{"$error":"#REF!"},"pac"]
[null,"Leca Fugearmering 18 mm småpakke",46343273,{"$error":"#REF!"},"pac"]
[null,"Leca U-blokkarmering småpakke",10583961,{"$error":"#REF!"},"pac"]
[null,"Weber Murmørtel M5 ",46030002,{"$error":"#REF!"},"bag"]
[null,"Weber B20",40109217,{"$error":"#REF!"},"bag"]

{"sheet":"VentiGuard - Intern","index":12,"n_rows":44,"n_cols":20,"rows_kept":44,"cut":false,"hidden":true,"merged":[[1,0,17,0],[2,11,9,11],[12,11,32,11],[15,5,16,5],[21,0,43,0],[35,11,43,11],[42,5,42,6],[43,5,43,6]]}
[]
["Veggareal uten vinduer/dører",null,"W","H","A"]
[null,"A1",null,null,{"$f":"C3*D3","v":0},null,null,null,null,null,null,"Omkrets på huset","W1",null,null,null,null,null,"Factor",0]
[null,"A2",null,null,{"$f":"C4*D4","v":0},null,null,null,null,null,null,null,"W2"]
[null,"A3",null,null,0,null,null,null,null,null,null,null,"W3",null,null,null,null,"W1",0,{"$f":"S5*$T$3","v":0}]
[null,"A4",null,null,0,null,null,null,null,null,null,null,"W4",null,null,null,null,"W2",null,{"$f":"S6*$T$3","v":0}]
[null,"A5",null,null,0,null,null,null,null,null,null,null,"W5",null,null,null,null,"W3",null,0]
[null,"A6",null,null,0,null,null,null,null,null,null,null,"W6",null,null,null,null,"W4",null,0]
[null,"A7",null,null,0,null,null,null,null,null,null,null,"W7",null,null,null,null,"W5",null,0]
[null,"A8",null,null,0,null,null,null,null,null,null,null,"W8",null,null,null,null,"W6",null,0]
[null,"A9",null,null,0,null,null,null,null,null,null,null,null,{"$f":"SUM(N3:N10)","v":0},null,null,null,"W7",null,0]
[null,"A10",null,null,0,null,null,null,null,null,null,null,null,null,null,null,null,"W8",null,0]
[null,"A11",null,null,0,null,null,null,null,null,null,"Antall meter hjørne","Hjø 1",null,null,null,null,"W9",null,0]
[null,"A12",null,null,0,null,null,null,null,null,null,null,"Hjø 2",null,null,null,null,"W10",null,0]
[null,"A13",null,null,0,null,null,null,null,null,null,null,"Hjø 3",null,null,null,null,"W11",null,0]
[null,"A14",null,null,0,"Areal \n(vind + dør)",null,null,null,null,null,null,"Hjø 4",null,null,null,null,"W12",null,0]
[null,"A15",null,null,0,null,null,null,null,null,null,null,"Hjø 5",null,null,null,null,"W13",null,0]
[null,null,null,null,{"$f":"SUM(E3:E17)","v":0},{"$f":"I41","v":0},{"$f":"E18-F18","v":0},null,null,null,null,null,"Hjø 6",null,null,null,null,"W14",null,0]
[null,null,null,null,null,null,null,null,null,null,null,null,"Hjø 7",null,null,null,null,null,null,{"$f":"SUM(T5:T18)","v":0}]
[null,null,null,null,null,null,null,null,null,null,null,null,"Hjø 8"]
[null,null,null,null,null,null,null,null,null,null,null,null,"Hjø 9"]
["Antall meter Vinduer/dører (B + 2xH)",null,"Antall","W","H","Total W","Total H",null,"A",null,null,null,"Hjø 10"]
[null,"V1",null,null,null,{"$f":"D23*C23","v":0},{"$f":"C23*E23*2","v":0},null,{"$f":"D23*E23*C23","v":0},null,null,null,"Hjø 11"]
[null,"V2",null,null,null,{"$f":"D24*C24","v":0},{"$f":"C24*E24*2","v":0},null,{"$f":"D24*E24*C24","v":0},null,null,null,"Hjø 12"]
[null,"V3",null,null,null,0,0,null,0,null,null,null,"Hjø 13"]
[null,"V4",null,null,null,0,0,null,0,null,null,null,"Hjø 14"]
[null,"V5",null,null,null,0,0,null,0,null,null,null,"Hjø 15"]
[null,"V6",null,null,null,0,0,null,0,null,null,null,"Hjø 16"]
[null,"V7",null,null,null,0,0,null,0,null,null,null,"Hjø 17"]
[null,"V8",null,null,null,0,0,null,0,null,null,null,"Hjø 18"]
[null,"V9",null,null,null,0,0,null,0,null,null,null,"Hjø 19"]
[null,"V10",null,null,null,0,0,null,0,null,null,null,"Hjø 20"]
[null,"V11",null,null,null,0,0,null,0,null,null,null,null,{"$f":"SUM(N13:N32)","v":0}]
[null,"V12",null,null,null,0,0,null,0]
[null,"V13",null,null,null,0,0,null,0]
[null,"V14",null,null,null,0,0,null,0,null,null,"Antall mot annen type fasade","K1"]
[null,"V15",null,null,null,0,0,null,0,null,null,null,"K2"]
[null,"V16",null,null,null,0,0,null,0,null,null,null,"K3"]
[null,"V17",null,null,null,0,0,null,0,null,null,null,"K4"]
[null,"V18",null,null,null,0,0,null,0,null,null,null,"K5"]
[null,null,null,null,null,{"$f":"SUM(F23:F40)","v":0},{"$f":"SUM(G23:G40)","v":0},null,{"$f":"SUM(I23:I40)","v":0},null,null,null,"K6"]
[null,null,null,null,null,null,null,null,null,null,null,null,"K7"]
[null,null,null,null,null,"B + 2xH",null,null,null,null,null,null,"K8"]
[null,null,null,null,null,{"$f":"SUM(F41:G41)","v":0},null,null,null,null,null,null,null,{"$f":"SUM(N36:N43)","v":0}]

{"sheet":"VentiGuard","index":13,"n_rows":26,"n_cols":28,"rows_kept":26,"cut":false,"hidden":true,"merged":[[3,5,4,5],[19,3,19,5],[21,3,22,3],[21,5,22,5],[6,3,6,6],[17,6,17,7],[9,3,9,5],[15,6,15,7],[10,3,10,5],[11,3,11,5],[12,3,12,5],[13,3,13,5],[14,3,14,5],[16,3,16,5],[15,3,15,4],[17,3,17,4]]}
[]
[]
[]
[null,null,null,null,null,"Forside"]
[]
[]
[null,null,null,"VentiGuard / VentiGuard Extreme"]
[]
[null,null,null,null,null,null,null,"Inndata",null,null,null,"NOBBnr","Produkt 1","Pakning","Kalk. Antall","Antall enhet"]
[null,null,null,"Veggareal uten vinduer/dører",null,null,"(inntasting)",0,"m2",null,"Spiker båndet",48153136,"Spiker Båndet A2 40x2,1 mm","à 1300 stk",{"$f":"ROUNDUP(H10*24,0)","v":0},{"$f":"ROUNDUP(O10/1300,0)","v":0}]
[null,null,null,"Antall meter vinduer/dører (B + 2xH)",null,null,"(inntasting)",0,"m",null,"Rustfri skrue",43131253,"Rustfri skrue 35 mm","à 250 stk ",{"$f":"ROUNDUP(H10*15,0)","v":0},{"$f":"ROUNDUP(O11/250,0)","v":0}]
[null,null,null,"Omkrets på huset",null,null,"(inntasting)",0,"m"]
[null,null,null,"Antall meter hjørne",null,null,"(inntasting)",{"$f":"'VentiGuard - Intern'!N33","v":0},"m"]
[null,null,null,"Antall meter mot annen type fasade",null,null,"(inntasting)",{"$f":"'VentiGuard - Intern'!N44","v":0},"m"]
[null,null,null,null,null,null,null,null,null,null,null,2,3,4,5,6,7,8,null,null,null,12,13,14,15,16,17,18]
[null,null,null,"Innfesting",null,"(flervalg)","Spiker båndet",null,null,null,"Liste","NOBBnr","Produkt 1","Enhet","Pakning","Forbruk/m²","Kalk. Antall","Antall enhet",null,null,null,"NOBBnr","Produkt 2","Enhet","Pakning","Forbruk/m²","Kalk. Antall","Antall enhet"]
[null,null,null,null,null,null,null,null,null,null,"Silikatmaling",23852551,"weber.ton 303 Silikatmaling - 15 kg","spann","à 15 kg",0.6,{"$f":"($H$10+$H$11*0.1)*P17","v":0},{"$f":"ROUNDUP(Q17/15,0)","v":0},null,null,null,23852502,"weber.ton 301 Silikatgrunning - 10 kg","kanne","à 10 kg",0.1,{"$f":"($H$10+$H$11*0.1)*Z17","v":0},{"$f":"ROUNDUP(AA17/10,0)","v":0}]
[null,null,null,"Kun VG Extreme: velg sluttbehandling",null,"(flervalg)","Silco render",null,null,null,"Silco paint",30171474,"Silco paint std farge 15 kg","spann","à 15 kg",0.6,{"$f":"($H$10+$H$11*0.1)*P18","v":0},{"$f":"ROUNDUP(Q18/15,0)","v":0}]
[null,null,null,null,null,null,null,null,null,null,"Silicate render",28167625,"Silicate render std farge 20 kg","spann","à 20 kg",2.6,{"$f":"($H$10+$H$11*0.1)*P19","v":0},{"$f":"ROUNDUP(Q19/20,0)","v":0},null,null,null,23852551,"weber.ton 303 Silikatmaling - 15 kg","spann","à 15 kg",0.3,{"$f":"($H$10+$H$11*0.1)*Z19","v":0},{"$f":"ROUNDUP(AA19/15,0)","v":0}]
[null,null,null,"Gå videre ved å velge under:",null,null,null,null,null,null,"Silco render",30171516,"Silco render std farge 20 kg","spann","à 20 kg",2.6,{"$f":"($H$10+$H$11*0.1)*P20","v":0},{"$f":"ROUNDUP(Q20/20,0)","v":0},null,null,null,30171474,"Silco paint std farge 15 kg","spann","à 15 kg",0.3,{"$f":"($H$10+$H$11*0.1)*Z20","v":0},{"$f":"ROUNDUP(AA20/15,0)","v":0}]
[null,null,null,null,null,null,null,null,null,null,"TopDry Render 1,5 mm",53601312,"weber TopDry Render 1,5 mm - 20 kg","spann","à 20 kg",2.6,{"$f":"($H$10+$H$11*0.1)*P21","v":0},{"$f":"ROUNDUP(Q21/20,0)","v":0},null,null,null,30171474,"Silco paint std farge 15 kg","spann","à 15 kg",0.3,{"$f":"($H$10+$H$11*0.1)*Z21","v":0},{"$f":"ROUNDUP(AA21/15,0)","v":0}]
[null,null,null,"Materialliste VentiGuard",null,"Materialliste VentiGuard E"]
[]
[]
[]
[null,null,null,null,null,null,null,null,"Sist oppdatert 01.10.2018"]

{"sheet":"Sheet1","index":14,"n_rows":0,"n_cols":0,"rows_kept":0,"cut":false,"hidden":true,"merged":[]}

{"sheet":"Sheet2","index":15,"n_rows":0,"n_cols":0,"rows_kept":0,"cut":false,"hidden":true,"merged":[]}

{"sheet":"Sheet3","index":16,"n_rows":0,"n_cols":0,"rows_kept":0,"cut":false,"hidden":true,"merged":[]}

{"sheet":"Materialliste VentiGuard","index":17,"n_rows":22,"n_cols":11,"rows_kept":22,"cut":false,"hidden":true,"merged":[[5,4,5,8],[6,7,6,8],[5,2,5,3],[10,6,10,7],[25,6,25,7],[6,4,6,5]]}
[]
[]
[]
[]
[]
[]
[null,null,null,null,"Forside",null,null,"VentiGuard"]
[]
[null,null,"Weber VentiGuard - Materialliste"]
[]
[null,null,"Nobb-nr","Produkt","Kalk. antall",null,"Ant. Enhet",null,"Pakning",null,"Pris"]
[null,null,48118662,"Weber.pas FlexiGuard - 20 kg",{"$f":"(VentiGuard!H10+VentiGuard!H11*0.1)*6","v":0},null,{"$f":"ROUNDUP((E12/20),0)","v":0},"Spann","à 20 kg",null,{"$f":"G12*415","v":0}]
[null,null,48150620,"Weber.therm 117 Armeringsnett",{"$f":"(VentiGuard!H10+VentiGuard!H11*0.1)*1.15","v":0},null,{"$f":"ROUNDUP((E13/55),0)","v":0},"Rull","à 55 m²",null,{"$f":"G13*730","v":0}]
[null,null,30171516,"Silco Render std farge 20 kg",{"$f":"(VentiGuard!H10+VentiGuard!H11*0.1)*2.6","v":0},null,{"$f":"ROUNDUP((E14/20),0)","v":0},"Spann","à 20 kg",null,{"$f":"G14*1019","v":0}]
[null,null,57869961,"Aquapanel Outdoor",{"$f":"ROUNDUP(VentiGuard!H10+VentiGuard!H11*0.1,0)","v":0},null,{"$f":"ROUNDUP(E15/1.08,0)","v":0},"Stk","à 1,08 m²",null,{"$f":"G15*259.2","v":0}]
[null,null,{"$f":"VLOOKUP(VentiGuard!G16,VentiGuard!K10:L11,2,FALSE)","v":48153136},{"$f":"VLOOKUP(VentiGuard!G16,VentiGuard!K10:M11,3,FALSE)","v":"Spiker Båndet A2 40x2,1 mm"},{"$f":"VLOOKUP(VentiGuard!G16,VentiGuard!K10:O11,5,FALSE)","v":0},null,{"$f":"VLOOKUP(VentiGuard!G16,VentiGuard!K10:P11,6,FALSE)","v":0},"Eske",{"$f":"VLOOKUP(VentiGuard!G16,VentiGuard!K10:N11,4,FALSE)","v":"à 1300 stk"},null,{"$f":"VLOOKUP(C16,VentiGuard!L10:Q11,6,FALSE)*G16","v":0}]
[null,null,55367393,"Weber 404 Startlist 4 mm",{"$f":"VentiGuard!H12","v":0},null,{"$f":"ROUNDUP((E17/2.5),0)","v":0},"Stk","à 2,5 m",null,{"$f":"G17*127","v":0}]
[null,null,48358565,"Weber 424 Vindusprofil 4 mm",{"$f":"VentiGuard!H11","v":0},null,{"$f":"ROUNDUP((E18/2.6),0)","v":0},"Stk","à 2,6 m",null,{"$f":"G18*104","v":0}]
[null,null,44672441,"Weber.therm Fugebånd 3-10 mm",{"$f":"VentiGuard!H14+VentiGuard!H11","v":0},null,{"$f":"ROUNDUP((E19/10),0)","v":0},"Rull","à 10 m",null,{"$f":"G19*152","v":0}]
[null,null,57187253,"Weber.therm 391 Hjørnelist",{"$f":"VentiGuard!H11+VentiGuard!H13","v":0},null,{"$f":"ROUNDUP((E20/2.5),0)","v":0},"Stk","à 2,5 m",null,{"$f":"G20*56","v":0}]
[null,null,"Alternativ Sluttpuss: TopDry"]
[null,null,53601312,"weber TopDry Render 1,5 mm - 20 kg",{"$f":"VentiGuard!Q21","v":0},null,{"$f":"VentiGuard!R21","v":0},"Spann","à 20 kg"]

{"sheet":"Materialliste VentiGuard E","index":18,"n_rows":22,"n_cols":11,"rows_kept":22,"cut":false,"hidden":true,"merged":[[33,2,33,8],[5,4,5,8],[6,4,6,5],[5,2,5,3],[9,6,9,7],[25,6,25,7],[6,7,6,8]]}
[]
[]
[]
[]
[]
[]
[null,null,null,null,"Forside",null,null,"VentiGuard"]
[]
[null,null,"Weber VentiGuard Extreme - Materialliste"]
[null,null,"Nobb-nr","Produkt","Kalk. antall",null,"Ant. Enhet",null,"Pakning"]
[null,null,48390436,"Weber.base 261 Fiberpuss - 25 kg",{"$f":"(VentiGuard!H10+VentiGuard!H11*0.1)*14","v":0},null,{"$f":"ROUNDUP(E11/25,0)","v":0},"Sekk","à 25 kg",null,{"$f":"G11*157","v":0}]
[null,null,23826282,"Weber.therm 397 Armeringsnett",{"$f":"(VentiGuard!H10+VentiGuard!H11*0.1)*1.15","v":0},null,{"$f":"ROUNDUP((E12/50),0)","v":0},"Rull","à 50 m²",null,{"$f":"G12*799","v":0}]
[null,null,{"$f":"IF(VLOOKUP(VentiGuard!G18,VentiGuard!K17:V21,12,FALSE)=\"\",\"\",VLOOKUP(VentiGuard!G18,VentiGuard!K17:V21,12,FALSE))","v":30171474},{"$f":"IF(VLOOKUP(VentiGuard!G18,VentiGuard!K17:W21,13,FALSE)=\"\",\"\",VLOOKUP(VentiGuard!G18,VentiGuard!K17:W21,13,FALSE))","v":"Silco paint std farge 15 kg"},{"$f":"VLOOKUP(VentiGuard!G18,VentiGuard!K17:AA23,17,FALSE)","v":0},null,{"$f":"VLOOKUP(VentiGuard!G18,VentiGuard!K17:AB23,18,FALSE)","v":0},"Spann",{"$f":"VLOOKUP(VentiGuard!G18,VentiGuard!K17:Y23,15,FALSE)","v":"à 15 kg"},null,{"$f":"VLOOKUP(VentiGuard!#REF!,VentiGuard!K17:AD23,20,FALSE)","v":{"$error":"#REF!"}}]
[null,null,{"$f":"VLOOKUP(VentiGuard!G18,VentiGuard!K17:L21,2,FALSE)","v":30171516},{"$f":"VLOOKUP(VentiGuard!G18,VentiGuard!K17:M21,3,FALSE)","v":"Silco render std farge 20 kg"},{"$f":"VLOOKUP(VentiGuard!G18,VentiGuard!K17:Q21,7,FALSE)","v":0},null,{"$f":"VLOOKUP(VentiGuard!G18,VentiGuard!K17:R21,8,FALSE)","v":0},"Spann",{"$f":"VLOOKUP(VentiGuard!G18,VentiGuard!K17:O21,5,FALSE)","v":"à 20 kg"},null,{"$f":"VLOOKUP(VentiGuard!#REF!,VentiGuard!K17:T23,10,FALSE)","v":{"$error":"#REF!"}}]
[null,null,57869961,"Aquapanel Outdoor",{"$f":"ROUNDUP(VentiGuard!H10+VentiGuard!H11*0.1,0)","v":0},null,{"$f":"ROUNDUP(E15/1.08,0)","v":0},"Stk","à 1,08 m²",null,{"$f":"G15*259.2","v":0}]
[null,null,{"$f":"VLOOKUP(VentiGuard!G16,VentiGuard!K10:L11,2,FALSE)","v":48153136},{"$f":"VLOOKUP(VentiGuard!G16,VentiGuard!K10:M11,3,FALSE)","v":"Spiker Båndet A2 40x2,1 mm"},{"$f":"VLOOKUP(VentiGuard!G16,VentiGuard!K10:O11,5,FALSE)","v":0},null,{"$f":"VLOOKUP(VentiGuard!G16,VentiGuard!K10:P11,6,FALSE)","v":0},"Eske",{"$f":"VLOOKUP(VentiGuard!G16,VentiGuard!K10:N11,4,FALSE)","v":"à 1300 stk"},null,{"$f":"VLOOKUP(C16,VentiGuard!L10:Q11,6,FALSE)*G16","v":0}]
[null,null,40169500,"Utvendig skjøtetape 0,1x50 m",{"$f":"VentiGuard!H10*2.1","v":0},null,{"$f":"ROUNDUP(E17/50,0)","v":0},"Rull","à 50 m",null,{"$f":"G17*261","v":0}]
[null,null,42160886,"Sparkelmasse Grå 20kg Aquapanel Outdoor",{"$f":"VentiGuard!H10*0.7","v":0},null,{"$f":"ROUNDUP((E18/20),0)","v":0},"Sekk","à 20 kg",null,{"$f":"G18*462","v":0}]
[null,null,55367385,"Weber 401 Startlist 8 mm",{"$f":"VentiGuard!H12","v":0},null,{"$f":"ROUNDUP((E19/2.5),0)","v":0},"Stk","à 2,5 m",null,{"$f":"G19*128","v":0}]
[null,null,48358573,"Weber 428 Vindusprofil 8 mm",{"$f":"VentiGuard!H11","v":0},null,{"$f":"ROUNDUP((E20/2.6),0)","v":0},"Stk","à 2,6 m",null,{"$f":"G20*104","v":0}]
[null,null,44672441,"Weber.therm Fugebånd 3-10 mm",{"$f":"VentiGuard!H14+VentiGuard!H11","v":0},null,{"$f":"ROUNDUP((E21/10),0)","v":0},"Rull","à 10 m",null,{"$f":"G21*152","v":0}]
[null,null,57187253,"Weber.therm 391 Hjørnelist",{"$f":"VentiGuard!H11+VentiGuard!H13","v":0},null,{"$f":"ROUNDUP((E22/2.5),0)","v":0},"Stk","à 2,5 m",null,{"$f":"G22*56","v":0}]

{"sheet":"Lecablokker","index":19,"n_rows":17,"n_cols":10,"rows_kept":17,"cut":false,"hidden":true,"merged":[[2,9,2,10],[3,9,4,10],[8,2,10,5],[6,3,6,9],[8,12,10,15],[12,12,14,15],[16,12,18,15],[20,12,22,15],[12,2,14,5],[16,2,18,5],[8,7,10,10],[12,7,14,10],[16,7,18,10],[20,7,22,10]]}
[]
[]
[]
[null,null,null,null,null,null,null,null,null,"Forside"]
[]
[]
[null,null,null,"Lecablokk Kalkulasjoner"]
[]
[null,null,"ISO 30",null,null,null,null,"Fasadeblokk"]
[]
[]
[]
[null,null,"ISO 25",null,null,null,null,"Lettveggsblokk"]
[]
[]
[]
[null,null,"Basicblokk",null,null,null,null,"Universalblokk"]

{"sheet":"Leca Venti Ettløps Pipe","index":20,"n_rows":39,"n_cols":10,"rows_kept":39,"cut":false,"hidden":true,"merged":[[38,5,38,7],[3,5,4,6],[2,5,2,6]]}
[]
[]
[]
[null,null,null,null,null,"Forside"]
[]
[]
[]
[]
[]
[]
[null,null,null,null,null,"Pipehøyde (nr.1)",0,"m","(flervalg)","?"]
[null,null,null,null,null,"Antall meter pipe over tak",0,"m","(inntasting)"]
[null,null,null,null,null,"Antall sider overflatebehandling innendørs",0,null,"(inntasting)"]
[null,null,null,null,null,"Antall innerrør med røykinnføring",0,"stk","(inntasting)","?"]
[]
[null,null,null,null,null,"Skal pipen ha toppbeslag & pipehatt?","Ja",null,"(flervalg)","?"]
[null,null,null,null,null,"Skal pipen ha heltekkende beslag?","Nei",null,"(flervalg)","?"]
[null,null,null,null,null,"Forlenger for Heltekkende pipebeslag?","Nei",null,"(flervalg)","?"]
[null,null,null,null,null,"Skal du dekke taket med takstein ","Takstein",null,"(flervalg)","?"]
[null,null,null,null,null,"eller papp (flatt takbelegg)?"]
[]
[null,null,null,null,null,"Antall pipe",0,"stk","(inntasting)"]
[]
[]
[]
[null,null,null,null,null,"Pipehøyde (nr. 2)",0,"m","(flervalg)","?"]
[null,null,null,null,null,"Antall meter pipe over tak",0,"m","(inntasting)"]
[null,null,null,null,null,"Antall sider overflatebehandling innendørs",0,null,"(inntasting)"]
[null,null,null,null,null,"Antall innerrør med røykinnføring*",0,"stk","(inntasting)","?"]
[]
[null,null,null,null,null,"Skal pipen ha toppbeslag & pipehatt?","Ja",null,"(flervalg)","?"]
[null,null,null,null,null,"Skal pipen ha heltekkende beslag?","Nei",null,"(flervalg)","?"]
[null,null,null,null,null,"Forlenger for Heltekkende pipebeslag?","Nei",null,"(flervalg)","?"]
[null,null,null,null,null,"Skal du dekke taket med takstein ","Takstein",null,"(flervalg)","?"]
[null,null,null,null,null,"eller papp (flatt takbelegg)?"]
[]
[null,null,null,null,null,"Antall pipe",0,"stk","(inntasting)"]
[]
[null,null,null,"Klikk her for:",null,"Materialliste Ettløps"]

{"sheet":"Leca Venti Toløps Pipe","index":21,"n_rows":34,"n_cols":9,"rows_kept":34,"cut":false,"hidden":true,"merged":[[33,4,33,6],[3,7,4,8],[3,5,4,6],[2,7,2,8],[2,5,2,6]]}
[]
[]
[]
[null,null,null,null,null,null,null,"Forside"]
[]
[]
[]
[]
[]
[null,null,null,null,"Pipehøyde (nr.1)",0,"m","(flervalg)","?"]
[null,null,null,null,"Antall meter pipe over tak",0,"m","(inntasting)"]
[null,null,null,null,"Antall sider overflatebehandling innendørs",0,null,"(inntasting)"]
[]
[null,null,null,null,"Skal pipen ha toppbeslag & pipehatt?","Ja",null,"(flervalg)","?"]
[null,null,null,null,"Antall innerrør med røykinnføring",0,"stk","(inntasting)","?"]
[null,null,null,null,"Antall meter pipeløp fyllet med",0,"m","(inntasting)","?"]
[null,null,null,null," løs Leca ved flere etasjer"]
[]
[null,null,null,null,"Antall pipe",0,"stk","(inntasting)"]
[]
[]
[]
[null,null,null,null,"Pipehøyde (nr.2)",0,"m","(flervalg)","?"]
[null,null,null,null,"Antall meter pipe over tak",0,"m","(inntasting)"]
[null,null,null,null,"Antall sider overflatebehandling innendørs",0,null,"(inntasting)"]
[]
[null,null,null,null,"Skal pipen ha toppbeslag & pipehatt?","Ja",null,"(flervalg)","?"]
[null,null,null,null,"Antall innerrør med røykinnføring",0,"stk","(inntasting)","?"]
[null,null,null,null,"Antall meter pipeløp fyllet med",0,"m","(inntasting)","?"]
[null,null,null,null," løs Leca ved flere etasjer"]
[]
[null,null,null,null,"Antall pipe",0,"stk","(inntasting)"]
[]
[null,null,null,"Klikk her for:","Materialliste Toløps"]

{"sheet":"Materialliste Toløps","index":22,"n_rows":49,"n_cols":25,"rows_kept":49,"cut":false,"hidden":true,"merged":[[33,1,33,3],[33,4,33,6],[21,15,21,17],[22,15,22,17],[23,15,23,17],[32,1,32,3],[32,4,32,6],[22,1,22,3],[22,4,22,6],[21,4,21,6],[21,1,21,3],[23,1,23,3],[24,1,24,3],[25,1,25,3],[31,1,31,3],[30,1,30,3],[48,14,48,19],[37,14,39,25],[41,14,42,25],[28,18,28,20],[44,14,46,25],[34,14,34,27],[20,15,20,17],[20,18,20,20],[14,18,14,20],[15,18,15,20],[16,15,16,17],[17,15,17,17],[18,15,18,17],[19,15,19,17],[14,15,14,17],[17,18,17,20],[18,18,18,20],[19,18,19,20],[17,1,17,3],[17,4,17,6],[18,1,18,3],[18,4,18,6],[20,1,20,3],[19,1,19,3],[19,4,19,6],[11,4,11,6],[12,0,12,1],[16,1,16,3],[16,4,16,6],[14,1,14,3],[14,4,14,6],[15,1,15,3],[15,4,15,6],[13,1,13,3],[13,4,13,6],[34,1,34,3],[34,4,34,6],[35,1,35,3],[35,4,35,6],[36,1,36,3],[36,4,36,6],[38,1,38,3],[38,4,38,6],[39,1,39,3],[39,4,39,6],[37,1,37,3],[43,4,43,6],[22,18,22,20],[23,18,23,20],[24,18,24,20],[25,18,25,20],[26,18,26,20],[27,18,27,20],[24,15,24,17],[23,4,23,6],[24,4,24,6],[25,4,25,6],[30,4,30,6],[31,4,31,6],[37,4,37,6],[40,1,40,3],[40,4,40,6],[41,1,41,3],[41,4,41,6],[42,1,42,3],[42,4,42,6],[29,0,29,1],[26,4,26,6],[6,20,7,24],[8,23,8,27],[21,18,21,20],[15,15,15,17],[20,4,20,6],[8,14,8,17],[11,13,12,13],[8,20,8,21],[13,15,13,17],[16,18,16,20],[11,7,11,8],[13,21,13,22],[13,18,13,20],[11,1,11,3]]}
[]
[]
[]
[]
[]
[]
[]
[]
[null,null,null,null,null,null,null,null,null,null,null,null,null,null,"Byggkalkulasjon - materialliste",null,null,null,null,null,"Forside",null,null,"Leca Venti Toløps Pipe"]
[]
[]
["Nobb-nr","Produkt",null,null,"Kalk. antall",null,null,"Ant. enhet",null,"Enhet","Pris",null,null,"Enhet pris 2017","Sortert etter produktnavn for begge piper:"]
["Leca Venti toløps pipe, H= ",null,{"$f":"'Leca Venti Toløps Pipe'!F10","v":0},"m","for",{"$f":"'Leca Venti Toløps Pipe'!F19","v":0},"stk"]
[47978586,"Pipeelement 20x48x82 cm toløps pipe",null,null,{"$f":"(VLOOKUP('Leca Venti Toløps Pipe'!F10,Data!O7:S53,5,FALSE))*'Leca Venti Toløps Pipe'!F19","v":0},null,null,{"$f":"E14","v":0},"à 1 stk","stk",{"$f":"H14*N14","v":0},null,null,154,"Nobb-nr","Produkt",null,null,"Kalk. antall",null,null,"Ant. enhet",null,null,"Enhet"]
[47978624,"Sotluke til toløps Leca Venti Pipe",null,null,{"$f":"2*'Leca Venti Toløps Pipe'!F19","v":0},null,null,0,"à 1 stk","stk",{"$f":"H15*N15","v":0},null,null,598,47978586,"Pipeelement 20x48x82 cm",null,null,{"$f":"E14+E31","v":0},null,null,{"$f":"S15","v":0},"à 1 stk",null,"stk"]
["47704186","Innerrør 50 cm Ø18 cm til Leca Venti Pipe",null,null,{"$f":"((VLOOKUP('Leca Venti Toløps Pipe'!F10,Data!O7:T53,6,FALSE))*'Leca Venti Toløps Pipe'!F19)-E20","v":0},null,null,0,"à 1 stk","stk",0,null,null,282,47978624,"Sotluke til toløps Leca Venti Pipe",null,null,0,null,null,0,"à 1 stk",null,"stk"]
[47704194,"Innerrør 25 cm Ø18 cm til Leca Venti Pipe",null,null,{"$f":"(VLOOKUP('Leca Venti Toløps Pipe'!F10,Data!O7:U53,7,FALSE))*'Leca Venti Toløps Pipe'!F19","v":0},null,null,0,"à 1 stk","stk",0,null,null,191,"47704186","Innerrør 50 cm Ø18 cm til Leca Venti Pipe",null,null,0,null,null,0,"à 1 stk",null,"stk"]
["47704205","Innerrør uisolert 25 cm Ø18 cm",null,null,{"$f":"2*'Leca Venti Toløps Pipe'!F19","v":0},null,null,0,"à 1 stk","stk",0,null,null,69,47704194,"Innerrør 25 cm Ø18 cm til Leca Venti Pipe",null,null,0,null,null,0,"à 1 stk",null,"stk"]
["47704213","Innerrør uisolert m/sotluke 50 cm Ø18cm",null,null,{"$f":"2*'Leca Venti Toløps Pipe'!F19","v":0},null,null,0,"à 1 stk","stk",0,null,null,362,"47704205","Innerrør uisolert 25 cm Ø18 cm",null,null,0,null,null,0,"à 1 stk",null,"stk"]
["47704224","Innerrør m/røykinnføring 50 cm Ø18 cm",null,null,{"$f":"'Leca Venti Toløps Pipe'!F15*'Leca Venti Toløps Pipe'!F19","v":0},null,null,0,"à 1 stk","stk",0,null,null,734,"47704213","Innerrør uisolert m/sotluke 50 cm Ø18cm",null,null,0,null,null,0,"à 1 stk",null,"stk"]
["10586147","Leca Ildfast masse - 0,3 liter",null,null,{"$f":"(VLOOKUP('Leca Venti Toløps Pipe'!F10,Data!O7:V53,8,FALSE))*'Leca Venti Toløps Pipe'!F19","v":0},null,null,0,"à 1 stk","patron",0,null,null,87,"47704224","Innerrør m/røykinnføring 50 cm Ø18 cm",null,null,0,null,null,0,"à 1 stk",null,"stk"]
[41600172,"Toppbeslag for toløps Leca Venti Pipe",null,null,{"$f":"(VLOOKUP('Leca Venti Toløps Pipe'!F14,Data!Q57:R58,2,FALSE))*'Leca Venti Toløps Pipe'!F19","v":0},null,null,0,"à 1 stk","stk",0,null,null,1493,"10586147","Leca Ildfast masse - 0,3 liter",null,null,0,null,null,0,"à 1 stk",null,"patron"]
["41856901","Pipehatt Leca Venti Pipe",null,null,{"$f":"(VLOOKUP('Leca Venti Toløps Pipe'!F14,Data!Q57:S58,3,FALSE))*'Leca Venti Toløps Pipe'!F19","v":0},null,null,0,"à 1 stk","stk",0,null,null,864,41600172,"Toppbeslag for toløps Leca Venti Pipe",null,null,0,null,null,0,"à 1 stk",null,"stk"]
[50410636,"Weber Grå Slemming - 20 kg",null,null,{"$f":"(ROUNDUP('Leca Venti Toløps Pipe'!F11*2.6*6,0))*'Leca Venti Toløps Pipe'!F19","v":0},null,null,{"$f":"ROUNDUP(E24/20,0)","v":0},"à 20 kg","sekk",0,null,null,137,"41856901","Pipehatt Leca Venti Pipe",null,null,0,null,null,0,"à 1 stk",null,"stk"]
[5200854263,"Weber.base KC 50/50 - 25 kg",null,null,{"$f":"(ROUNDUP((('Leca Venti Toløps Pipe'!F10-'Leca Venti Toløps Pipe'!F11)/21)*'Leca Venti Toløps Pipe'!F12*100*2.33,0))*'Leca Venti Toløps Pipe'!F19","v":0},null,null,{"$f":"CEILING(E25,25)/25","v":0},"à 25 kg","sekk",0,null,null,71,50410636,"Weber Grå Slemming - 20 kg",null,null,0,null,null,{"$f":"H24+H41","v":0},"à 20 kg",null,"sekk"]
[5200854261,"Weber Murmørtel M5 - 25 kg",null,null,{"$f":"(ROUNDUP(('Leca Venti Toløps Pipe'!F10/21)*100*3,0))*'Leca Venti Toløps Pipe'!F19","v":0},null,null,{"$f":"CEILING(E26,25)/25","v":0},"à 25 kg","sekk",0,null,null,52.3,55244238,"Weber.base KC 35/65 - 25 kg",null,null,0,null,null,{"$f":"H25+H42","v":0},"à 25 kg",null,"sekk"]
[44703358,"Løs Leca® Iso 10-20 - 50 liter",null,null,{"$f":"(ROUNDUP('Leca Venti Toløps Pipe'!F16*0.11*1000,0))*'Leca Venti Toløps Pipe'!F19","v":0},null,null,{"$f":"CEILING(E27,50)/50","v":0},"à 50 ltr","sekk",0,null,null,102,55244204,"Weber Murmørtel M5 - 25 kg",null,null,0,null,null,{"$f":"H26+H43","v":0},"à 25 kg",null,"sekk"]
[5200854255,"Weber B20 - 25 kg",null,null,{"$f":"IF(E27=0,\"0\",75*F13)","v":"0"},null,null,{"$f":"IF(E27=0,\"0\",E28/25)","v":"0"},"à 25 kg","sekk",0,null,null,51.7,44703358,"Løs Leca® Iso 10-20 - 50 liter",null,null,0,null,null,{"$f":"H27+H44","v":0},"à 50 ltr",null,"sekk"]
[null,null,null,null,null,null,null,null,null,null,null,null,null,null,55244174,"Weber B20 - 25 kg",null,null,0,null,null,{"$f":"H28+H45","v":0},"à 25 kg",null,"sekk"]
[]
[]
[]
[]
[47704194,"Innerrør 25 cm Ø18 cm til Leca Venti Pipe",null,null,{"$f":"(VLOOKUP('Leca Venti Toløps Pipe'!F28,Data!O7:U53,7,FALSE))*'Leca Venti Toløps Pipe'!F32","v":0},null,null,{"$f":"E34","v":0},"à 1 stk","stk",{"$f":"H34*N34","v":0},null,null,191]
["47704205","Innerrør uisolert 25 cm Ø18 cm",null,null,{"$f":"2*'Leca Venti Toløps Pipe'!F32","v":0},null,null,0,"à 1 stk","stk",0,null,null,69]
["47704213","Innerrør uisolert m/sotluke 50 cm Ø18cm",null,null,{"$f":"2*'Leca Venti Toløps Pipe'!F32","v":0},null,null,0,"à 1 stk","stk",0,null,null,362]
["47704224","Innerrør m/røykinnføring 50 cm Ø18 cm",null,null,{"$f":"'Leca Venti Toløps Pipe'!F28*'Leca Venti Toløps Pipe'!F32","v":0},null,null,0,"à 1 stk","stk",0,null,null,734]
["10586147","Leca Ildfast masse - 0,3 liter",null,null,{"$f":"(VLOOKUP('Leca Venti Toløps Pipe'!F23,Data!O7:V53,8,FALSE))*'Leca Venti Toløps Pipe'!F32","v":0},null,null,0,"à 1 stk","patron",0,null,null,87]
[41600172,"Toppbeslag for toløps Leca Venti Pipe",null,null,{"$f":"(VLOOKUP('Leca Venti Toløps Pipe'!F27,Data!Q57:R58,2,FALSE))*'Leca Venti Toløps Pipe'!F32","v":0},null,null,0,"à 1 stk","stk",0,null,null,1493]
["41856901","Pipehatt Leca Venti Pipe",null,null,{"$f":"(VLOOKUP('Leca Venti Toløps Pipe'!F27,Data!Q57:S58,3,FALSE))*'Leca Venti Toløps Pipe'!F32","v":0},null,null,0,"à 1 stk","stk",0,null,null,864]
[50410636,"Weber Grå Slemming - 20 kg",null,null,{"$f":"(ROUNDUP('Leca Venti Toløps Pipe'!F24*2.6*6,0))*'Leca Venti Toløps Pipe'!F32","v":0},null,null,{"$f":"ROUNDUP(E41/20,0)","v":0},"à 20 kg","sekk",0,null,null,137]
[5200854263,"Weber.base KC 50/50 - 25 kg",null,null,{"$f":"(ROUNDUP((('Leca Venti Toløps Pipe'!F23-'Leca Venti Toløps Pipe'!F24)/21)*'Leca Venti Toløps Pipe'!F25*100*2.33,0))*'Leca Venti Toløps Pipe'!F32","v":0},null,null,{"$f":"CEILING(E42,25)/25","v":0},"à 25 kg","sekk",0,null,null,71]
[5200854261,"Weber Murmørtel M5 - 25 kg",null,null,{"$f":"(ROUNDUP(('Leca Venti Toløps Pipe'!F23/21)*100*3,0))*'Leca Venti Toløps Pipe'!F32","v":0},null,null,{"$f":"CEILING(E43,25)/25","v":0},"à 25 kg","sekk",0,null,null,52.3]
[44703358,"Løs Leca® Iso 10-20 - 50 liter",null,null,{"$f":"(ROUNDUP('Leca Venti Toløps Pipe'!F29*0.11*1000,0))*'Leca Venti Toløps Pipe'!F32","v":0},null,null,{"$f":"CEILING(E44,50)/50","v":0},"à 50 ltr","sekk",0,null,null,102]
[5200854255,"Weber B20 - 25 kg",null,null,{"$f":"IF(E44=0,\"0\",75*F30)","v":"0"},null,null,{"$f":"IF(E44=0,\"0\",E45/25)","v":"0"},"à 25 kg","sekk",0,null,null,51.7]
[null,null,null,null,null,null,null,null,null,"Totalt eks mva ",{"$f":"SUM(K14:K28,K31:K45)","v":0}]
[null,null,null,null,null,null,null,null,null,"MVA ",{"$f":"K46*0.25","v":0}]
[null,null,null,null,null,null,null,null,null,"Totalt ",{"$f":"SUM(K46:K47)","v":0}]
[null,null,null,null,null,null,null,null,null,null,"NB: Veiledende priser"]

{"sheet":"Leca Maxi Pipe","index":23,"n_rows":21,"n_cols":9,"rows_kept":21,"cut":false,"hidden":true,"merged":[[20,4,20,6],[3,7,4,8],[3,5,4,6],[2,7,2,8]]}
[]
[]
[]
[null,null,null,null,null,null,null,"Forside"]
[]
[]
[]
[]
[]
[]
[null,null,null,null,"Pipehøyde",0,"m","(flervalg)","?"]
[null,null,null,null,"Antall meter pipe over tak",0,"m","(inntasting)"]
[null,null,null,null,"Antall sider overflatebehandling innendørs",0,null,"(inntasting)"]
[null,null,null,null,"Antall røykinnføring 200 25/25",0,"stk","(inntasting)","?"]
[]
[null,null,null,null,"Skal pipen ha Toppbeslag & Pipehatt?","Ja",null,"(flervalg)","?"]
[null,null,null,null,"Skal pipen ha Ekspansjonsblikk 25/25 cm?","Nei",null,"(flervalg)","?"]
[]
[null,null,null,null,"Antall pipe",0,"stk","(inntasting)"]
[]
[null,null,null,"Klikk her for:","Materialliste Maxi"]

{"sheet":"Materialliste Ettløps","index":24,"n_rows":51,"n_cols":25,"rows_kept":51,"cut":false,"hidden":true,"merged":[[15,16,15,18],[15,19,15,21],[16,16,16,18],[12,16,12,18],[12,19,12,21],[13,16,13,18],[29,16,29,18],[42,4,42,6],[23,4,23,6],[24,19,24,21],[25,16,25,18],[25,19,25,21],[21,16,21,18],[21,19,21,21],[22,16,22,18],[22,19,22,21],[23,16,23,18],[23,19,23,21],[29,19,29,21],[16,19,16,21],[17,16,17,18],[17,19,17,21],[20,16,20,18],[20,19,20,21],[30,23,30,24],[31,23,31,24],[49,15,49,20],[38,15,40,25],[42,15,43,25],[45,15,47,25],[32,23,32,24],[27,16,27,18],[27,19,27,21],[28,16,28,18],[28,19,28,21],[35,15,35,24],[24,16,24,18],[18,16,18,18],[18,19,18,21],[19,16,19,18],[19,19,19,21],[20,1,20,3],[20,4,20,6],[21,1,21,3],[21,4,21,6],[22,1,22,3],[22,4,22,6],[23,1,23,3],[19,4,19,6],[26,16,26,18],[26,19,26,21],[43,1,43,3],[43,4,43,6],[44,1,44,3],[44,4,44,6],[45,1,45,3],[45,4,45,6],[42,1,42,3],[13,19,13,21],[14,16,14,18],[14,19,14,21],[36,1,36,3],[36,4,36,6],[37,1,37,3],[37,4,37,6],[41,1,41,3],[41,4,41,6],[35,1,35,3],[35,4,35,6],[24,1,24,3],[24,4,24,6],[25,1,25,3],[25,4,25,6],[26,1,26,3],[26,4,26,6],[27,1,27,3],[27,4,27,6],[17,1,17,3],[17,4,17,6],[18,1,18,3],[18,4,18,6],[19,1,19,3],[47,8,47,9],[48,8,48,9],[49,8,49,9],[29,0,29,1],[30,1,30,3],[30,4,30,6],[31,1,31,3],[31,4,31,6],[32,1,32,3],[32,4,32,6],[33,1,33,3],[33,4,33,6],[34,1,34,3],[34,4,34,6],[38,1,38,3],[38,4,38,6],[39,1,39,3],[39,4,39,6],[40,1,40,3],[40,4,40,6],[46,1,46,3],[46,4,46,6],[14,1,14,3],[14,4,14,6],[15,1,15,3],[15,4,15,6],[16,1,16,3],[16,4,16,6],[2,20,3,23],[6,15,6,18],[4,20,4,21],[9,7,9,8],[10,0,10,1],[12,1,12,3],[12,4,12,6],[13,1,13,3],[13,4,13,6],[11,1,11,3],[11,4,11,6],[11,16,11,18],[11,19,11,21],[9,12,10,12],[9,1,9,3],[9,4,9,6],[4,23,4,24],[11,22,11,23]]}
[]
[]
[]
[]
[null,null,null,null,null,null,null,null,null,null,null,null,null,null,null,null,null,null,null,null,"Forside",null,null,"Leca Venti Ettløps Pipe"]
[]
[null,null,null,null,null,null,null,null,null,null,null,null,null,null,null,"Byggkalkulasjon - materialliste"]
[]
[]
["Nobb-nr","Produkt",null,null,"Kalk. antall",null,null,"Ant. enhet",null,"Enhet","Pris",null,"Enhet pris 2017",null,null,"Sortert etter produktnavn for begge piper:"]
["Leca Venti ettløps pipe, H= ",null,{"$f":"'Leca Venti Ettløps Pipe'!G11","v":0},"m","for",{"$f":"'Leca Venti Ettløps Pipe'!G22","v":0},"stk"]
[46124154,"Pipeelement 20x48x48 cm",null,null,{"$f":"(VLOOKUP('Leca Venti Ettløps Pipe'!G11,Data!A7:F53,6,FALSE))*F11","v":0},null,null,{"$f":"E12","v":0},"à 1 stk","stk",{"$f":"H12*M12","v":0},null,71,null,null,"Nobb-nr","Produkt",null,null,"Kalk. antall",null,null,"Ant. enhet",null,"Enhet"]
[46124146,"Sotlukeelement 23x48x48 cm ",null,null,{"$f":"1*'Leca Venti Ettløps Pipe'!G22","v":0},null,null,0,"à 1 stk","stk",0,null,631,null,null,46124154,"Pipeelement 20x48x48 cm",null,null,{"$f":"E12+E31","v":0},null,null,{"$f":"T13","v":0},"à 1 stk","stk"]
[46124135,"Sokkelelement 30x48x48 cm",null,null,{"$f":"1*'Leca Venti Ettløps Pipe'!G22","v":0},null,null,{"$f":"E14","v":0},"à 1 stk","stk",0,null,508,null,null,46124146,"Sotlukeelement 23x48x48 cm ",null,null,0,null,null,{"$f":"T14","v":0},"à 1 stk","stk"]
["47704186","Innerrør 50 cm Ø18 cm",null,null,{"$f":"(VLOOKUP('Leca Venti Ettløps Pipe'!G11,Data!A7:G53,7,FALSE)*'Leca Venti Ettløps Pipe'!G22)-E19","v":0},null,null,0,"à 1 stk","stk",0,null,282,null,null,46124135,"Sokkelelement 30x48x48 cm",null,null,0,null,null,0,"à 1 stk","stk"]
[47704194,"Innerrør 25 cm Ø18 cm",null,null,{"$f":"(VLOOKUP('Leca Venti Ettløps Pipe'!G11,Data!A7:H53,8,FALSE))*'Leca Venti Ettløps Pipe'!G22","v":0},null,null,0,"à 1 stk","stk",0,null,191,null,null,"47704186","Innerrør 50 cm Ø18 cm",null,null,0,null,null,0,"à 1 stk","stk"]
["47704205","Innerrør uisolert 25 cm Ø18 cm",null,null,{"$f":"1*'Leca Venti Ettløps Pipe'!G22","v":0},null,null,0,"à 1 stk","stk",0,null,69,null,null,47704194,"Innerrør 25 cm Ø18 cm",null,null,0,null,null,0,"à 1 stk","stk"]
["47704213","Innerrør uisolert m/sotluke 50 cm Ø18cm",null,null,{"$f":"1*'Leca Venti Ettløps Pipe'!G22","v":0},null,null,0,"à 1 stk","stk",0,null,362,null,null,"47704205","Innerrør uisolert 25 cm Ø18 cm",null,null,0,null,null,0,"à 1 stk","stk"]
["47704224","Innerrør m/røykinnføring 50 cm Ø18 cm",null,null,{"$f":"'Leca Venti Ettløps Pipe'!G14*'Leca Venti Ettløps Pipe'!G22","v":0},null,null,0,"à 1 stk","stk",0,null,734,null,null,"47704213","Innerrør uisolert m/sotluke 50 cm Ø18cm",null,null,0,null,null,0,"à 1 stk","stk"]
["10586147","Leca Ildfast masse - 0,3 liter",null,null,{"$f":"(VLOOKUP('Leca Venti Ettløps Pipe'!G11,Data!A7:I53,9,FALSE))*'Leca Venti Ettløps Pipe'!G22","v":0},null,null,0,"à 1 stk","patron",0,null,87,null,null,"47704224","Innerrør m/røykinnføring 50 cm Ø18 cm",null,null,0,null,null,0,"à 1 stk","stk"]
[41856897,"Toppbeslag for ettløps Leca Venti Pipe",null,null,{"$f":"VLOOKUP('Leca Venti Ettløps Pipe'!G16,Data!B57:C58,2,FALSE)*'Leca Venti Ettløps Pipe'!G22","v":0},null,null,0,"à 1 stk","stk",0,null,797,null,null,"10586147","Leca Ildfast masse - 0,3 liter",null,null,0,null,null,0,"à 1 stk","patron"]
["41856901","Pipehatt Leca Venti Pipe",null,null,{"$f":"VLOOKUP('Leca Venti Ettløps Pipe'!G16,Data!B57:D58,3,FALSE)*'Leca Venti Ettløps Pipe'!G22","v":0},null,null,0,"à 1 stk","stk",0,null,864,null,null,41856897,"Toppbeslag for ettløps Leca Venti Pipe",null,null,0,null,null,0,"à 1 stk","stk"]
[21658034,"Pipebeslag heltekkende for ettløp Leca Venti Pipe",null,null,{"$f":"VLOOKUP('Leca Venti Ettløps Pipe'!G17,Data!I57:J58,2,FALSE)*'Leca Venti Ettløps Pipe'!G22","v":0},null,null,{"$f":"E23","v":0},"à 1 stk","stk",0,null,2055,null,null,"41856901","Pipehatt Leca Venti Pipe",null,null,0,null,null,0,"à 1 stk","stk"]
[21150891,"Forlenger for heltekkende pipebeslag",null,null,{"$f":"(VLOOKUP('Leca Venti Ettløps Pipe'!G18,Data!I57:L58,4,FALSE))*F11","v":0},null,null,{"$f":"E24","v":0},"à 1 stk","stk",0,null,850,null,null,21658034,"Pipebeslag heltekkende for ettløp Leca Venti Pipe",null,null,0,null,null,0,"à 1 stk","stk"]
[{"$f":"VLOOKUP('Leca Venti Ettløps Pipe'!G19,Data!B61:G62,6,FALSE)","v":10586113},{"$f":"VLOOKUP('Leca Venti Ettløps Pipe'!G19,Data!B61:C62,2,FALSE)","v":"Pipebeslag m/formbart fotstykke"},null,null,{"$f":"1*F11","v":0},null,null,{"$f":"E25","v":0},"à 1 stk","stk",{"$f":"(VLOOKUP('Leca Venti Ettløps Pipe'!G19,Data!B61:H62,7,FALSE))*H25","v":0},null,"data ark",null,null,21150891,"Forlenger for heltekkende pipebeslag",null,null,0,null,null,0,"à 1 stk","stk"]
[50410636,"Weber Grå Slemming - 20 kg",null,null,{"$f":"IF(E23=0,(ROUNDUP('Leca Venti Ettløps Pipe'!G12*1.92*6,0))*'Leca Venti Ettløps Pipe'!G22,\"0\")","v":0},null,null,{"$f":"ROUNDUP(E26/20,0)","v":0},"à 20 kg","sekk",{"$f":"H26*M26","v":0},null,137,null,null,{"$f":"A25","v":10586113},{"$f":"B25","v":"Pipebeslag m/formbart fotstykke"},null,null,{"$f":"E25","v":0},null,null,0,"à 1 stk","stk"]
[5200854263,"Weber.base KC 50/50 - 25 kg",null,null,{"$f":"(ROUNDUP((('Leca Venti Ettløps Pipe'!G11-'Leca Venti Ettløps Pipe'!G12)/21)*100*1.715*'Leca Venti Ettløps Pipe'!G13,0))*'Leca Venti Ettløps Pipe'!G22","v":0},null,null,{"$f":"CEILING(E27,25)/25","v":0},"à 25 kg","sekk",{"$f":"H27*M27","v":0},null,71,null,null,{"$f":"A44","v":10586113},{"$f":"B44","v":"Pipebeslag m/formbart fotstykke"},null,null,{"$f":"E44","v":0},null,null,0,"à 1 stk","stk"]
[5200854261,"Weber Murmørtel M5 - 25 kg",null,null,{"$f":"(ROUNDUP(('Leca Venti Ettløps Pipe'!G11/21)*100*2.1,0))*'Leca Venti Ettløps Pipe'!G22","v":0},null,null,{"$f":"CEILING(E28,25)/25","v":0},"à 25 kg","sekk",{"$f":"H28*M28","v":0},null,52.3,null,null,50410636,"Weber Grå Slemming - 20 kg",null,null,{"$f":"E26+E45","v":0},null,null,{"$f":"H26+H45","v":0},"à 20 kg","sekk"]
[null,null,null,null,null,null,null,null,null,null,null,null,null,null,null,55244223,"Weber.base KC 50/50 - 25 kg",null,null,{"$f":"E27+E46","v":0},null,null,{"$f":"H27+H46","v":0},"à 25 kg","sekk"]
["Leca Venti ettløps pipe, H= ",null,{"$f":"'Leca Venti Ettløps Pipe'!G26","v":0},"m","for",{"$f":"'Leca Venti Ettløps Pipe'!G37","v":0},"stk",null,null,null,null,null,null,null,null,55244204,"Weber Murmørtel M5 - 25 kg",null,null,{"$f":"E28+E47","v":0},null,null,{"$f":"H28+H47","v":0},"à 25 kg","sekk"]
[46124154,"Pipeelement 20x48x48 cm",null,null,{"$f":"(VLOOKUP('Leca Venti Ettløps Pipe'!G26,Data!A7:F53,6,FALSE))*F30","v":0},null,null,{"$f":"E31","v":0},"à 1 stk","stk",{"$f":"H31*M31","v":0},null,71]
[46124146,"Sotlukeelement 23x48x48 cm ",null,null,{"$f":"1*'Leca Venti Ettløps Pipe'!G37","v":0},null,null,{"$f":"E32","v":0},"à 1 stk","stk",0,null,631]
[46124135,"Sokkelelement 30x48x48 cm",null,null,{"$f":"1*'Leca Venti Ettløps Pipe'!G37","v":0},null,null,{"$f":"E33","v":0},"à 1 stk","stk",0,null,508]
["47704186","Innerrør 50 cm Ø18 cm",null,null,{"$f":"(VLOOKUP('Leca Venti Ettløps Pipe'!G26,Data!A7:G53,7,FALSE)*'Leca Venti Ettløps Pipe'!G37)-E38","v":0},null,null,{"$f":"E34","v":0},"à 1 stk","stk",0,null,282]
[47704194,"Innerrør 25 cm Ø18 cm",null,null,{"$f":"(VLOOKUP('Leca Venti Ettløps Pipe'!G26,Data!A7:H53,8,FALSE))*'Leca Venti Ettløps Pipe'!G37","v":0},null,null,0,"à 1 stk","stk",0,null,191]
["47704205","Innerrør uisolert 25 cm Ø18 cm",null,null,{"$f":"1*'Leca Venti Ettløps Pipe'!G37","v":0},null,null,0,"à 1 stk","stk",0,null,69]
["47704213","Innerrør uisolert m/sotluke 50 cm Ø18cm",null,null,{"$f":"1*'Leca Venti Ettløps Pipe'!G37","v":0},null,null,0,"à 1 stk","stk",0,null,362]
["47704224","Innerrør m/røykinnføring 50 cm Ø18 cm",null,null,{"$f":"'Leca Venti Ettløps Pipe'!G29*'Leca Venti Ettløps Pipe'!G37","v":0},null,null,0,"à 1 stk","stk",0,null,734]
["10586147","Leca Ildfast masse - 0,3 liter",null,null,{"$f":"(VLOOKUP('Leca Venti Ettløps Pipe'!G26,Data!A7:I53,9,FALSE))*'Leca Venti Ettløps Pipe'!G37","v":0},null,null,0,"à 1 stk","patron",0,null,87]
[41856897,"Toppbeslag for ettløps Leca Venti Pipe",null,null,{"$f":"VLOOKUP('Leca Venti Ettløps Pipe'!G31,Data!B57:C58,2,FALSE)*'Leca Venti Ettløps Pipe'!G37","v":0},null,null,0,"à 1 stk","stk",0,null,797]
["41856901","Pipehatt Leca Venti Pipe",null,null,{"$f":"VLOOKUP('Leca Venti Ettløps Pipe'!G31,Data!B57:D58,3,FALSE)*'Leca Venti Ettløps Pipe'!G37","v":0},null,null,0,"à 1 stk","stk",0,null,864]
[21658034,"Pipebeslag heltekkende for ettløp Leca Venti Pipe",null,null,{"$f":"VLOOKUP('Leca Venti Ettløps Pipe'!G32,Data!I57:J58,2,FALSE)*'Leca Venti Ettløps Pipe'!G37","v":0},null,null,{"$f":"E42","v":0},"à 1 stk","stk",0,null,2055]
[21150891,"Forlenger for heltekkende pipebeslag",null,null,{"$f":"(VLOOKUP('Leca Venti Ettløps Pipe'!G33,Data!I57:L58,4,FALSE))*F30","v":0},null,null,{"$f":"E43","v":0},"à 1 stk","stk",0,null,850]
[{"$f":"VLOOKUP('Leca Venti Ettløps Pipe'!G34,Data!B61:G62,6,FALSE)","v":10586113},{"$f":"VLOOKUP('Leca Venti Ettløps Pipe'!G34,Data!B61:C62,2,FALSE)","v":"Pipebeslag m/formbart fotstykke"},null,null,{"$f":"1*F30","v":0},null,null,{"$f":"E44","v":0},"à 1 stk","stk",{"$f":"(VLOOKUP('Leca Venti Ettløps Pipe'!G34,Data!B61:H62,7,FALSE))*H44","v":0},null,"data ark"]
[50410636,"Weber Grå Slemming - 20 kg",null,null,{"$f":"IF(E42=0,(ROUNDUP('Leca Venti Ettløps Pipe'!G27*1.92*6,0))*'Leca Venti Ettløps Pipe'!G37,\"0\")","v":0},null,null,{"$f":"ROUNDUP(E45/20,0)","v":0},"à 20 kg","sekk",{"$f":"H45*M45","v":0},null,137]
[5200854263,"Weber.base KC 50/50 - 25 kg",null,null,{"$f":"(ROUNDUP((('Leca Venti Ettløps Pipe'!G26-'Leca Venti Ettløps Pipe'!G27)/21)*100*1.715*'Leca Venti Ettløps Pipe'!G28,0))*'Leca Venti Ettløps Pipe'!G37","v":0},null,null,{"$f":"CEILING(E46,25)/25","v":0},"à 25 kg","sekk",{"$f":"H46*M46","v":0},null,71]
[5200854261,"Weber Murmørtel M5 - 25 kg",null,null,{"$f":"(ROUNDUP(('Leca Venti Ettløps Pipe'!G26/21)*100*2.1,0))*'Leca Venti Ettløps Pipe'!G37","v":0},null,null,{"$f":"CEILING(E47,25)/25","v":0},"à 25 kg","sekk",{"$f":"H47*M47","v":0},null,52.3]
[null,null,null,null,null,null,null,null,"Totalt eks mva ",null,{"$f":"SUM(K31:K47,K12:K28)","v":0}]
[null,null,null,null,null,null,null,null,"MVA ",null,{"$f":"K48*0.25","v":0}]
[null,null,null,null,null,null,null,null,"Totalt ",null,{"$f":"SUM(K48:K49)","v":0}]
[null,null,null,null,null,null,null,null,null,null,"NB: Veiledende priser"]

{"sheet":"Materialliste Maxi","index":25,"n_rows":22,"n_cols":12,"rows_kept":22,"cut":false,"hidden":true,"merged":[[27,2,28,11],[39,2,39,7],[10,13,11,13],[13,3,13,5],[13,6,13,8],[14,3,14,5],[14,6,14,8],[12,3,12,5],[12,6,12,8],[15,3,15,5],[15,6,15,8],[16,3,16,5],[16,6,16,8],[17,3,17,5],[20,3,20,5],[20,6,20,8],[11,2,11,3],[8,8,8,12],[22,10,22,11],[23,10,23,11],[24,10,24,11],[19,3,19,5],[19,6,19,8],[4,6,5,12],[6,11,6,12],[6,6,6,9],[8,2,8,5],[10,3,10,5],[10,6,10,8],[10,9,10,10],[21,3,21,5],[21,6,21,8],[17,6,17,8],[18,3,18,5],[18,6,18,8]]}
[]
[]
[]
[]
[]
[]
[null,null,null,null,null,null,"Forside",null,null,null,null,"Leca Maxi Pipe"]
[]
[null,null,"Byggkalkulasjoner - materialliste"]
[]
[null,null,"Nobb-nr","Produkt",null,null,"Kalk. antall",null,null,"Ant. enhet",null,"Enhet"]
[null,null,"Leca Maxi pipe, H= ",null,{"$f":"'Leca Maxi Pipe'!F11","v":0},"m","for",{"$f":"'Leca Maxi Pipe'!F19","v":0},"stk"]
[null,null,23643786,"Pipeelement 20x50x50 cm ",null,null,{"$f":"VLOOKUP('Leca Maxi Pipe'!F11,'Data (2)'!A7:B62,2,FALSE)*H12","v":0},null,null,{"$f":"G13","v":0},"à 1 stk","stk"]
[null,null,47704232,"Innerrør 50x25x25 cm, isolert",null,null,{"$f":"(VLOOKUP('Leca Maxi Pipe'!F11,'Data (2)'!A7:C62,3,FALSE)-G17)*H12","v":0},null,null,0,"à 1 stk","stk"]
[null,null,23816101,"Sotlukedør 9\" Leca",null,null,{"$f":"1*H12","v":0},null,null,0,"à 1 stk","stk"]
[null,null,23816390,"Ekspansjonsblikk 25/25 cm",null,null,{"$f":"VLOOKUP('Leca Maxi Pipe'!F17,'Data (2)'!Q12:R13,2,FALSE)*H12","v":0},null,null,0,"à 1 stk","stk"]
[null,null,25030206,"Røykinnføring 200 25/25 ",null,null,{"$f":"'Leca Maxi Pipe'!F14","v":0},null,null,0,"à 1 stk","stk"]
[null,null,23817075,"Toppbeslag/pipehatt i stål (sort)",null,null,{"$f":"VLOOKUP('Leca Maxi Pipe'!F16,'Data (2)'!N12:O13,2,FALSE)*H12","v":0},null,null,0,"à 1 stk","stk"]
[null,null,10586147,"Leca Ildfast masse - 0,3 liter",null,null,{"$f":"VLOOKUP('Leca Maxi Pipe'!F11,'Data (2)'!A7:F62,6,FALSE)*H12","v":0},null,null,0,"à 1 stk","patron"]
[null,null,50410636,"Weber Grå Slemming - 20 kg",null,null,{"$f":"(ROUNDUP('Leca Maxi Pipe'!F12*2*6,0))*H12","v":0},null,null,{"$f":"ROUNDUP(G20/20,0)","v":0},"à 20 kg","sekk"]
[null,null,55244223,"Weber.base KC 50/50 - 25 kg",null,null,{"$f":"(ROUNDUP((E12-'Leca Maxi Pipe'!F12)*0.5*17*'Leca Maxi Pipe'!F13,0))*H12","v":0},null,null,{"$f":"CEILING(G21,25)/25","v":0},"à 25 kg","sekk"]
[null,null,55244204,"Weber Murmørtel M5 - 25 kg",null,null,{"$f":"(ROUNDUP(E12*10,0))*H12","v":0},null,null,{"$f":"CEILING(G22,25)/25","v":0},"à 25 kg","sekk"]

{"sheet":"Data","index":26,"n_rows":62,"n_cols":26,"rows_kept":62,"cut":false,"hidden":true,"merged":[]}
[null,null,null,null,null,"Ettløps",null,null,null,null,null,null,null,null,null,null,null,null,null,null,"Toløps"]
["Nobb nr",46124135,47704205,46124146,47704213,46124154,47704186,47704194,10586147,"41856897/41856901",null,null,null,null,"Nobb nr",47704205,47978624,47704213,47978586,47704186,47704194,10586147,"41600172/41856901"]
[null,"Sokkel","Innerrør","Sotluke","Innerrør","Ytter","forinsrør","foringsrør","Ildfast","Toppbeslag/",null,null,null,null,null,"Innerrør","Sotluke","Innerrør","Ytter","forinsrør","foringsrør","Ildfast","Toppbeslag/"]
[null,"element","25 cm","element","m/sl","element","høyde 50 ","høyde 25","masse","Pipehatt",null,null,null,null,null,"25 cm","toløps venti","m/sl","element","høyde 50 ","høyde 25","masse","Pipehatt"]
["Pris",462,63,575,328,64,262,176,79,1529,"Pris","Ca. vekt","Ca. ant",null,"Pris",63,550,328,141,262,176,79,2964,"Pris","Ca. vekt","Ca. ant"]
["tot høyde","stk","stk","stk","stk","stk","stk","stk","stk","stk","Pipe","kg","paller",null,"tot høyde","stk","stk","stk","stk","stk","stk","stk","stk","Pipe","kg","paller"]
[0,0,0,0,0,0,0,0,0,0,0,0,0,null,0,0,0,0,0,0,0,0,0,0,0,0]
[4.12,1,1,1,1,17,7,1,2,1,{"$f":"SUM(B5*B8+C5*C8+D5*D8+E5*E8+F5*F8+G5*G8+H5*H8+I5*I8+J5*J8)","v":6213},600,2,null,4,2,2,2,19,14,0,4,1,{"$f":"SUM(P5*P8+Q5*Q8+R5*R8+S5*S8+T5*T8+U5*U8+V5*V8+W5*W8)","v":11509},1000,4]
[4.33,1,1,1,1,18,7,1,2,1,{"$f":"SUM(B5*B9+C5*C9+D5*D9+E5*E9+F5*F9+G5*G9+H5*H9+I5*I9+J5*J9)","v":6277},645,2,null,4.21,2,2,2,20,14,2,4,1,{"$f":"SUM(P5*P9+Q5*Q9+R5*R9+S5*S9+T5*T9+U5*U9+V5*V9+W5*W9)","v":12002},1052,4]
[4.54,1,1,1,1,19,8,0,2,1,{"$f":"SUM(B5*B10+C5*C10+D5*D10+E5*E10+F5*F10+G5*G10+H5*H10+I5*I10+J5*J10)","v":6427},705,2,null,4.42,2,2,2,21,16,0,4,1,{"$f":"SUM(P5*P10+Q5*Q10+R5*R10+S5*S10+T5*T10+U5*U10+V5*V10+W5*W10)","v":12315},1105,4]
[4.75,1,1,1,1,20,8,1,2,1,{"$f":"SUM(B5*B11+C5*C11+D5*D11+E5*E11+F5*F11+G5*G11+H5*H11+I5*I11+J5*J11)","v":6667},750,2,null,4.63,2,2,2,22,16,2,4,1,{"$f":"SUM(P5*P11+Q5*Q11+R5*R11+S5*S11+T5*T11+U5*U11+V5*V11+W5*W11)","v":12808},1157,4]
[4.96,1,1,1,1,21,9,0,2,1,{"$f":"SUM(B5*B12+C5*C12+D5*D12+E5*E12+F5*F12+G5*G12+H5*H12+I5*I12+J5*J12)","v":6817},795,2,null,4.84,2,2,2,23,18,0,4,1,{"$f":"SUM(P5*P12+Q5*Q12+R5*R12+S5*S12+T5*T12+U5*U12+V5*V12+W5*W12)","v":13121},1209,4]
[5.17,1,1,1,1,22,9,1,3,1,{"$f":"SUM(B5*B13+C5*C13+D5*D13+E5*E13+F5*F13+G5*G13+H5*H13+I5*I13+J5*J13)","v":7136},855,2,null,5.05,2,2,2,24,18,0,6,1,{"$f":"SUM(P5*P13+Q5*Q13+R5*R13+S5*S13+T5*T13+U5*U13+V5*V13+W5*W13)","v":13420},1261,4]
[5.38,1,1,1,1,23,10,0,3,1,{"$f":"SUM(B5*B14+C5*C14+D5*D14+E5*E14+F5*F14+G5*G14+H5*H14+I5*I14+J5*J14)","v":7286},900,2,null,5.26,2,2,2,25,18,2,6,1,{"$f":"SUM(P5*P14+Q5*Q14+R5*R14+S5*S14+T5*T14+U5*U14+V5*V14+W5*W14)","v":13913},1313,4]
[5.59,1,1,1,1,24,10,0,3,1,{"$f":"SUM(B5*B15+C5*C15+D5*D15+E5*E15+F5*F15+G5*G15+H5*H15+I5*I15+J5*J15)","v":7350},945,2,null,5.47,2,2,2,26,20,0,6,1,{"$f":"SUM(P5*P15+Q5*Q15+R5*R15+S5*S15+T5*T15+U5*U15+V5*V15+W5*W15)","v":14226},1365,4]
[5.8,1,1,1,1,25,10,1,3,1,{"$f":"SUM(B5*B16+C5*C16+D5*D16+E5*E16+F5*F16+G5*G16+H5*H16+I5*I16+J5*J16)","v":7590},1005,3,null,5.68,2,2,2,27,20,2,6,1,{"$f":"SUM(P5*P16+Q5*Q16+R5*R16+S5*S16+T5*T16+U5*U16+V5*V16+W5*W16)","v":14719},1417,5]
[6.01,1,1,1,1,26,11,0,3,1,{"$f":"SUM(B5*B17+C5*C17+D5*D17+E5*E17+F5*F17+G5*G17+H5*H17+I5*I17+J5*J17)","v":7740},1050,3,null,5.89,2,2,2,28,22,0,6,1,{"$f":"SUM(P5*P17+Q5*Q17+R5*R17+S5*S17+T5*T17+U5*U17+V5*V17+W5*W17)","v":15032},1469,5]
[6.22,1,1,1,1,27,11,1,3,1,{"$f":"SUM(B5*B18+C5*C18+D5*D18+E5*E18+F5*F18+G5*G18+H5*H18+I5*I18+J5*J18)","v":7980},1095,3,null,6.1,2,2,2,29,22,2,6,1,{"$f":"SUM(P5*P18+Q5*Q18+R5*R18+S5*S18+T5*T18+U5*U18+V5*V18+W5*W18)","v":15525},1521,5]
[6.43,1,1,1,1,28,12,0,3,1,{"$f":"SUM(B5*B19+C5*C19+D5*D19+E5*E19+F5*F19+G5*G19+H5*H19+I5*I19+J5*J19)","v":8130},1155,3,null,6.31,2,2,2,30,22,2,6,1,{"$f":"SUM(P5*P19+Q5*Q19+R5*R19+S5*S19+T5*T19+U5*U19+V5*V19+W5*W19)","v":15666},1573,5]
[6.64,1,1,1,1,29,12,1,3,1,{"$f":"SUM(B5*B20+C5*C20+D5*D20+E5*E20+F5*F20+G5*G20+H5*H20+I5*I20+J5*J20)","v":8370},1200,3,null,6.52,2,2,2,31,24,0,6,1,{"$f":"SUM(P5*P20+Q5*Q20+R5*R20+S5*S20+T5*T20+U5*U20+V5*V20+W5*W20)","v":15979},1625,5]
[6.85,1,1,1,1,30,13,0,3,1,{"$f":"SUM(B5*B21+C5*C21+D5*D21+E5*E21+F5*F21+G5*G21+H5*H21+I5*I21+J5*J21)","v":8520},1245,3,null,6.73,2,2,2,32,26,2,6,1,{"$f":"SUM(P5*P21+Q5*Q21+R5*R21+S5*S21+T5*T21+U5*U21+V5*V21+W5*W21)","v":16996},1677,6]
[7.06,1,1,1,1,31,13,0,3,1,{"$f":"SUM(B5*B22+C5*C22+D5*D22+E5*E22+F5*F22+G5*G22+H5*H22+I5*I22+J5*J22)","v":8584},1305,3,null,6.94,2,2,2,33,26,0,6,1,{"$f":"SUM(P5*P22+Q5*Q22+R5*R22+S5*S22+T5*T22+U5*U22+V5*V22+W5*W22)","v":16785},1729,6]
[7.27,1,1,1,1,32,13,1,3,1,{"$f":"SUM(B5*B23+C5*C23+D5*D23+E5*E23+F5*F23+G5*G23+H5*H23+I5*I23+J5*J23)","v":8824},1350,3,null,7.15,2,2,2,34,26,2,6,1,{"$f":"SUM(P5*P23+Q5*Q23+R5*R23+S5*S23+T5*T23+U5*U23+V5*V23+W5*W23)","v":17278},1781,6]
[7.48,1,1,1,1,33,14,0,3,1,{"$f":"SUM(B5*B24+C5*C24+D5*D24+E5*E24+F5*F24+G5*G24+H5*H24+I5*I24+J5*J24)","v":8974},1395,3,null,7.36,2,2,2,35,28,0,6,1,{"$f":"SUM(P5*P24+Q5*Q24+R5*R24+S5*S24+T5*T24+U5*U24+V5*V24+W5*W24)","v":17591},1833,6]
[7.69,1,1,1,1,34,14,1,3,1,{"$f":"SUM(B5*B25+C5*C25+D5*D25+E5*E25+F5*F25+G5*G25+H5*H25+I5*I25+J5*J25)","v":9214},1455,3,null,7.57,2,2,2,36,28,2,6,1,{"$f":"SUM(P5*P25+Q5*Q25+R5*R25+S5*S25+T5*T25+U5*U25+V5*V25+W5*W25)","v":18084},1885,7]
[7.9,1,1,1,1,35,15,0,4,1,{"$f":"SUM(B5*B26+C5*C26+D5*D26+E5*E26+F5*F26+G5*G26+H5*H26+I5*I26+J5*J26)","v":9443},1500,3,null,7.78,2,2,2,37,28,2,8,1,{"$f":"SUM(P5*P26+Q5*Q26+R5*R26+S5*S26+T5*T26+U5*U26+V5*V26+W5*W26)","v":18383},1937,7]
[8.11,1,1,1,1,36,15,1,4,1,{"$f":"SUM(B5*B27+C5*C27+D5*D27+E5*E27+F5*F27+G5*G27+H5*H27+I5*I27+J5*J27)","v":9683},1545,3,null,7.99,2,2,2,38,30,0,8,1,{"$f":"SUM(P5*P27+Q5*Q27+R5*R27+S5*S27+T5*T27+U5*U27+V5*V27+W5*W27)","v":18696},1989,7]
[8.32,1,1,1,1,37,15,1,4,1,{"$f":"SUM(B5*B28+C5*C28+D5*D28+E5*E28+F5*F28+G5*G28+H5*H28+I5*I28+J5*J28)","v":9747},1605,3,null,8.1999999999999993,2,2,2,39,30,2,8,1,{"$f":"SUM(P5*P28+Q5*Q28+R5*R28+S5*S28+T5*T28+U5*U28+V5*V28+W5*W28)","v":19189},2041,7]
[8.5299999999999994,1,1,1,1,38,16,0,4,1,{"$f":"SUM(B5*B29+C5*C29+D5*D29+E5*E29+F5*F29+G5*G29+H5*H29+I5*I29+J5*J29)","v":9897},1650,3,null,8.41,2,2,2,40,32,0,8,1,{"$f":"SUM(P5*P29+Q5*Q29+R5*R29+S5*S29+T5*T29+U5*U29+V5*V29+W5*W29)","v":19502},2093,8]
[8.74,1,1,1,1,39,16,1,4,1,{"$f":"SUM(B5*B30+C5*C30+D5*D30+E5*E30+F5*F30+G5*G30+H5*H30+I5*I30+J5*J30)","v":10137},1695,3,null,8.6199999999999992,2,2,2,41,32,2,8,1,{"$f":"SUM(P5*P30+Q5*Q30+R5*R30+S5*S30+T5*T30+U5*U30+V5*V30+W5*W30)","v":19995},2145,8]
[8.9499999999999993,1,1,1,1,40,17,0,4,1,{"$f":"SUM(B5*B31+C5*C31+D5*D31+E5*E31+F5*F31+G5*G31+H5*H31+I5*I31+J5*J31)","v":10287},1755,3,null,8.83,2,2,2,42,34,0,8,1,{"$f":"SUM(P5*P31+Q5*Q31+R5*R31+S5*S31+T5*T31+U5*U31+V5*V31+W5*W31)","v":20308},2197,8]
[9.16,1,1,1,1,41,17,1,4,1,{"$f":"SUM(B5*B32+C5*C32+D5*D32+E5*E32+F5*F32+G5*G32+H5*H32+I5*I32+J5*J32)","v":10527},1800,3,null,9.0399999999999991,2,2,2,43,34,0,8,1,{"$f":"SUM(P5*P32+Q5*Q32+R5*R32+S5*S32+T5*T32+U5*U32+V5*V32+W5*W32)","v":20449},2249,8]
[9.3699999999999992,1,1,1,1,42,18,0,4,1,{"$f":"SUM(B5*B33+C5*C33+D5*D33+E5*E33+F5*F33+G5*G33+H5*H33+I5*I33+J5*J33)","v":10677},1845,4,null,9.25,2,2,2,44,34,2,8,1,{"$f":"SUM(P5*P33+Q5*Q33+R5*R33+S5*S33+T5*T33+U5*U33+V5*V33+W5*W33)","v":20942},2301,9]
[9.58,1,1,1,1,43,18,0,4,1,{"$f":"SUM(B5*B34+C5*C34+D5*D34+E5*E34+F5*F34+G5*G34+H5*H34+I5*I34+J5*J34)","v":10741},1905,4,null,9.4600000000000009,2,2,2,45,36,0,8,1,{"$f":"SUM(P5*P34+Q5*Q34+R5*R34+S5*S34+T5*T34+U5*U34+V5*V34+W5*W34)","v":21255},2353,9]
[9.7899999999999991,1,1,1,1,44,18,1,4,1,{"$f":"SUM(B5*B35+C5*C35+D5*D35+E5*E35+F5*F35+G5*G35+H5*H35+I5*I35+J5*J35)","v":10981},1950,4,null,9.67,2,2,2,46,36,2,8,1,{"$f":"SUM(P5*P35+Q5*Q35+R5*R35+S5*S35+T5*T35+U5*U35+V5*V35+W5*W35)","v":21748},2405,9]
[10,1,1,1,1,45,19,0,4,1,{"$f":"SUM(B5*B36+C5*C36+D5*D36+E5*E36+F5*F36+G5*G36+H5*H36+I5*I36+J5*J36)","v":11131},1995,4,null,9.8800000000000008,2,2,2,47,38,0,8,1,{"$f":"SUM(P5*P36+Q5*Q36+R5*R36+S5*S36+T5*T36+U5*U36+V5*V36+W5*W36)","v":22061},2457,9]
[10.210000000000001,1,1,1,1,46,19,1,4,1,{"$f":"SUM(B5*B37+C5*C37+D5*D37+E5*E37+F5*F37+G5*G37+H5*H37+I5*I37+J5*J37)","v":11371},2055,4,null,10.09,2,2,2,48,38,2,8,1,{"$f":"SUM(P5*P37+Q5*Q37+R5*R37+S5*S37+T5*T37+U5*U37+V5*V37+W5*W37)","v":22554},2509,9]
[10.42,1,1,1,1,47,20,0,4,1,{"$f":"SUM(B5*B38+C5*C38+D5*D38+E5*E38+F5*F38+G5*G38+H5*H38+I5*I38+J5*J38)","v":11521},2100,4,null,10.3,2,2,2,49,38,2,8,1,{"$f":"SUM(P5*P38+Q5*Q38+R5*R38+S5*S38+T5*T38+U5*U38+V5*V38+W5*W38)","v":22695},2561,9]
[10.63,1,1,1,1,48,20,1,5,1,{"$f":"SUM(B5*B39+C5*C39+D5*D39+E5*E39+F5*F39+G5*G39+H5*H39+I5*I39+J5*J39)","v":11840},2145,4,null,10.51,2,2,2,50,40,0,10,1,{"$f":"SUM(P5*P39+Q5*Q39+R5*R39+S5*S39+T5*T39+U5*U39+V5*V39+W5*W39)","v":23166},2613,9]
[10.84,1,1,1,1,49,20,1,5,1,{"$f":"SUM(B5*B40+C5*C40+D5*D40+E5*E40+F5*F40+G5*G40+H5*H40+I5*I40+J5*J40)","v":11904},2205,4,null,10.72,2,2,2,51,40,2,10,1,{"$f":"SUM(P5*P40+Q5*Q40+R5*R40+S5*S40+T5*T40+U5*U40+V5*V40+W5*W40)","v":23659},2665,10]
[11.05,1,1,1,1,50,21,0,5,1,{"$f":"SUM(B5*B41+C5*C41+D5*D41+E5*E41+F5*F41+G5*G41+H5*H41+I5*I41+J5*J41)","v":12054},2250,4,null,10.93,2,2,2,52,42,0,10,1,{"$f":"SUM(P5*P41+Q5*Q41+R5*R41+S5*S41+T5*T41+U5*U41+V5*V41+W5*W41)","v":23972},2717,10]
[11.26,1,1,1,1,51,21,1,5,1,{"$f":"SUM(B5*B42+C5*C42+D5*D42+E5*E42+F5*F42+G5*G42+H5*H42+I5*I42+J5*J42)","v":12294},2295,4,null,11.14,2,2,2,53,42,2,10,1,{"$f":"SUM(P5*P42+Q5*Q42+R5*R42+S5*S42+T5*T42+U5*U42+V5*V42+W5*W42)","v":24465},2769,10]
[11.47,1,1,1,1,52,22,0,5,1,{"$f":"SUM(B5*B43+C5*C43+D5*D43+E5*E43+F5*F43+G5*G43+H5*H43+I5*I43+J5*J43)","v":12444},2355,5,null,11.35,2,2,2,54,44,0,10,1,{"$f":"SUM(P5*P43+Q5*Q43+R5*R43+S5*S43+T5*T43+U5*U43+V5*V43+W5*W43)","v":24778},2821,10]
[11.68,1,1,1,1,53,22,1,5,1,{"$f":"SUM(B5*B44+C5*C44+D5*D44+E5*E44+F5*F44+G5*G44+H5*H44+I5*I44+J5*J44)","v":12684},2400,5,null,11.54,2,2,2,55,44,0,10,1,{"$f":"SUM(P5*P44+Q5*Q44+R5*R44+S5*S44+T5*T44+U5*U44+V5*V44+W5*W44)","v":24919},2873,10]
[11.89,1,1,1,1,54,23,0,5,1,{"$f":"SUM(B5*B45+C5*C45+D5*D45+E5*E45+F5*F45+G5*G45+H5*H45+I5*I45+J5*J45)","v":12834},2445,5,null,11.75,2,2,2,56,44,2,10,1,{"$f":"SUM(P5*P45+Q5*Q45+R5*R45+S5*S45+T5*T45+U5*U45+V5*V45+W5*W45)","v":25412},2925,10]
[12.1,1,1,1,1,55,23,1,5,1,{"$f":"SUM(B5*B46+C5*C46+D5*D46+E5*E46+F5*F46+G5*G46+H5*H46+I5*I46+J5*J46)","v":13074},2505,5,null,11.96,2,2,2,57,46,0,10,1,{"$f":"SUM(P5*P46+Q5*Q46+R5*R46+S5*S46+T5*T46+U5*U46+V5*V46+W5*W46)","v":25725},2977,10]
[12.31,1,1,1,1,56,23,1,5,1,{"$f":"SUM(B5*B47+C5*C47+D5*D47+E5*E47+F5*F47+G5*G47+H5*H47+I5*I47+J5*J47)","v":13138},2550,5,null,12.17,2,2,2,58,46,2,10,1,{"$f":"SUM(P5*P47+Q5*Q47+R5*R47+S5*S47+T5*T47+U5*U47+V5*V47+W5*W47)","v":26218},3029,11]
[12.52,1,1,1,1,57,24,0,5,1,{"$f":"SUM(B5*B48+C5*C48+D5*D48+E5*E48+F5*F48+G5*G48+H5*H48+I5*I48+J5*J48)","v":13288},2595,5,null,12.38,2,2,2,59,48,0,10,1,{"$f":"SUM(P5*P48+Q5*Q48+R5*R48+S5*S48+T5*T48+U5*U48+V5*V48+W5*W48)","v":26531},3081,11]
[12.73,1,1,1,1,58,24,1,5,1,{"$f":"SUM(B5*B49+C5*C49+D5*D49+E5*E49+F5*F49+G5*G49+H5*H49+I5*I49+J5*J49)","v":13528},2655,5,null,12.59,2,2,2,60,48,2,10,1,{"$f":"SUM(P5*P49+Q5*Q49+R5*R49+S5*S49+T5*T49+U5*U49+V5*V49+W5*W49)","v":27024},3133,11]
[12.94,1,1,1,1,59,25,0,5,1,{"$f":"SUM(B5*B50+C5*C50+D5*D50+E5*E50+F5*F50+G5*G50+H5*H50+I5*I50+J5*J50)","v":13678},2700,5,null,12.8,2,2,2,61,48,2,10,1,{"$f":"SUM(P5*P50+Q5*Q50+R5*R50+S5*S50+T5*T50+U5*U50+V5*V50+W5*W50)","v":27165},3185,11]
[13.15,1,1,1,1,60,25,1,6,1,{"$f":"SUM(B5*B51+C5*C51+D5*D51+E5*E51+F5*F51+G5*G51+H5*H51+I5*I51+J5*J51)","v":13997},2745,5,null,13.01,2,2,2,62,50,0,12,1,{"$f":"SUM(P5*P51+Q5*Q51+R5*R51+S5*S51+T5*T51+U5*U51+V5*V51+W5*W51)","v":27636},3237,11]
[13.36,1,1,1,1,61,26,0,6,1,{"$f":"SUM(B5*B52+C5*C52+D5*D52+E5*E52+F5*F52+G5*G52+H5*H52+I5*I52+J5*J52)","v":14147},2805,5,null,13.22,2,2,2,63,50,2,12,1,{"$f":"SUM(P5*P52+Q5*Q52+R5*R52+S5*S52+T5*T52+U5*U52+V5*V52+W5*W52)","v":28129},3289,11]
[13.57,1,1,1,1,62,26,0,6,1,{"$f":"SUM(B5*B53+C5*C53+D5*D53+E5*E53+F5*F53+G5*G53+H5*H53+I5*I53+J5*J53)","v":14211},2850,5,null,13.43,2,2,2,64,52,0,12,1,{"$f":"SUM(P5*P53+Q5*Q53+R5*R53+S5*S53+T5*T53+U5*U53+V5*V53+W5*W53)","v":28442},3341,11]
[]
[]
[null,null,"toppbeslag","pipehatt",null,null,null,null,null,"Heltekkende","Pipebeslag","forlenger",null,null,null,null,null,"toppbeslag","pipehatt"]
[null,"Ja",1,1,null,null,null,null,"Ja",1,1,1,null,null,null,null,"Ja",1,2]
[null,"Nei",0,0,null,null,null,null,"Nei",0,0,0,null,null,null,null,"Nei",0,0]
[]
[null,1,2,null,null,null,6,7]
[null,"Takstein","Pipebeslag m/formbart fotstykke",null,null,null,10586113,1934]
[null,"Takpapp","Pipebeslag for papptak ",null,null,null,10586105,1079]

{"sheet":"Data (2)","index":27,"n_rows":62,"n_cols":21,"rows_kept":62,"cut":false,"hidden":true,"merged":[]}
[]
["Nobb nr",23643786,47704232,23816101,23816390,10586147,23817075]
[null,"Ytter","Forings","Sotluke","Eksspan","Ildfast","Toppbeslag/"]
[null,"element","rør 50 cm",null,"sjonsblikk","masse","pipehatt"]
["Pris",218,620,919,824,79,2545,"Pris","Ca. vekt","Ca. ant"]
["tot høyde","stk","stk","stk","stk","stk","stk","Pipe","kg","paller"]
[0,0,0,0,0,0,0,0,0,0]
[4,19,8,1,1,3,1,{"$f":"SUM(B5*B8+C5*C8+D5*D8+E5*E8+F5*F8+G5*G8)","v":13627},680,2]
[4.2,20,9,1,1,3,1,{"$f":"SUM(B5*B9+C5*C9+D5*D9+E5*E9+F5*F9+G5*G9)","v":14465},714,2]
[4.4000000000000004,21,9,1,1,3,1,{"$f":"SUM(B5*B10+C5*C10+D5*D10+E5*E10+F5*F10+G5*G10)","v":14683},748,2]
[4.7,22,10,1,1,4,1,{"$f":"SUM(B5*B11+C5*C11+D5*D11+E5*E11+F5*F11+G5*G11)","v":15600},772,2,null,null,null,"Toppbeslag",null,null,"Ekspansjonsblikk",null,null,"Monteringssett"]
[4.9000000000000004,23,10,1,1,4,1,{"$f":"SUM(B5*B12+C5*C12+D5*D12+E5*E12+F5*F12+G5*G12)","v":15818},796,2,null,null,null,"Ja",1,null,"Ja",1,null,"Ja",1]
[5.0999999999999996,24,11,1,1,4,1,{"$f":"SUM(B5*B13+C5*C13+D5*D13+E5*E13+F5*F13+G5*G13)","v":16656},820,2,null,null,null,"Nei",0,null,"Nei",0,null,"Nei",0]
[5.3,25,11,1,1,4,1,{"$f":"SUM(B5*B14+C5*C14+D5*D14+E5*E14+F5*F14+G5*G14)","v":16874},844,2]
[5.5,26,11,1,1,4,1,{"$f":"SUM(B5*B15+C5*C15+D5*D15+E5*E15+F5*F15+G5*G15)","v":17092},868,2]
[5.7,27,12,1,1,4,1,{"$f":"SUM(B5*B16+C5*C16+D5*D16+E5*E16+F5*F16+G5*G16)","v":17930},892,2]
[5.9,28,12,1,1,4,1,{"$f":"SUM(B5*B17+C5*C17+D5*D17+E5*E17+F5*F17+G5*G17)","v":18148},916,2]
[6.1,29,13,1,1,5,1,{"$f":"SUM(B5*B18+C5*C18+D5*D18+E5*E18+F5*F18+G5*G18)","v":19065},940,2]
[6.3,30,13,1,1,5,1,{"$f":"SUM(B5*B19+C5*C19+D5*D19+E5*E19+F5*F19+G5*G19)","v":19283},964,3]
[6.5,31,13,1,1,5,1,{"$f":"SUM(B5*B20+C5*C20+D5*D20+E5*E20+F5*F20+G5*G20)","v":19501},988,3]
[6.8,32,14,1,1,5,1,{"$f":"SUM(B5*B21+C5*C21+D5*D21+E5*E21+F5*F21+G5*G21)","v":20339},1012,3]
[7,33,14,1,1,5,1,{"$f":"SUM(B5*B22+C5*C22+D5*D22+E5*E22+F5*F22+G5*G22)","v":20557},1036,3]
[7.2,34,15,1,1,5,1,{"$f":"SUM(B5*B23+C5*C23+D5*D23+E5*E23+F5*F23+G5*G23)","v":21395},1060,3]
[7.4,35,15,1,1,5,1,{"$f":"SUM(B5*B24+C5*C24+D5*D24+E5*E24+F5*F24+G5*G24)","v":21613},1084,3]
[7.6,36,16,1,1,6,1,{"$f":"SUM(B5*B25+C5*C25+D5*D25+E5*E25+F5*F25+G5*G25)","v":22530},1108,3]
[7.8,37,16,1,1,6,1,{"$f":"SUM(B5*B26+C5*C26+D5*D26+E5*E26+F5*F26+G5*G26)","v":22748},1132,3]
[8,38,16,1,1,6,1,{"$f":"SUM(B5*B27+C5*C27+D5*D27+E5*E27+F5*F27+G5*G27)","v":22966},1156,3]
[8.1999999999999993,39,17,1,1,6,1,{"$f":"SUM(B5*B28+C5*C28+D5*D28+E5*E28+F5*F28+G5*G28)","v":23804},1180,3]
[8.4,40,17,1,1,6,1,{"$f":"SUM(B5*B29+C5*C29+D5*D29+E5*E29+F5*F29+G5*G29)","v":24022},1204,3]
[8.6999999999999993,41,18,1,1,6,1,{"$f":"SUM(B5*B30+C5*C30+D5*D30+E5*E30+F5*F30+G5*G30)","v":24860},1228,4]
[8.9,42,18,1,1,6,1,{"$f":"SUM(B5*B31+C5*C31+D5*D31+E5*E31+F5*F31+G5*G31)","v":25078},1252,4]
[9.1,43,19,1,1,7,1,{"$f":"SUM(B5*B32+C5*C32+D5*D32+E5*E32+F5*F32+G5*G32)","v":25995},1276,4]
[9.3000000000000007,44,19,1,1,7,1,{"$f":"SUM(B5*B33+C5*C33+D5*D33+E5*E33+F5*F33+G5*G33)","v":26213},1300,4]
[9.5,45,19,1,1,7,1,{"$f":"SUM(B5*B34+C5*C34+D5*D34+E5*E34+F5*F34+G5*G34)","v":26431},1324,4]
[9.6999999999999993,46,20,1,1,7,1,{"$f":"SUM(B5*B35+C5*C35+D5*D35+E5*E35+F5*F35+G5*G35)","v":27269},1348,4]
[9.9,47,20,1,1,7,1,{"$f":"SUM(B5*B36+C5*C36+D5*D36+E5*E36+F5*F36+G5*G36)","v":27487},1372,4]
[10.1,48,20,1,1,7,1,{"$f":"SUM(B5*B37+C5*C37+D5*D37+E5*E37+F5*F37+G5*G37)","v":27705},1396,4]
[10.3,49,21,1,1,7,1,{"$f":"SUM(B5*B38+C5*C38+D5*D38+E5*E38+F5*F38+G5*G38)","v":28543},1420,4]
[10.5,50,21,1,1,7,1,{"$f":"SUM(B5*B39+C5*C39+D5*D39+E5*E39+F5*F39+G5*G39)","v":28761},1444,4]
[10.7,51,22,1,1,8,1,{"$f":"SUM(B5*B40+C5*C40+D5*D40+E5*E40+F5*F40+G5*G40)","v":29678},1468,4]
[11,52,22,1,1,8,1,{"$f":"SUM(B5*B41+C5*C41+D5*D41+E5*E41+F5*F41+G5*G41)","v":29896},1492,4]
[11.2,53,23,1,1,8,1,{"$f":"SUM(B5*B42+C5*C42+D5*D42+E5*E42+F5*F42+G5*G42)","v":30734},1516,4]
[11.4,54,23,1,1,8,1,{"$f":"SUM(B5*B43+C5*C43+D5*D43+E5*E43+F5*F43+G5*G43)","v":30952},1540,5]
[11.6,55,24,1,1,8,1,{"$f":"SUM(B5*B44+C5*C44+D5*D44+E5*E44+F5*F44+G5*G44)","v":31790},1564,5]
[11.8,56,24,1,1,8,1,{"$f":"SUM(B5*B45+C5*C45+D5*D45+E5*E45+F5*F45+G5*G45)","v":32008},1588,5]
[12,57,24,1,1,8,1,{"$f":"SUM(B5*B46+C5*C46+D5*D46+E5*E46+F5*F46+G5*G46)","v":32226},1612,5]
[12.2,58,25,1,1,8,1,{"$f":"SUM(B5*B47+C5*C47+D5*D47+E5*E47+F5*F47+G5*G47)","v":33064},1636,5]
[12.4,59,25,1,1,8,1,{"$f":"SUM(B5*B48+C5*C48+D5*D48+E5*E48+F5*F48+G5*G48)","v":33282},1660,5]
[12.6,60,26,1,1,9,1,{"$f":"SUM(B5*B49+C5*C49+D5*D49+E5*E49+F5*F49+G5*G49)","v":34199},1684,5]
[12.8,61,26,1,1,9,1,{"$f":"SUM(B5*B50+C5*C50+D5*D50+E5*E50+F5*F50+G5*G50)","v":34417},1708,5]
[13,62,26,1,1,9,1,{"$f":"SUM(B5*B51+C5*C51+D5*D51+E5*E51+F5*F51+G5*G51)","v":34635},1732,6]
[13.3,63,27,1,1,9,1,{"$f":"SUM(B5*B52+C5*C52+D5*D52+E5*E52+F5*F52+G5*G52)","v":35473},1756,6]
[13.5,64,27,1,1,9,1,{"$f":"SUM(B5*B53+C5*C53+D5*D53+E5*E53+F5*F53+G5*G53)","v":35691},1780,6]
[13.7,66,28,1,1,9,1,null,2010,6]
[13.9,67,28,1,1,9,1,null,2040,6]
[14.1,68,29,1,1,10,1,null,2070,6]
[14.3,69,29,1,1,10,1,null,2100,6]
[14.5,70,29,1,1,10,1,null,2130,6]
[14.7,71,30,1,1,10,1,null,2160,6]
[14.9,72,30,1,1,10,1,null,2190,6]
[15.1,73,31,1,1,10,1,null,2220,6]
[15.3,74,31,1,1,10,1,null,2250,6]